Body Name,Body,Service Area Categorisation,Service Division Categorisation,Responsible Unit,Expenses Type,Detailed Expenses Type,Payment Date,Transaction Number,Payment Amount,Supplier Type,Supplier Name,Supplier Id
Portsmouth City Council,PCC,Highways and Transport Services,Parking Services,Regeneration,Third Party Payments,Private contractors,24/07/2020,6376409,52,VENDOR,BOARHUNT GROUP LTD,103726
Portsmouth City Council,PCC,Highways and Transport Services,Parking Services,Regeneration,Third Party Payments,Private contractors,24/07/2020,6376409,52,VENDOR,BOARHUNT GROUP LTD,103726
Portsmouth City Council,PCC,Highways and Transport Services,Parking Services,Regeneration,Third Party Payments,Private contractors,24/07/2020,6376409,52,VENDOR,BOARHUNT GROUP LTD,103726
Portsmouth City Council,PCC,Highways and Transport Services,Parking Services,Regeneration,Third Party Payments,Private contractors,24/07/2020,6376409,227.5,VENDOR,BOARHUNT GROUP LTD,103726
Portsmouth City Council,PCC,Highways and Transport Services,Parking Services,Regeneration,Premises-Related Expenditure,Rents,24/07/2020,6376409,35,VENDOR,BOARHUNT GROUP LTD,103726
Portsmouth City Council,PCC,Highways and Transport Services,Parking Services,Regeneration,Premises-Related Expenditure,Rents,24/07/2020,6376409,35,VENDOR,BOARHUNT GROUP LTD,103726
Portsmouth City Council,PCC,Highways and Transport Services,Parking Services,Regeneration,Premises-Related Expenditure,Rents,24/07/2020,6376409,1600,VENDOR,BOARHUNT GROUP LTD,103726
Portsmouth City Council,PCC,Children's and Education Services,Children Looked After,Children's Services and Education,Third Party Payments,Other establishments,01/07/2020,6372763,20019.68,VENDOR,PRIORS COURT SCHOOL,126243
Portsmouth City Council,PCC,Children's and Education Services,Special Schools,Children's Services and Education,Third Party Payments,Other establishments,06/07/2020,6373292,20901,VENDOR,ST EDWARDS SCHOOL,101262
Portsmouth City Council,PCC,Cultural and Related Services,Allocation of Management & Admin,Corporate Services,Supplies and Services,"Printing, stationery and general office expenses",31/07/2020,6377570,10514.52,VENDOR,PRODUCT DEVELOPMENT CORPORATION,134173
Portsmouth City Council,PCC,Cultural and Related Services,Allocation of Management & Admin,Corporate Services,Supplies and Services,"Printing, stationery and general office expenses",31/07/2020,6377570,680.32,VENDOR,PRODUCT DEVELOPMENT CORPORATION,134173
Portsmouth City Council,PCC,Children's and Education Services,Special Schools,Children's Services and Education,Third Party Payments,Other establishments,02/07/2020,6372977,2520,VENDOR,KEYS PCE LIMITED,137236
Portsmouth City Council,PCC,Children's and Education Services,Special Schools,Children's Services and Education,Third Party Payments,Other establishments,02/07/2020,6372977,3150,VENDOR,KEYS PCE LIMITED,137236
Portsmouth City Council,PCC,Children's and Education Services,Children Looked After,Children's Services and Education,Third Party Payments,Other establishments,23/07/2020,6376332,18214.29,VENDOR,KEYS PCE LIMITED,137236
Portsmouth City Council,PCC,Children's and Education Services,Children Looked After,Children's Services and Education,Third Party Payments,Other establishments,23/07/2020,6376332,18214.29,VENDOR,KEYS PCE LIMITED,137236
Portsmouth City Council,PCC,Children's and Education Services,Special Schools,Children's Services and Education,Third Party Payments,Other establishments,31/07/2020,6377556,4620,VENDOR,KEYS PCE LIMITED,137236
Portsmouth City Council,PCC,Children's and Education Services,Children Looked After,Children's Services and Education,Third Party Payments,Other establishments,23/07/2020,6376332,22500,VENDOR,KEYS PCE LIMITED,137236
Portsmouth City Council,PCC,Children's and Education Services,Children Looked After,Children's Services and Education,Third Party Payments,Other establishments,23/07/2020,6376332,2785.71,VENDOR,KEYS PCE LIMITED,137236
Portsmouth City Council,PCC,Children's and Education Services,Children Looked After,Children's Services and Education,Third Party Payments,Other establishments,23/07/2020,6376332,-2785.71,VENDOR,KEYS PCE LIMITED,137236
Portsmouth City Council,PCC,Children's and Education Services,Children Looked After,Children's Services and Education,Third Party Payments,Other establishments,23/07/2020,6376332,27857.14,VENDOR,KEYS PCE LIMITED,137236
Portsmouth City Council,PCC,Children's and Education Services,Children Looked After,Children's Services and Education,Third Party Payments,Other establishments,23/07/2020,6376332,1392.86,VENDOR,KEYS PCE LIMITED,137236
Portsmouth City Council,PCC,Children's and Education Services,Children Looked After,Children's Services and Education,Third Party Payments,Other establishments,23/07/2020,6376332,15257.14,VENDOR,KEYS PCE LIMITED,137236
Portsmouth City Council,PCC,Highways and Transport Services,Parking Services,Regeneration,Supplies and Services,Communications and computing,20/07/2020,6375503,29966,VENDOR,VIDEALERT LTD,140581
Portsmouth City Council,PCC,Highways and Transport Services,Parking Services,Regeneration,Supplies and Services,Expenses,20/07/2020,6375503,37226,VENDOR,VIDEALERT LTD,140581
Portsmouth City Council,PCC,Planning Services,Business support,Regeneration,Third Party Payments,Private contractors,02/07/2020,6373008,3070.44,VENDOR,TECHNOLOGY WITHIN LIMITED,143958
Portsmouth City Council,PCC,Planning Services,Business support,Regeneration,Supplies and Services,Communications and computing,31/07/2020,6377592,26.98,VENDOR,TECHNOLOGY WITHIN LIMITED,143958
Portsmouth City Council,PCC,Planning Services,Business support,Regeneration,Supplies and Services,Communications and computing,31/07/2020,6377592,741,VENDOR,TECHNOLOGY WITHIN LIMITED,143958
Portsmouth City Council,PCC,Children's and Education Services,Safeguarding Children and Young Peoples Services,Children's Services and Education,Third Party Payments,Other establishments,03/07/2020,6373112,2391,VENDOR,HORIZON CARE AND EDUCATION GROUP LTD,138450
Portsmouth City Council,PCC,Solent LEP,Business support,OTHER,Supplies and Services,Services,06/07/2020,6373317,11000,VENDOR,THE CHAMBER OF SHIPPING,140393
Portsmouth City Council,PCC,Environmental and Regulatory Services,Waste Collection,"Housing, Neighbourhood and Building Services",Supplies and Services,"Equipment, furniture and materials",23/07/2020,6376341,672,VENDOR,ONE51 ES PLASTICS (UK) LIMITED,146678
Portsmouth City Council,PCC,Cultural and Related Services,Open Spaces,"Culture, Leisure & Regulatory Services",Premises-Related Expenditure,Grounds maintenance costs,14/07/2020,6374632,979.38,VENDOR,ROSEHILL POLYMERS LTD,112397
Portsmouth City Council,PCC,Children's and Education Services,Children Looked After,Children's Services and Education,Third Party Payments,Other establishments,06/07/2020,6373266,3551.27,VENDOR,FIVE RIVERS CHILD CARE LIMITED,106901
Portsmouth City Council,PCC,Children's and Education Services,Children Looked After,Children's Services and Education,Third Party Payments,Other establishments,06/07/2020,6373266,3551.27,VENDOR,FIVE RIVERS CHILD CARE LIMITED,106901
Portsmouth City Council,PCC,Children's and Education Services,Children Looked After,Children's Services and Education,Third Party Payments,Other establishments,20/07/2020,6375455,3436.71,VENDOR,FIVE RIVERS CHILD CARE LIMITED,106901
Portsmouth City Council,PCC,Children's and Education Services,Children Looked After,Children's Services and Education,Third Party Payments,Other establishments,28/07/2020,6376762,3551.27,VENDOR,FIVE RIVERS CHILD CARE LIMITED,106901
Portsmouth City Council,PCC,Children's and Education Services,Children Looked After,Children's Services and Education,Third Party Payments,Other establishments,28/07/2020,6376762,3551.27,VENDOR,FIVE RIVERS CHILD CARE LIMITED,106901
Portsmouth City Council,PCC,Children's and Education Services,Children Looked After,Children's Services and Education,Third Party Payments,Other establishments,31/07/2020,6377540,-0.01,VENDOR,FIVE RIVERS CHILD CARE LIMITED,106901
Portsmouth City Council,PCC,Children's and Education Services,Children Looked After,Children's Services and Education,Third Party Payments,Other establishments,31/07/2020,6377540,3520.72,VENDOR,FIVE RIVERS CHILD CARE LIMITED,106901
Portsmouth City Council,PCC,Adult Social Care,Assistive Equipment & Technology,"Housing, Neighbourhood and Building Services",Supplies and Services,"Equipment, furniture and materials",10/07/2020,6374381,1645,VENDOR,TYNETEC B/U OF LEGRAND ELECTRIC LTD,140439
Portsmouth City Council,PCC,Adult Social Care,Assistive Equipment & Technology,"Housing, Neighbourhood and Building Services",Supplies and Services,"Equipment, furniture and materials",17/07/2020,6375397,705,VENDOR,TYNETEC B/U OF LEGRAND ELECTRIC LTD,140439
Portsmouth City Council,PCC,Adult Social Care,Assistive Equipment & Technology,"Housing, Neighbourhood and Building Services",Supplies and Services,"Equipment, furniture and materials",17/07/2020,6375397,608.4,VENDOR,TYNETEC B/U OF LEGRAND ELECTRIC LTD,140439
Portsmouth City Council,PCC,Adult Social Care,Assistive Equipment & Technology,"Housing, Neighbourhood and Building Services",Supplies and Services,"Equipment, furniture and materials",17/07/2020,6375397,390,VENDOR,TYNETEC B/U OF LEGRAND ELECTRIC LTD,140439
Portsmouth City Council,PCC,Other,Suspense and Capital Schemes,Capital - Traffic & Transportation,Capital Charges,Capital Expenditure (WIP),27/07/2020,6376628,2103.43,COMPANY,DORMAKABA,101361
Portsmouth City Council,PCC,Other,Suspense and Capital Schemes,Capital - Traffic & Transportation,Capital Charges,Capital Expenditure (WIP),28/07/2020,6376757,3654.91,COMPANY,DORMAKABA,101361
Portsmouth City Council,PCC,Cultural and Related Services,Culture and Heritage,"Culture, Leisure & Regulatory Services",Supplies and Services,"Equipment, furniture and materials",24/07/2020,6376521,660,VENDOR,PRESERVATION EQUIPMENT LTD,101097
Portsmouth City Council,PCC,Cultural and Related Services,Culture and Heritage,"Culture, Leisure & Regulatory Services",Supplies and Services,"Printing, stationery and general office expenses",24/07/2020,6376521,9.95,VENDOR,PRESERVATION EQUIPMENT LTD,101097
Portsmouth City Council,PCC,Other,Suspense and Capital Schemes,Capital - Traffic & Transportation,Capital Charges,Capital Expenditure (WIP),27/07/2020,6376645,510,VENDOR,HYPERION INFRASTRUCTURE CONSULTANCY,144798
Portsmouth City Council,PCC,Highways and Transport Services,"Airports, Harbours and Toll Facilities",Portsmouth International Port,Third Party Payments,Private contractors,24/07/2020,6376391,550,VENDOR,ABBOTT TOXICOLOGY LIMITED,121708
Portsmouth City Council,PCC,Adult Social Care,Support with Memory and Cognition Older People (65 - 74),Adult Services,Employees,Direct employee expenses,08/07/2020,6373474,563.03,VENDOR,A24 GROUP LIMITED T/A AMBITION 24 HOURS,139614
Portsmouth City Council,PCC,Adult Social Care,Support with Memory and Cognition Older People (65 - 74),Adult Services,Employees,Direct employee expenses,08/07/2020,6373474,610.79,VENDOR,A24 GROUP LIMITED T/A AMBITION 24 HOURS,139614
Portsmouth City Council,PCC,Highways and Transport Services,"Transport Planning, Policy and Strategy",Regeneration,Third Party Payments,Private contractors,20/07/2020,6375499,7440,VENDOR,TURNER & TOWNSEND GROUP LIMITED,132225
Portsmouth City Council,PCC,Adult Social Care,Support with Memory and Cognition Older People (65 - 74),Adult Services,Employees,Direct employee expenses,08/07/2020,6373474,607.12,VENDOR,A24 GROUP LIMITED T/A AMBITION 24 HOURS,139614
Portsmouth City Council,PCC,Adult Social Care,Support with Memory and Cognition Older People (65 - 74),Adult Services,Employees,Direct employee expenses,08/07/2020,6373474,827.7,VENDOR,A24 GROUP LIMITED T/A AMBITION 24 HOURS,139614
Portsmouth City Council,PCC,Other,Suspense and Capital Schemes,Capital - Housing General Fund,Capital Charges,REFCUS,07/07/2020,6373435,10943.2,COMPANY,PORTSMOUTH BUILDING SPECIALISTS LTD,146493
Portsmouth City Council,PCC,Other,Suspense and Capital Schemes,Capital - Housing General Fund,Capital Charges,REFCUS,07/07/2020,6373435,4163.3,COMPANY,PORTSMOUTH BUILDING SPECIALISTS LTD,146493
Portsmouth City Council,PCC,Housing Services,Private Sector Housing Renewal,"Housing, Neighbourhood and Building Services",Supplies and Services,Grants and subscriptions,20/07/2020,6375481,-40,COMPANY,PORTSMOUTH BUILDING SPECIALISTS LTD,146493
Portsmouth City Council,PCC,Other,Suspense and Capital Schemes,Capital - Housing General Fund,Capital Charges,REFCUS,20/07/2020,6375481,-408,COMPANY,PORTSMOUTH BUILDING SPECIALISTS LTD,146493
Portsmouth City Council,PCC,Other,Suspense and Capital Schemes,Capital - Housing General Fund,Capital Charges,REFCUS,20/07/2020,6375481,3836.7,COMPANY,PORTSMOUTH BUILDING SPECIALISTS LTD,146493
Portsmouth City Council,PCC,Housing Services,Private Sector Housing Renewal,"Housing, Neighbourhood and Building Services",Income,Other grants reimbursements and contributions,20/07/2020,6375481,-120,COMPANY,PORTSMOUTH BUILDING SPECIALISTS LTD,146493
Portsmouth City Council,PCC,Housing Services,Private Sector Housing Renewal,"Housing, Neighbourhood and Building Services",Income,Other grants reimbursements and contributions,20/07/2020,6375481,-1638.5,COMPANY,PORTSMOUTH BUILDING SPECIALISTS LTD,146493
Portsmouth City Council,PCC,Highways and Transport Services,"Transport Planning, Policy and Strategy",Regeneration,Supplies and Services,Services,17/07/2020,6375333,1621.67,VENDOR,INTEGRATED TRANSPORT PLANNING LTD,125772
Portsmouth City Council,PCC,Highways and Transport Services,"Transport Planning, Policy and Strategy",Regeneration,Supplies and Services,Services,30/07/2020,6377415,849.47,VENDOR,INTEGRATED TRANSPORT PLANNING LTD,125772
Portsmouth City Council,PCC,Adult Social Care,Support with Memory and Cognition Older People (65 - 74),Adult Services,Employees,Direct employee expenses,08/07/2020,6373474,303.56,VENDOR,A24 GROUP LIMITED T/A AMBITION 24 HOURS,139614
Portsmouth City Council,PCC,Housing Services,Homelessness,"Housing, Neighbourhood and Building Services",Supplies and Services,Grants and subscriptions,13/07/2020,6374523,10149.99,VENDOR,TWO SAINTS LTD,102584
Portsmouth City Council,PCC,Housing Services,Supporting People,"Housing, Neighbourhood and Building Services",Third Party Payments,Other establishments,28/07/2020,6376837,49983.41,VENDOR,TWO SAINTS LTD,102584
Portsmouth City Council,PCC,Adult Social Care,Support with Memory and Cognition Older People (65 - 74),Adult Services,Employees,Direct employee expenses,08/07/2020,6373474,921.22,VENDOR,A24 GROUP LIMITED T/A AMBITION 24 HOURS,139614
Portsmouth City Council,PCC,Adult Social Care,Support with Memory and Cognition Older People (65 - 74),Adult Services,Employees,Direct employee expenses,08/07/2020,6373474,502.91,VENDOR,A24 GROUP LIMITED T/A AMBITION 24 HOURS,139614
Portsmouth City Council,PCC,Children's and Education Services,Safeguarding Children and Young Peoples Services,Children's Services and Education,Third Party Payments,Other establishments,10/07/2020,6374195,1248,VENDOR,STILL WATERS CARE SERVICES LTD,146488
Portsmouth City Council,PCC,Children's and Education Services,Safeguarding Children and Young Peoples Services,Children's Services and Education,Third Party Payments,Other establishments,10/07/2020,6374195,-37.22,VENDOR,STILL WATERS CARE SERVICES LTD,146488
Portsmouth City Council,PCC,Children's and Education Services,Safeguarding Children and Young Peoples Services,Children's Services and Education,Third Party Payments,Other establishments,10/07/2020,6374195,3342.86,VENDOR,STILL WATERS CARE SERVICES LTD,146488
Portsmouth City Council,PCC,Other,Suspense and Capital Schemes,Capital - Children & Families,Capital Charges,Capital Expenditure (WIP),24/07/2020,6376533,12440,VENDOR,SERVELEC GROUP LTD,144037
Portsmouth City Council,PCC,Other,Suspense and Capital Schemes,Capital - Children & Families,Capital Charges,Capital Expenditure (WIP),31/07/2020,6377575,1000,VENDOR,SERVELEC GROUP LTD,144037
Portsmouth City Council,PCC,Environmental and Regulatory Services,Community Safety (Safety Services),Chief Exec,Third Party Payments,Private contractors,07/07/2020,6373466,4000,VENDOR,THE ALL CALL SIGNS GROUP,146938
Portsmouth City Council,PCC,Adult Social Care,Support with Memory and Cognition Older People (65 - 74),Adult Services,Employees,Direct employee expenses,08/07/2020,6373474,654.41,VENDOR,A24 GROUP LIMITED T/A AMBITION 24 HOURS,139614
Portsmouth City Council,PCC,Adult Social Care,Support with Memory and Cognition Older People (65 - 74),Adult Services,Employees,Direct employee expenses,08/07/2020,6373474,724.89,VENDOR,A24 GROUP LIMITED T/A AMBITION 24 HOURS,139614
Portsmouth City Council,PCC,Adult Social Care,Support with Memory and Cognition Older People (65 - 74),Adult Services,Employees,Direct employee expenses,08/07/2020,6373474,565.81,VENDOR,A24 GROUP LIMITED T/A AMBITION 24 HOURS,139614
Portsmouth City Council,PCC,Adult Social Care,Support with Memory and Cognition Older People (65 - 74),Adult Services,Employees,Direct employee expenses,08/07/2020,6373474,607.12,VENDOR,A24 GROUP LIMITED T/A AMBITION 24 HOURS,139614
Portsmouth City Council,PCC,Adult Social Care,Support with Memory and Cognition Older People (65 - 74),Adult Services,Employees,Direct employee expenses,08/07/2020,6373474,939.5,VENDOR,A24 GROUP LIMITED T/A AMBITION 24 HOURS,139614
Portsmouth City Council,PCC,Adult Social Care,Support with Memory and Cognition Older People (65 - 74),Adult Services,Employees,Direct employee expenses,08/07/2020,6373474,526.6,VENDOR,A24 GROUP LIMITED T/A AMBITION 24 HOURS,139614
Portsmouth City Council,PCC,Adult Social Care,Support with Memory and Cognition Older People (65 - 74),Adult Services,Employees,Direct employee expenses,08/07/2020,6373474,743.38,VENDOR,A24 GROUP LIMITED T/A AMBITION 24 HOURS,139614
Portsmouth City Council,PCC,Adult Social Care,Support with Memory and Cognition Older People (65 - 74),Adult Services,Employees,Direct employee expenses,08/07/2020,6373474,309.43,VENDOR,A24 GROUP LIMITED T/A AMBITION 24 HOURS,139614
Portsmouth City Council,PCC,Adult Social Care,Support with Memory and Cognition Older People (65 - 74),Adult Services,Employees,Direct employee expenses,08/07/2020,6373474,327.78,VENDOR,A24 GROUP LIMITED T/A AMBITION 24 HOURS,139614
Portsmouth City Council,PCC,Adult Social Care,Support with Memory and Cognition Older People (65 - 74),Adult Services,Employees,Direct employee expenses,08/07/2020,6373474,526.6,VENDOR,A24 GROUP LIMITED T/A AMBITION 24 HOURS,139614
Portsmouth City Council,PCC,Adult Social Care,Support with Memory and Cognition Older People (65 - 74),Adult Services,Employees,Direct employee expenses,08/07/2020,6373474,650.83,VENDOR,A24 GROUP LIMITED T/A AMBITION 24 HOURS,139614
Portsmouth City Council,PCC,Adult Social Care,Support with Memory and Cognition Older People (65 - 74),Adult Services,Employees,Direct employee expenses,08/07/2020,6373474,462.72,VENDOR,A24 GROUP LIMITED T/A AMBITION 24 HOURS,139614
Portsmouth City Council,PCC,Adult Social Care,Support with Memory and Cognition Older People (65 - 74),Adult Services,Employees,Direct employee expenses,08/07/2020,6373474,849.73,VENDOR,A24 GROUP LIMITED T/A AMBITION 24 HOURS,139614
Portsmouth City Council,PCC,Adult Social Care,Support with Memory and Cognition Older People (65 - 74),Adult Services,Employees,Direct employee expenses,08/07/2020,6373474,367.78,VENDOR,A24 GROUP LIMITED T/A AMBITION 24 HOURS,139614
Portsmouth City Council,PCC,Adult Social Care,Support with Memory and Cognition Older People (65 - 74),Adult Services,Employees,Direct employee expenses,08/07/2020,6373474,607.12,VENDOR,A24 GROUP LIMITED T/A AMBITION 24 HOURS,139614
Portsmouth City Council,PCC,Adult Social Care,Support with Memory and Cognition Older People (65 - 74),Adult Services,Employees,Direct employee expenses,08/07/2020,6373474,827.7,VENDOR,A24 GROUP LIMITED T/A AMBITION 24 HOURS,139614
Portsmouth City Council,PCC,Adult Social Care,Support with Memory and Cognition Older People (65 - 74),Adult Services,Employees,Direct employee expenses,08/07/2020,6373474,607.12,VENDOR,A24 GROUP LIMITED T/A AMBITION 24 HOURS,139614
Portsmouth City Council,PCC,Adult Social Care,Support with Memory and Cognition Older People (65 - 74),Adult Services,Employees,Direct employee expenses,08/07/2020,6373474,607.12,VENDOR,A24 GROUP LIMITED T/A AMBITION 24 HOURS,139614
Portsmouth City Council,PCC,Adult Social Care,Support with Memory and Cognition Older People (65 - 74),Adult Services,Employees,Direct employee expenses,08/07/2020,6373474,743.38,VENDOR,A24 GROUP LIMITED T/A AMBITION 24 HOURS,139614
Portsmouth City Council,PCC,Adult Social Care,Support with Memory and Cognition Older People (65 - 74),Adult Services,Employees,Direct employee expenses,08/07/2020,6373474,827.7,VENDOR,A24 GROUP LIMITED T/A AMBITION 24 HOURS,139614
Portsmouth City Council,PCC,Adult Social Care,Support with Memory and Cognition Older People (85+),Adult Services,Third Party Payments,Other establishments,24/07/2020,6376390,4472.99,VENDOR,ABBEYFIELD WEY VALLEY SOCIETY LTD,142755
Portsmouth City Council,PCC,Adult Social Care,Physical Support Older People (85+),Adult Services,Third Party Payments,Other establishments,22/07/2020,6375780,1456,VENDOR,ABICARE SERVICES LTD,146674
Portsmouth City Council,PCC,Adult Social Care,Social Care Activities,Adult Services,Third Party Payments,Other establishments,06/07/2020,6373209,10157.36,VENDOR,ACCESS CARE LTD,106309
Portsmouth City Council,PCC,Adult Social Care,Physical Support Adults (18 - 64),Adult Services,Third Party Payments,Other establishments,06/07/2020,6373209,496.16,VENDOR,ACCESS CARE LTD,106309
Portsmouth City Council,PCC,Adult Social Care,Physical Support Adults (18 - 64),Adult Services,Third Party Payments,Other establishments,06/07/2020,6373209,3120.32,VENDOR,ACCESS CARE LTD,106309
Portsmouth City Council,PCC,Adult Social Care,Social Care Activities,Adult Services,Third Party Payments,Other establishments,23/07/2020,6376263,87,VENDOR,ADMIRAL CARE LTD,138025
Portsmouth City Council,PCC,Adult Social Care,Social Care Activities,Adult Services,Third Party Payments,Other establishments,23/07/2020,6376263,1096.2,VENDOR,ADMIRAL CARE LTD,138025
Portsmouth City Council,PCC,Adult Social Care,Social Care Activities,Adult Services,Third Party Payments,Other establishments,23/07/2020,6376263,365.4,VENDOR,ADMIRAL CARE LTD,138025
Portsmouth City Council,PCC,Adult Social Care,Social Care Activities,Adult Services,Third Party Payments,Other establishments,23/07/2020,6376263,1009.2,VENDOR,ADMIRAL CARE LTD,138025
Portsmouth City Council,PCC,Adult Social Care,Social Care Activities,Adult Services,Third Party Payments,Other establishments,23/07/2020,6376263,665.55,VENDOR,ADMIRAL CARE LTD,138025
Portsmouth City Council,PCC,Adult Social Care,Social Care Activities,Adult Services,Third Party Payments,Other establishments,23/07/2020,6376263,639.45,VENDOR,ADMIRAL CARE LTD,138025
Portsmouth City Council,PCC,Adult Social Care,Social Care Activities,Adult Services,Third Party Payments,Other establishments,23/07/2020,6376263,213.15,VENDOR,ADMIRAL CARE LTD,138025
Portsmouth City Council,PCC,Adult Social Care,Social Care Activities,Adult Services,Third Party Payments,Other establishments,23/07/2020,6376263,213.15,VENDOR,ADMIRAL CARE LTD,138025
Portsmouth City Council,PCC,Adult Social Care,Social Care Activities,Adult Services,Third Party Payments,Other establishments,23/07/2020,6376263,609,VENDOR,ADMIRAL CARE LTD,138025
Portsmouth City Council,PCC,Adult Social Care,Social Care Activities,Adult Services,Third Party Payments,Other establishments,23/07/2020,6376263,609,VENDOR,ADMIRAL CARE LTD,138025
Portsmouth City Council,PCC,Adult Social Care,Social Care Activities,Adult Services,Third Party Payments,Other establishments,23/07/2020,6376263,313.2,VENDOR,ADMIRAL CARE LTD,138025
Portsmouth City Council,PCC,Adult Social Care,Social Care Activities,Adult Services,Third Party Payments,Other establishments,23/07/2020,6376263,1052.7,VENDOR,ADMIRAL CARE LTD,138025
Portsmouth City Council,PCC,Adult Social Care,Social Care Activities,Adult Services,Third Party Payments,Other establishments,23/07/2020,6376263,1052.7,VENDOR,ADMIRAL CARE LTD,138025
Portsmouth City Council,PCC,Adult Social Care,Mental Health Support Older People (65 - 74),Adult Services,Third Party Payments,Other establishments,23/07/2020,6376263,556.8,VENDOR,ADMIRAL CARE LTD,138025
Portsmouth City Council,PCC,Adult Social Care,Mental Health Support Older People (65 - 74),Adult Services,Third Party Payments,Other establishments,23/07/2020,6376263,974.4,VENDOR,ADMIRAL CARE LTD,138025
Portsmouth City Council,PCC,Adult Social Care,Mental Health Support Older People (65 - 74),Adult Services,Third Party Payments,Other establishments,23/07/2020,6376263,139.2,VENDOR,ADMIRAL CARE LTD,138025
Portsmouth City Council,PCC,Adult Social Care,Mental Health Support Older People (65 - 74),Adult Services,Third Party Payments,Other establishments,23/07/2020,6376263,121.8,VENDOR,ADMIRAL CARE LTD,138025
Portsmouth City Council,PCC,Adult Social Care,Mental Health Support Older People (65 - 74),Adult Services,Third Party Payments,Other establishments,23/07/2020,6376263,69.6,VENDOR,ADMIRAL CARE LTD,138025
Portsmouth City Council,PCC,Adult Social Care,Mental Health Support Older People (65 - 74),Adult Services,Third Party Payments,Other establishments,23/07/2020,6376263,69.6,VENDOR,ADMIRAL CARE LTD,138025
Portsmouth City Council,PCC,Adult Social Care,Mental Health Support Older People (65 - 74),Adult Services,Third Party Payments,Other establishments,23/07/2020,6376263,139.2,VENDOR,ADMIRAL CARE LTD,138025
Portsmouth City Council,PCC,Adult Social Care,Mental Health Support Older People (65 - 74),Adult Services,Third Party Payments,Other establishments,23/07/2020,6376263,139.2,VENDOR,ADMIRAL CARE LTD,138025
Portsmouth City Council,PCC,Adult Social Care,Mental Health Support Older People (65 - 74),Adult Services,Third Party Payments,Other establishments,23/07/2020,6376263,170.08,VENDOR,ADMIRAL CARE LTD,138025
Portsmouth City Council,PCC,Adult Social Care,Mental Health Support Older People (65 - 74),Adult Services,Third Party Payments,Other establishments,23/07/2020,6376263,191.4,VENDOR,ADMIRAL CARE LTD,138025
Portsmouth City Council,PCC,Adult Social Care,Mental Health Support Older People (65 - 74),Adult Services,Third Party Payments,Other establishments,23/07/2020,6376263,191.4,VENDOR,ADMIRAL CARE LTD,138025
Portsmouth City Council,PCC,Adult Social Care,Physical Support Older People (85+),Adult Services,Third Party Payments,Other establishments,23/07/2020,6376263,1774.8,VENDOR,ADMIRAL CARE LTD,138025
Portsmouth City Council,PCC,Adult Social Care,Physical Support Older People (85+),Adult Services,Third Party Payments,Other establishments,23/07/2020,6376263,487.2,VENDOR,ADMIRAL CARE LTD,138025
Portsmouth City Council,PCC,Adult Social Care,Physical Support Older People (85+),Adult Services,Third Party Payments,Other establishments,23/07/2020,6376263,461.1,VENDOR,ADMIRAL CARE LTD,138025
Portsmouth City Council,PCC,Adult Social Care,Physical Support Older People (85+),Adult Services,Third Party Payments,Other establishments,23/07/2020,6376263,609,VENDOR,ADMIRAL CARE LTD,138025
Portsmouth City Council,PCC,Adult Social Care,Physical Support Older People (85+),Adult Services,Third Party Payments,Other establishments,23/07/2020,6376263,696,VENDOR,ADMIRAL CARE LTD,138025
Portsmouth City Council,PCC,Adult Social Care,Physical Support Older People (85+),Adult Services,Third Party Payments,Other establishments,23/07/2020,6376263,696,VENDOR,ADMIRAL CARE LTD,138025
Portsmouth City Council,PCC,Adult Social Care,Physical Support Older People (65-74),Adult Services,Supplies and Services,"Equipment, furniture and materials",28/07/2020,6376708,684.11,VENDOR,ADMIRAL CLEANING SUPPLIES LTD,146161
Portsmouth City Council,PCC,Adult Social Care,Learning Disability Support  Adults (18 - 64),Adult Services,Third Party Payments,Other establishments,10/07/2020,6374238,7440.31,VENDOR,AFFINITY TRUST LTD,135643
Portsmouth City Council,PCC,Adult Social Care,Learning Disability Support  Adults (18 - 64),Adult Services,Third Party Payments,Other establishments,10/07/2020,6374238,9376.26,VENDOR,AFFINITY TRUST LTD,135643
Portsmouth City Council,PCC,Adult Social Care,Learning Disability Support  Adults (18 - 64),Adult Services,Third Party Payments,Other establishments,10/07/2020,6374238,7359.09,VENDOR,AFFINITY TRUST LTD,135643
Portsmouth City Council,PCC,Adult Social Care,Learning Disability Support  Adults (18 - 64),Adult Services,Third Party Payments,Other establishments,10/07/2020,6374238,6873.94,VENDOR,AFFINITY TRUST LTD,135643
Portsmouth City Council,PCC,Adult Social Care,Learning Disability Support  Adults (18 - 64),Adult Services,Third Party Payments,Other establishments,10/07/2020,6374238,8817.02,VENDOR,AFFINITY TRUST LTD,135643
Portsmouth City Council,PCC,Adult Social Care,Learning Disability Support  Adults (18 - 64),Adult Services,Third Party Payments,Other establishments,10/07/2020,6374238,9376.26,VENDOR,AFFINITY TRUST LTD,135643
Portsmouth City Council,PCC,Adult Social Care,Learning Disability Support  Adults (18 - 64),Adult Services,Third Party Payments,Other establishments,10/07/2020,6374238,7189.83,VENDOR,AFFINITY TRUST LTD,135643
Portsmouth City Council,PCC,Adult Social Care,Physical Support Older People (85+),Adult Services,Third Party Payments,Other establishments,14/07/2020,6374538,3744.6,VENDOR,AGINCARE UK,134367
Portsmouth City Council,PCC,Adult Social Care,Physical Support Older People (85+),Adult Services,Third Party Payments,Other establishments,10/07/2020,6374239,2896.64,VENDOR,AGINCARE UK,134367
Portsmouth City Council,PCC,Adult Social Care,Learning Disability Support  Adults (18 - 64),Adult Services,Third Party Payments,Other establishments,10/07/2020,6374240,7687.69,VENDOR,AITCH CARE HOMES (LONDON) LIMITED,125606
Portsmouth City Council,PCC,Adult Social Care,Learning Disability Support  Adults (18 - 64),Adult Services,Third Party Payments,Other establishments,10/07/2020,6374240,8018.77,VENDOR,AITCH CARE HOMES (LONDON) LIMITED,125606
Portsmouth City Council,PCC,Adult Social Care,Learning Disability Support  Adults (18 - 64),Adult Services,Third Party Payments,Other establishments,10/07/2020,6374240,8753.78,VENDOR,AITCH CARE HOMES (LONDON) LIMITED,125606
Portsmouth City Council,PCC,Adult Social Care,Social Care Activities,Adult Services,Third Party Payments,Other establishments,23/07/2020,6376264,5741.51,VENDOR,ALBANY CARE (PORTCHESTER) LIMITED,146887
Portsmouth City Council,PCC,Adult Social Care,Learning Disability Support  Adults (18 - 64),Adult Services,Third Party Payments,Other establishments,10/07/2020,6374241,6956.09,VENDOR,ALBANY FARM CARE (HAMPSHIRE) LTD,140215
Portsmouth City Council,PCC,Adult Social Care,Mental Health Support Adults (18 - 64),Adult Services,Third Party Payments,Other establishments,10/07/2020,6374241,2739.16,VENDOR,ALBANY FARM CARE (HAMPSHIRE) LTD,140215
Portsmouth City Council,PCC,Adult Social Care,Assistive Equipment & Technology,Adult Services,Premises-Related Expenditure,"Repairs, alterations and maintenance of buildings",20/07/2020,6375406,423,SOLETRADER,ALC BUILDING SERVICES,117194
Portsmouth City Council,PCC,Adult Social Care,Assistive Equipment & Technology,Adult Services,Premises-Related Expenditure,"Repairs, alterations and maintenance of buildings",20/07/2020,6375406,60,SOLETRADER,ALC BUILDING SERVICES,117194
Portsmouth City Council,PCC,Adult Social Care,Support with Memory and Cognition Older People (85+),Adult Services,Third Party Payments,Other establishments,10/07/2020,6374242,4340,VENDOR,ALEXANDRA ROSE RESIDENTIAL CARE HOME,101952
Portsmouth City Council,PCC,Adult Social Care,Support with Memory and Cognition Older People (85+),Adult Services,Third Party Payments,Other establishments,10/07/2020,6374242,4118.66,VENDOR,ALEXANDRA ROSE RESIDENTIAL CARE HOME,101952
Portsmouth City Council,PCC,Adult Social Care,Support with Memory and Cognition Older People (85+),Adult Services,Third Party Payments,Other establishments,10/07/2020,6374242,1271.31,VENDOR,ALEXANDRA ROSE RESIDENTIAL CARE HOME,101952
Portsmouth City Council,PCC,Adult Social Care,Learning Disability Support  Adults (18 - 64),Adult Services,Third Party Payments,Other establishments,10/07/2020,6374243,4404.48,VENDOR,ALLIED CARE LTD,123734
Portsmouth City Council,PCC,Adult Social Care,Learning Disability Support  Adults (18 - 64),Adult Services,Third Party Payments,Other establishments,13/07/2020,6374398,4498.72,VENDOR,ALLIED CARE LTD,123734
Portsmouth City Council,PCC,Adult Social Care,Learning Disability Support  Adults (18 - 64),Adult Services,Third Party Payments,Other establishments,13/07/2020,6374399,6453.27,VENDOR,ALLIED CARE LTD,123734
Portsmouth City Council,PCC,Adult Social Care,Learning Disability Support  Adults (18 - 64),Adult Services,Third Party Payments,Other establishments,24/07/2020,6376397,1309.84,VENDOR,ALLIED CARE LTD,123734
Portsmouth City Council,PCC,Adult Social Care,Learning Disability Support  Adults (18 - 64),Adult Services,Transport-Related Expenditure,Direct transport costs,15/07/2020,6374670,408.68,VENDOR,ALLSTAR BUSINESS SOLUTIONS LTD,135770
Portsmouth City Council,PCC,Adult Social Care,Learning Disability Support  Adults (18 - 64),Adult Services,Transport-Related Expenditure,Direct transport costs,15/07/2020,6374670,444.54,VENDOR,ALLSTAR BUSINESS SOLUTIONS LTD,135770
Portsmouth City Council,PCC,Adult Social Care,Learning Disability Support  Adults (18 - 64),Adult Services,Transport-Related Expenditure,Direct transport costs,15/07/2020,6374670,-74.1,VENDOR,ALLSTAR BUSINESS SOLUTIONS LTD,135770
Portsmouth City Council,PCC,Adult Social Care,Support with Memory and Cognition Older People (85+),Adult Services,Third Party Payments,Other establishments,10/07/2020,6374244,2861.3,VENDOR,ALTON HOUSE PARTNERSHIP,119112
Portsmouth City Council,PCC,Adult Social Care,Support with Memory and Cognition Older People (85+),Adult Services,Third Party Payments,Other establishments,10/07/2020,6374244,2861.3,VENDOR,ALTON HOUSE PARTNERSHIP,119112
Portsmouth City Council,PCC,Adult Social Care,Support with Memory and Cognition Older People (85+),Adult Services,Third Party Payments,Other establishments,10/07/2020,6374244,2861.3,VENDOR,ALTON HOUSE PARTNERSHIP,119112
Portsmouth City Council,PCC,Adult Social Care,Physical Support Adults (18 - 64),Adult Services,Third Party Payments,Other establishments,10/07/2020,6374245,3454.33,VENDOR,ALTON MANOR CARE HOME,130289
Portsmouth City Council,PCC,Adult Social Care,Physical Support Adults (18 - 64),Adult Services,Third Party Payments,Other establishments,10/07/2020,6374245,891.44,VENDOR,ALTON MANOR CARE HOME,130289
Portsmouth City Council,PCC,Adult Social Care,Support with Memory and Cognition Older People (85+),Adult Services,Third Party Payments,Other establishments,10/07/2020,6374245,2338.64,VENDOR,ALTON MANOR CARE HOME,130289
Portsmouth City Council,PCC,Adult Social Care,Support with Memory and Cognition Older People (85+),Adult Services,Third Party Payments,Other establishments,10/07/2020,6374245,2338.64,VENDOR,ALTON MANOR CARE HOME,130289
Portsmouth City Council,PCC,Adult Social Care,Support with Memory and Cognition Older People (85+),Adult Services,Third Party Payments,Other establishments,10/07/2020,6374245,2338.64,VENDOR,ALTON MANOR CARE HOME,130289
Portsmouth City Council,PCC,Adult Social Care,Support with Memory and Cognition Older People (85+),Adult Services,Third Party Payments,Other establishments,10/07/2020,6374245,2574.86,VENDOR,ALTON MANOR CARE HOME,130289
Portsmouth City Council,PCC,Adult Social Care,Support with Memory and Cognition Older People (85+),Adult Services,Third Party Payments,Other establishments,10/07/2020,6374245,2338.64,VENDOR,ALTON MANOR CARE HOME,130289
Portsmouth City Council,PCC,Adult Social Care,Support with Memory and Cognition Older People (85+),Adult Services,Third Party Payments,Other establishments,10/07/2020,6374245,2484.34,VENDOR,ALTON MANOR CARE HOME,130289
Portsmouth City Council,PCC,Adult Social Care,Support with Memory and Cognition Older People (85+),Adult Services,Third Party Payments,Other establishments,10/07/2020,6374245,2338.64,VENDOR,ALTON MANOR CARE HOME,130289
Portsmouth City Council,PCC,Adult Social Care,Support with Memory and Cognition Older People (85+),Adult Services,Third Party Payments,Other establishments,10/07/2020,6374245,2338.64,VENDOR,ALTON MANOR CARE HOME,130289
Portsmouth City Council,PCC,Adult Social Care,Support with Memory and Cognition Older People (85+),Adult Services,Third Party Payments,Other establishments,10/07/2020,6374245,2338.64,VENDOR,ALTON MANOR CARE HOME,130289
Portsmouth City Council,PCC,Adult Social Care,Support with Memory and Cognition Older People (85+),Adult Services,Third Party Payments,Other establishments,10/07/2020,6374245,2338.64,VENDOR,ALTON MANOR CARE HOME,130289
Portsmouth City Council,PCC,Adult Social Care,Support with Memory and Cognition Older People (85+),Adult Services,Third Party Payments,Other establishments,10/07/2020,6374245,3100,VENDOR,ALTON MANOR CARE HOME,130289
Portsmouth City Council,PCC,Adult Social Care,Support with Memory and Cognition Older People (85+),Adult Services,Third Party Payments,Other establishments,10/07/2020,6374245,2878.66,VENDOR,ALTON MANOR CARE HOME,130289
Portsmouth City Council,PCC,Adult Social Care,Support with Memory and Cognition Older People (85+),Adult Services,Third Party Payments,Other establishments,10/07/2020,6374245,3162,VENDOR,ALTON MANOR CARE HOME,130289
Portsmouth City Council,PCC,Adult Social Care,Support with Memory and Cognition Older People (85+),Adult Services,Third Party Payments,Other establishments,10/07/2020,6374245,2338.64,VENDOR,ALTON MANOR CARE HOME,130289
Portsmouth City Council,PCC,Adult Social Care,Support with Memory and Cognition Older People (85+),Adult Services,Third Party Payments,Other establishments,10/07/2020,6374245,2338.64,VENDOR,ALTON MANOR CARE HOME,130289
Portsmouth City Council,PCC,Adult Social Care,Mental Health Support Adults (18 - 64),Adult Services,Third Party Payments,Other establishments,10/07/2020,6374245,2201.31,VENDOR,ALTON MANOR CARE HOME,130289
Portsmouth City Council,PCC,Adult Social Care,Support with Memory and Cognition Older People (85+),Adult Services,Third Party Payments,Other establishments,10/07/2020,6374246,2385.14,VENDOR,ANEXAS CARE LTD,146269
Portsmouth City Council,PCC,Adult Social Care,Information and Early Intervention,Adult Services,Third Party Payments,Other establishments,28/07/2020,6376710,21846,VENDOR,APETITO LTD,100127
Portsmouth City Council,PCC,Adult Social Care,Information and Early Intervention,Adult Services,Third Party Payments,Other establishments,28/07/2020,6376710,1586,VENDOR,APETITO LTD,100127
Portsmouth City Council,PCC,Adult Social Care,Information and Early Intervention,Adult Services,Income,Customer and client receipts,28/07/2020,6376710,-21846,VENDOR,APETITO LTD,100127
Portsmouth City Council,PCC,Adult Social Care,Information and Early Intervention,Adult Services,Income,Customer and client receipts,28/07/2020,6376710,-1586,VENDOR,APETITO LTD,100127
Portsmouth City Council,PCC,Adult Social Care,Social Care Activities,Adult Services,Third Party Payments,Other establishments,21/07/2020,6375640,382.8,VENDOR,APEX PROPERTY VENTURES LTD,108437
Portsmouth City Council,PCC,Adult Social Care,Social Care Activities,Adult Services,Third Party Payments,Other establishments,21/07/2020,6375640,382.8,VENDOR,APEX PROPERTY VENTURES LTD,108437
Portsmouth City Council,PCC,Adult Social Care,Social Care Activities,Adult Services,Third Party Payments,Other establishments,21/07/2020,6375640,600.3,VENDOR,APEX PROPERTY VENTURES LTD,108437
Portsmouth City Council,PCC,Adult Social Care,Social Care Activities,Adult Services,Third Party Payments,Other establishments,21/07/2020,6375640,417.6,VENDOR,APEX PROPERTY VENTURES LTD,108437
Portsmouth City Council,PCC,Adult Social Care,Social Care Activities,Adult Services,Third Party Payments,Other establishments,21/07/2020,6375640,665.55,VENDOR,APEX PROPERTY VENTURES LTD,108437
Portsmouth City Council,PCC,Adult Social Care,Social Care Activities,Adult Services,Third Party Payments,Other establishments,21/07/2020,6375640,174,VENDOR,APEX PROPERTY VENTURES LTD,108437
Portsmouth City Council,PCC,Other,Suspense and Capital Schemes,Capital - Traffic & Transportation,Capital Charges,Capital Expenditure (WIP),08/07/2020,6373826,2578.5,VENDOR,PLEYDELL TECHNOLOGY CONSULTING LTD,144609
Portsmouth City Council,PCC,Other,Suspense and Capital Schemes,Capital - Traffic & Transportation,Capital Charges,Capital Expenditure (WIP),08/07/2020,6373826,3263.1,VENDOR,PLEYDELL TECHNOLOGY CONSULTING LTD,144609
Portsmouth City Council,PCC,Cultural and Related Services,Open Spaces,"Culture, Leisure & Regulatory Services",Premises-Related Expenditure,Grounds maintenance costs,09/07/2020,6374083,477,VENDOR,JET PRESS LTD T/A COMPONENTS DIRECT,106818
Portsmouth City Council,PCC,Cultural and Related Services,Open Spaces,"Culture, Leisure & Regulatory Services",Premises-Related Expenditure,Grounds maintenance costs,09/07/2020,6374083,95.4,VENDOR,JET PRESS LTD T/A COMPONENTS DIRECT,106818
Portsmouth City Council,PCC,Adult Social Care,Social Care Activities,Adult Services,Third Party Payments,Other establishments,21/07/2020,6375640,809.1,VENDOR,APEX PROPERTY VENTURES LTD,108437
Portsmouth City Council,PCC,Adult Social Care,Social Care Activities,Adult Services,Third Party Payments,Other establishments,21/07/2020,6375640,243.6,VENDOR,APEX PROPERTY VENTURES LTD,108437
Portsmouth City Council,PCC,Adult Social Care,Social Care Activities,Adult Services,Third Party Payments,Other establishments,21/07/2020,6375640,487.2,VENDOR,APEX PROPERTY VENTURES LTD,108437
Portsmouth City Council,PCC,Adult Social Care,Social Care Activities,Adult Services,Third Party Payments,Other establishments,21/07/2020,6375640,34.8,VENDOR,APEX PROPERTY VENTURES LTD,108437
Portsmouth City Council,PCC,Costs below Net Cost of Services,Trading,Finance & Resources,Supplies and Services,Miscellaneous expenses,21/07/2020,6375771,210,VENDOR,WEIGHTMANS LLP,127719
Portsmouth City Council,PCC,Costs below Net Cost of Services,Trading,Finance & Resources,Supplies and Services,Miscellaneous expenses,21/07/2020,6375771,4396,VENDOR,WEIGHTMANS LLP,127719
Portsmouth City Council,PCC,Children's and Education Services,Children Looked After,Children's Services and Education,Third Party Payments,Other establishments,02/07/2020,6372897,17000,VENDOR,ADVANCED ADOLESCENT CARE SOLUTIONS LTD,145305
Portsmouth City Council,PCC,Children's and Education Services,Children Looked After,Children's Services and Education,Third Party Payments,Other establishments,02/07/2020,6372897,11000,VENDOR,ADVANCED ADOLESCENT CARE SOLUTIONS LTD,145305
Portsmouth City Council,PCC,Adult Social Care,Social Care Activities,Adult Services,Third Party Payments,Other establishments,21/07/2020,6375640,487.2,VENDOR,APEX PROPERTY VENTURES LTD,108437
Portsmouth City Council,PCC,Adult Social Care,Social Care Activities,Adult Services,Third Party Payments,Other establishments,21/07/2020,6375640,487.2,VENDOR,APEX PROPERTY VENTURES LTD,108437
Portsmouth City Council,PCC,Adult Social Care,Social Care Activities,Adult Services,Third Party Payments,Other establishments,21/07/2020,6375640,835.2,VENDOR,APEX PROPERTY VENTURES LTD,108437
Portsmouth City Council,PCC,Adult Social Care,Social Care Activities,Adult Services,Third Party Payments,Other establishments,21/07/2020,6375640,974.4,VENDOR,APEX PROPERTY VENTURES LTD,108437
Portsmouth City Council,PCC,Adult Social Care,Social Care Activities,Adult Services,Third Party Payments,Other establishments,21/07/2020,6375640,226.2,VENDOR,APEX PROPERTY VENTURES LTD,108437
Portsmouth City Council,PCC,Adult Social Care,Social Care Activities,Adult Services,Third Party Payments,Other establishments,21/07/2020,6375640,69.6,VENDOR,APEX PROPERTY VENTURES LTD,108437
Portsmouth City Council,PCC,Adult Social Care,Social Care Activities,Adult Services,Third Party Payments,Other establishments,21/07/2020,6375640,1096.2,VENDOR,APEX PROPERTY VENTURES LTD,108437
Portsmouth City Council,PCC,Adult Social Care,Social Care Activities,Adult Services,Third Party Payments,Other establishments,21/07/2020,6375640,26.1,VENDOR,APEX PROPERTY VENTURES LTD,108437
Portsmouth City Council,PCC,Adult Social Care,Social Care Activities,Adult Services,Third Party Payments,Other establishments,21/07/2020,6375640,1096.2,VENDOR,APEX PROPERTY VENTURES LTD,108437
Portsmouth City Council,PCC,Adult Social Care,Social Care Activities,Adult Services,Third Party Payments,Other establishments,21/07/2020,6375640,1096.2,VENDOR,APEX PROPERTY VENTURES LTD,108437
Portsmouth City Council,PCC,Adult Social Care,Social Care Activities,Adult Services,Third Party Payments,Other establishments,21/07/2020,6375640,243.6,VENDOR,APEX PROPERTY VENTURES LTD,108437
Portsmouth City Council,PCC,Adult Social Care,Social Care Activities,Adult Services,Third Party Payments,Other establishments,21/07/2020,6375640,487.2,VENDOR,APEX PROPERTY VENTURES LTD,108437
Portsmouth City Council,PCC,Adult Social Care,Social Care Activities,Adult Services,Third Party Payments,Other establishments,21/07/2020,6375640,34.8,VENDOR,APEX PROPERTY VENTURES LTD,108437
Portsmouth City Council,PCC,Adult Social Care,Social Care Activities,Adult Services,Third Party Payments,Other establishments,21/07/2020,6375640,730.8,VENDOR,APEX PROPERTY VENTURES LTD,108437
Portsmouth City Council,PCC,Adult Social Care,Social Care Activities,Adult Services,Third Party Payments,Other establishments,21/07/2020,6375640,361.05,VENDOR,APEX PROPERTY VENTURES LTD,108437
Portsmouth City Council,PCC,Adult Social Care,Social Care Activities,Adult Services,Third Party Payments,Other establishments,21/07/2020,6375640,730.8,VENDOR,APEX PROPERTY VENTURES LTD,108437
Portsmouth City Council,PCC,Adult Social Care,Social Care Activities,Adult Services,Third Party Payments,Other establishments,21/07/2020,6375640,243.6,VENDOR,APEX PROPERTY VENTURES LTD,108437
Portsmouth City Council,PCC,Adult Social Care,Social Care Activities,Adult Services,Third Party Payments,Other establishments,21/07/2020,6375640,609,VENDOR,APEX PROPERTY VENTURES LTD,108437
Portsmouth City Council,PCC,Adult Social Care,Social Care Activities,Adult Services,Third Party Payments,Other establishments,21/07/2020,6375640,365.4,VENDOR,APEX PROPERTY VENTURES LTD,108437
Portsmouth City Council,PCC,Adult Social Care,Social Care Activities,Adult Services,Third Party Payments,Other establishments,21/07/2020,6375640,104.4,VENDOR,APEX PROPERTY VENTURES LTD,108437
Portsmouth City Council,PCC,Adult Social Care,Social Care Activities,Adult Services,Third Party Payments,Other establishments,21/07/2020,6375640,139.2,VENDOR,APEX PROPERTY VENTURES LTD,108437
Portsmouth City Council,PCC,Adult Social Care,Social Care Activities,Adult Services,Third Party Payments,Other establishments,21/07/2020,6375640,783,VENDOR,APEX PROPERTY VENTURES LTD,108437
Portsmouth City Council,PCC,Adult Social Care,Social Care Activities,Adult Services,Third Party Payments,Other establishments,21/07/2020,6375640,539.4,VENDOR,APEX PROPERTY VENTURES LTD,108437
Portsmouth City Council,PCC,Adult Social Care,Social Care Activities,Adult Services,Third Party Payments,Other establishments,21/07/2020,6375640,487.2,VENDOR,APEX PROPERTY VENTURES LTD,108437
Portsmouth City Council,PCC,Adult Social Care,Social Care Activities,Adult Services,Third Party Payments,Other establishments,21/07/2020,6375640,765.6,VENDOR,APEX PROPERTY VENTURES LTD,108437
Portsmouth City Council,PCC,Adult Social Care,Social Care Activities,Adult Services,Third Party Payments,Other establishments,21/07/2020,6375640,974.4,VENDOR,APEX PROPERTY VENTURES LTD,108437
Portsmouth City Council,PCC,Adult Social Care,Social Care Activities,Adult Services,Third Party Payments,Other establishments,21/07/2020,6375640,852.6,VENDOR,APEX PROPERTY VENTURES LTD,108437
Portsmouth City Council,PCC,Children's and Education Services,Children Looked After,Children's Services and Education,Third Party Payments,Other establishments,21/07/2020,6375775,28000,VENDOR,ADVANCED ADOLESCENT CARE SOLUTIONS LTD,145305
Portsmouth City Council,PCC,Children's and Education Services,Children Looked After,Children's Services and Education,Third Party Payments,Other establishments,28/07/2020,6376709,28000,VENDOR,ADVANCED ADOLESCENT CARE SOLUTIONS LTD,145305
Portsmouth City Council,PCC,Highways and Transport Services,Parking Services,Regeneration,Supplies and Services,"Equipment, furniture and materials",01/07/2020,6372549,1054.07,VENDOR,EASY NETWORKS LTD,100142
Portsmouth City Council,PCC,Highways and Transport Services,Parking Services,Regeneration,Supplies and Services,"Equipment, furniture and materials",01/07/2020,6372549,263.52,VENDOR,EASY NETWORKS LTD,100142
Portsmouth City Council,PCC,Other,Suspense and Capital Schemes,"Housing, Neighbourhood and Building Services",Premises-Related Expenditure,"Repairs, alterations and maintenance of buildings",23/07/2020,6376360,960.38,COMPANY,SSE CONTRACTING LTD,101806
Portsmouth City Council,PCC,Other,Suspense and Capital Schemes,"Housing, Neighbourhood and Building Services",Premises-Related Expenditure,"Repairs, alterations and maintenance of buildings",24/07/2020,6376544,10541.77,COMPANY,SSE CONTRACTING LTD,101806
Portsmouth City Council,PCC,Adult Social Care,Social Care Activities,Adult Services,Third Party Payments,Other establishments,21/07/2020,6375640,261,VENDOR,APEX PROPERTY VENTURES LTD,108437
Portsmouth City Council,PCC,Adult Social Care,Social Care Activities,Adult Services,Third Party Payments,Other establishments,21/07/2020,6375640,4.35,VENDOR,APEX PROPERTY VENTURES LTD,108437
Portsmouth City Council,PCC,Adult Social Care,Social Care Activities,Adult Services,Third Party Payments,Other establishments,21/07/2020,6375640,117.45,VENDOR,APEX PROPERTY VENTURES LTD,108437
Portsmouth City Council,PCC,Adult Social Care,Social Care Activities,Adult Services,Third Party Payments,Other establishments,21/07/2020,6375640,226.2,VENDOR,APEX PROPERTY VENTURES LTD,108437
Portsmouth City Council,PCC,Adult Social Care,Social Care Activities,Adult Services,Third Party Payments,Other establishments,21/07/2020,6375640,835.2,VENDOR,APEX PROPERTY VENTURES LTD,108437
Portsmouth City Council,PCC,Adult Social Care,Social Care Activities,Adult Services,Third Party Payments,Other establishments,21/07/2020,6375640,174,VENDOR,APEX PROPERTY VENTURES LTD,108437
Portsmouth City Council,PCC,Adult Social Care,Social Care Activities,Adult Services,Third Party Payments,Other establishments,21/07/2020,6375640,243.6,VENDOR,APEX PROPERTY VENTURES LTD,108437
Portsmouth City Council,PCC,Adult Social Care,Social Care Activities,Adult Services,Third Party Payments,Other establishments,21/07/2020,6375640,139.2,VENDOR,APEX PROPERTY VENTURES LTD,108437
Portsmouth City Council,PCC,Adult Social Care,Social Care Activities,Adult Services,Third Party Payments,Other establishments,21/07/2020,6375640,121.8,VENDOR,APEX PROPERTY VENTURES LTD,108437
Portsmouth City Council,PCC,Adult Social Care,Social Care Activities,Adult Services,Third Party Payments,Other establishments,21/07/2020,6375640,121.8,VENDOR,APEX PROPERTY VENTURES LTD,108437
Portsmouth City Council,PCC,Adult Social Care,Mental Health Support Older People (65 - 74),Adult Services,Third Party Payments,Other establishments,21/07/2020,6375640,852.6,VENDOR,APEX PROPERTY VENTURES LTD,108437
Portsmouth City Council,PCC,Adult Social Care,Mental Health Support Older People (65 - 74),Adult Services,Third Party Payments,Other establishments,21/07/2020,6375640,348,VENDOR,APEX PROPERTY VENTURES LTD,108437
Portsmouth City Council,PCC,Adult Social Care,Mental Health Support Older People (65 - 74),Adult Services,Third Party Payments,Other establishments,21/07/2020,6375640,313.2,VENDOR,APEX PROPERTY VENTURES LTD,108437
Portsmouth City Council,PCC,Adult Social Care,Social Care Activities,Adult Services,Third Party Payments,Other establishments,21/07/2020,6375640,783,VENDOR,APEX PROPERTY VENTURES LTD,108437
Portsmouth City Council,PCC,Adult Social Care,Social Care Activities,Adult Services,Third Party Payments,Other establishments,21/07/2020,6375640,783,VENDOR,APEX PROPERTY VENTURES LTD,108437
Portsmouth City Council,PCC,Adult Social Care,Social Care Activities,Adult Services,Third Party Payments,Other establishments,21/07/2020,6375640,1096.2,VENDOR,APEX PROPERTY VENTURES LTD,108437
Portsmouth City Council,PCC,Adult Social Care,Social Care Activities,Adult Services,Third Party Payments,Other establishments,21/07/2020,6375640,1096.2,VENDOR,APEX PROPERTY VENTURES LTD,108437
Portsmouth City Council,PCC,Adult Social Care,Social Care Activities,Adult Services,Third Party Payments,Other establishments,21/07/2020,6375640,156.6,VENDOR,APEX PROPERTY VENTURES LTD,108437
Portsmouth City Council,PCC,Adult Social Care,Social Care Activities,Adult Services,Third Party Payments,Other establishments,21/07/2020,6375640,2175,VENDOR,APEX PROPERTY VENTURES LTD,108437
Portsmouth City Council,PCC,Adult Social Care,Social Care Activities,Adult Services,Third Party Payments,Other establishments,21/07/2020,6375640,1218,VENDOR,APEX PROPERTY VENTURES LTD,108437
Portsmouth City Council,PCC,Adult Social Care,Social Care Activities,Adult Services,Third Party Payments,Other establishments,21/07/2020,6375640,1218,VENDOR,APEX PROPERTY VENTURES LTD,108437
Portsmouth City Council,PCC,Adult Social Care,Physical Support Adults (18 - 64),Adult Services,Third Party Payments,Other establishments,21/07/2020,6375640,261,VENDOR,APEX PROPERTY VENTURES LTD,108437
Portsmouth City Council,PCC,Adult Social Care,Physical Support Adults (18 - 64),Adult Services,Third Party Payments,Other establishments,21/07/2020,6375640,239.25,VENDOR,APEX PROPERTY VENTURES LTD,108437
Portsmouth City Council,PCC,Adult Social Care,Physical Support Adults (18 - 64),Adult Services,Third Party Payments,Other establishments,21/07/2020,6375640,104.4,VENDOR,APEX PROPERTY VENTURES LTD,108437
Portsmouth City Council,PCC,Adult Social Care,Physical Support Adults (18 - 64),Adult Services,Third Party Payments,Other establishments,21/07/2020,6375640,104.4,VENDOR,APEX PROPERTY VENTURES LTD,108437
Portsmouth City Council,PCC,Adult Social Care,Physical Support Adults (18 - 64),Adult Services,Third Party Payments,Other establishments,21/07/2020,6375640,156.6,VENDOR,APEX PROPERTY VENTURES LTD,108437
Portsmouth City Council,PCC,Adult Social Care,Physical Support Adults (18 - 64),Adult Services,Third Party Payments,Other establishments,21/07/2020,6375640,730.8,VENDOR,APEX PROPERTY VENTURES LTD,108437
Portsmouth City Council,PCC,Adult Social Care,Physical Support Adults (18 - 64),Adult Services,Third Party Payments,Other establishments,21/07/2020,6375640,730.8,VENDOR,APEX PROPERTY VENTURES LTD,108437
Portsmouth City Council,PCC,Adult Social Care,Physical Support Adults (18 - 64),Adult Services,Third Party Payments,Other establishments,21/07/2020,6375640,487.2,VENDOR,APEX PROPERTY VENTURES LTD,108437
Portsmouth City Council,PCC,Adult Social Care,Physical Support Adults (18 - 64),Adult Services,Third Party Payments,Other establishments,21/07/2020,6375640,487.2,VENDOR,APEX PROPERTY VENTURES LTD,108437
Portsmouth City Council,PCC,Adult Social Care,Physical Support Adults (18 - 64),Adult Services,Third Party Payments,Other establishments,21/07/2020,6375640,487.2,VENDOR,APEX PROPERTY VENTURES LTD,108437
Portsmouth City Council,PCC,Adult Social Care,Physical Support Adults (18 - 64),Adult Services,Third Party Payments,Other establishments,21/07/2020,6375640,243.6,VENDOR,APEX PROPERTY VENTURES LTD,108437
Portsmouth City Council,PCC,Adult Social Care,Physical Support Adults (18 - 64),Adult Services,Third Party Payments,Other establishments,21/07/2020,6375640,174,VENDOR,APEX PROPERTY VENTURES LTD,108437
Portsmouth City Council,PCC,Adult Social Care,Physical Support Adults (18 - 64),Adult Services,Third Party Payments,Other establishments,21/07/2020,6375640,117.45,VENDOR,APEX PROPERTY VENTURES LTD,108437
Portsmouth City Council,PCC,Adult Social Care,Physical Support Adults (18 - 64),Adult Services,Third Party Payments,Other establishments,21/07/2020,6375640,487.2,VENDOR,APEX PROPERTY VENTURES LTD,108437
Portsmouth City Council,PCC,Adult Social Care,Physical Support Adults (18 - 64),Adult Services,Third Party Payments,Other establishments,21/07/2020,6375640,487.2,VENDOR,APEX PROPERTY VENTURES LTD,108437
Portsmouth City Council,PCC,Adult Social Care,Physical Support Older People (85+),Adult Services,Third Party Payments,Other establishments,21/07/2020,6375640,365.4,VENDOR,APEX PROPERTY VENTURES LTD,108437
Portsmouth City Council,PCC,Adult Social Care,Physical Support Older People (85+),Adult Services,Third Party Payments,Other establishments,21/07/2020,6375640,208.8,VENDOR,APEX PROPERTY VENTURES LTD,108437
Portsmouth City Council,PCC,Adult Social Care,Physical Support Older People (85+),Adult Services,Third Party Payments,Other establishments,21/07/2020,6375640,78.3,VENDOR,APEX PROPERTY VENTURES LTD,108437
Portsmouth City Council,PCC,Adult Social Care,Physical Support Older People (85+),Adult Services,Third Party Payments,Other establishments,21/07/2020,6375640,730.8,VENDOR,APEX PROPERTY VENTURES LTD,108437
Portsmouth City Council,PCC,Adult Social Care,Physical Support Older People (85+),Adult Services,Third Party Payments,Other establishments,21/07/2020,6375640,365.4,VENDOR,APEX PROPERTY VENTURES LTD,108437
Portsmouth City Council,PCC,Adult Social Care,Physical Support Older People (85+),Adult Services,Third Party Payments,Other establishments,21/07/2020,6375640,404.55,VENDOR,APEX PROPERTY VENTURES LTD,108437
Portsmouth City Council,PCC,Adult Social Care,Physical Support Older People (85+),Adult Services,Third Party Payments,Other establishments,21/07/2020,6375640,574.2,VENDOR,APEX PROPERTY VENTURES LTD,108437
Portsmouth City Council,PCC,Adult Social Care,Physical Support Older People (85+),Adult Services,Third Party Payments,Other establishments,21/07/2020,6375640,487.2,VENDOR,APEX PROPERTY VENTURES LTD,108437
Portsmouth City Council,PCC,Adult Social Care,Physical Support Older People (85+),Adult Services,Third Party Payments,Other establishments,21/07/2020,6375640,69.6,VENDOR,APEX PROPERTY VENTURES LTD,108437
Portsmouth City Council,PCC,Adult Social Care,Physical Support Older People (85+),Adult Services,Third Party Payments,Other establishments,21/07/2020,6375640,730.8,VENDOR,APEX PROPERTY VENTURES LTD,108437
Portsmouth City Council,PCC,Adult Social Care,Physical Support Older People (85+),Adult Services,Third Party Payments,Other establishments,21/07/2020,6375640,609,VENDOR,APEX PROPERTY VENTURES LTD,108437
Portsmouth City Council,PCC,Adult Social Care,Physical Support Older People (85+),Adult Services,Third Party Payments,Other establishments,21/07/2020,6375640,609,VENDOR,APEX PROPERTY VENTURES LTD,108437
Portsmouth City Council,PCC,Adult Social Care,Physical Support Older People (85+),Adult Services,Third Party Payments,Other establishments,21/07/2020,6375640,1096.2,VENDOR,APEX PROPERTY VENTURES LTD,108437
Portsmouth City Council,PCC,Adult Social Care,Physical Support Older People (85+),Adult Services,Third Party Payments,Other establishments,21/07/2020,6375640,1096.2,VENDOR,APEX PROPERTY VENTURES LTD,108437
Portsmouth City Council,PCC,Adult Social Care,Physical Support Older People (85+),Adult Services,Third Party Payments,Other establishments,21/07/2020,6375640,974.4,VENDOR,APEX PROPERTY VENTURES LTD,108437
Portsmouth City Council,PCC,Adult Social Care,Physical Support Older People (85+),Adult Services,Third Party Payments,Other establishments,21/07/2020,6375640,974.4,VENDOR,APEX PROPERTY VENTURES LTD,108437
Portsmouth City Council,PCC,Adult Social Care,Physical Support Older People (85+),Adult Services,Third Party Payments,Other establishments,21/07/2020,6375640,65.25,VENDOR,APEX PROPERTY VENTURES LTD,108437
Portsmouth City Council,PCC,Adult Social Care,Physical Support Older People (85+),Adult Services,Third Party Payments,Other establishments,21/07/2020,6375640,365.4,VENDOR,APEX PROPERTY VENTURES LTD,108437
Portsmouth City Council,PCC,Adult Social Care,Physical Support Older People (85+),Adult Services,Third Party Payments,Other establishments,21/07/2020,6375640,730.8,VENDOR,APEX PROPERTY VENTURES LTD,108437
Portsmouth City Council,PCC,Adult Social Care,Physical Support Older People (85+),Adult Services,Third Party Payments,Other establishments,21/07/2020,6375640,243.6,VENDOR,APEX PROPERTY VENTURES LTD,108437
Portsmouth City Council,PCC,Adult Social Care,Physical Support Older People (85+),Adult Services,Third Party Payments,Other establishments,21/07/2020,6375640,156.6,VENDOR,APEX PROPERTY VENTURES LTD,108437
Portsmouth City Council,PCC,Adult Social Care,Physical Support Older People (85+),Adult Services,Third Party Payments,Other establishments,21/07/2020,6375640,17.4,VENDOR,APEX PROPERTY VENTURES LTD,108437
Portsmouth City Council,PCC,Adult Social Care,Physical Support Older People (85+),Adult Services,Third Party Payments,Other establishments,21/07/2020,6375640,730.8,VENDOR,APEX PROPERTY VENTURES LTD,108437
Portsmouth City Council,PCC,Adult Social Care,Physical Support Older People (85+),Adult Services,Third Party Payments,Other establishments,21/07/2020,6375640,730.8,VENDOR,APEX PROPERTY VENTURES LTD,108437
Portsmouth City Council,PCC,Adult Social Care,Physical Support Older People (85+),Adult Services,Third Party Payments,Other establishments,21/07/2020,6375640,139.2,VENDOR,APEX PROPERTY VENTURES LTD,108437
Portsmouth City Council,PCC,Adult Social Care,Physical Support Older People (85+),Adult Services,Third Party Payments,Other establishments,21/07/2020,6375640,817.8,VENDOR,APEX PROPERTY VENTURES LTD,108437
Portsmouth City Council,PCC,Adult Social Care,Physical Support Older People (85+),Adult Services,Third Party Payments,Other establishments,21/07/2020,6375640,461.1,VENDOR,APEX PROPERTY VENTURES LTD,108437
Portsmouth City Council,PCC,Adult Social Care,Physical Support Older People (85+),Adult Services,Third Party Payments,Other establishments,21/07/2020,6375640,730.8,VENDOR,APEX PROPERTY VENTURES LTD,108437
Portsmouth City Council,PCC,Adult Social Care,Physical Support Older People (85+),Adult Services,Third Party Payments,Other establishments,21/07/2020,6375640,243.6,VENDOR,APEX PROPERTY VENTURES LTD,108437
Portsmouth City Council,PCC,Adult Social Care,Physical Support Older People (85+),Adult Services,Third Party Payments,Other establishments,21/07/2020,6375640,417.6,VENDOR,APEX PROPERTY VENTURES LTD,108437
Portsmouth City Council,PCC,Adult Social Care,Physical Support Older People (85+),Adult Services,Third Party Payments,Other establishments,21/07/2020,6375640,852.6,VENDOR,APEX PROPERTY VENTURES LTD,108437
Portsmouth City Council,PCC,Adult Social Care,Physical Support Older People (85+),Adult Services,Third Party Payments,Other establishments,21/07/2020,6375640,852.6,VENDOR,APEX PROPERTY VENTURES LTD,108437
Portsmouth City Council,PCC,Adult Social Care,Physical Support Older People (85+),Adult Services,Third Party Payments,Other establishments,21/07/2020,6375640,1218,VENDOR,APEX PROPERTY VENTURES LTD,108437
Portsmouth City Council,PCC,Adult Social Care,Physical Support Older People (85+),Adult Services,Third Party Payments,Other establishments,21/07/2020,6375640,1218,VENDOR,APEX PROPERTY VENTURES LTD,108437
Portsmouth City Council,PCC,Adult Social Care,Physical Support Older People (85+),Adult Services,Third Party Payments,Other establishments,21/07/2020,6375640,139.2,VENDOR,APEX PROPERTY VENTURES LTD,108437
Portsmouth City Council,PCC,Adult Social Care,Physical Support Older People (85+),Adult Services,Third Party Payments,Other establishments,21/07/2020,6375640,174,VENDOR,APEX PROPERTY VENTURES LTD,108437
Portsmouth City Council,PCC,Adult Social Care,Physical Support Older People (85+),Adult Services,Third Party Payments,Other establishments,21/07/2020,6375640,730.8,VENDOR,APEX PROPERTY VENTURES LTD,108437
Portsmouth City Council,PCC,Adult Social Care,Physical Support Older People (85+),Adult Services,Third Party Payments,Other establishments,21/07/2020,6375640,208.8,VENDOR,APEX PROPERTY VENTURES LTD,108437
Portsmouth City Council,PCC,Adult Social Care,Physical Support Older People (85+),Adult Services,Third Party Payments,Other establishments,21/07/2020,6375640,261,VENDOR,APEX PROPERTY VENTURES LTD,108437
Portsmouth City Council,PCC,Adult Social Care,Physical Support Older People (85+),Adult Services,Third Party Payments,Other establishments,21/07/2020,6375640,565.5,VENDOR,APEX PROPERTY VENTURES LTD,108437
Portsmouth City Council,PCC,Adult Social Care,Physical Support Older People (85+),Adult Services,Third Party Payments,Other establishments,21/07/2020,6375640,156.6,VENDOR,APEX PROPERTY VENTURES LTD,108437
Portsmouth City Council,PCC,Adult Social Care,Physical Support Older People (85+),Adult Services,Third Party Payments,Other establishments,21/07/2020,6375640,730.8,VENDOR,APEX PROPERTY VENTURES LTD,108437
Portsmouth City Council,PCC,Adult Social Care,Physical Support Older People (85+),Adult Services,Third Party Payments,Other establishments,21/07/2020,6375640,852.6,VENDOR,APEX PROPERTY VENTURES LTD,108437
Portsmouth City Council,PCC,Adult Social Care,Physical Support Older People (85+),Adult Services,Third Party Payments,Other establishments,21/07/2020,6375640,852.6,VENDOR,APEX PROPERTY VENTURES LTD,108437
Portsmouth City Council,PCC,Adult Social Care,Physical Support Older People (85+),Adult Services,Third Party Payments,Other establishments,21/07/2020,6375640,722.1,VENDOR,APEX PROPERTY VENTURES LTD,108437
Portsmouth City Council,PCC,Adult Social Care,Physical Support Older People (85+),Adult Services,Third Party Payments,Other establishments,21/07/2020,6375640,1131,VENDOR,APEX PROPERTY VENTURES LTD,108437
Portsmouth City Council,PCC,Adult Social Care,Physical Support Older People (85+),Adult Services,Third Party Payments,Other establishments,21/07/2020,6375640,139.2,VENDOR,APEX PROPERTY VENTURES LTD,108437
Portsmouth City Council,PCC,Adult Social Care,Physical Support Older People (85+),Adult Services,Third Party Payments,Other establishments,21/07/2020,6375640,69.6,VENDOR,APEX PROPERTY VENTURES LTD,108437
Portsmouth City Council,PCC,Adult Social Care,Physical Support Older People (85+),Adult Services,Third Party Payments,Other establishments,21/07/2020,6375640,852.6,VENDOR,APEX PROPERTY VENTURES LTD,108437
Portsmouth City Council,PCC,Adult Social Care,Physical Support Older People (85+),Adult Services,Third Party Payments,Other establishments,21/07/2020,6375640,852.6,VENDOR,APEX PROPERTY VENTURES LTD,108437
Portsmouth City Council,PCC,Adult Social Care,Physical Support Older People (85+),Adult Services,Third Party Payments,Other establishments,21/07/2020,6375640,69.6,VENDOR,APEX PROPERTY VENTURES LTD,108437
Portsmouth City Council,PCC,Adult Social Care,Physical Support Older People (85+),Adult Services,Third Party Payments,Other establishments,21/07/2020,6375640,243.6,VENDOR,APEX PROPERTY VENTURES LTD,108437
Portsmouth City Council,PCC,Adult Social Care,Physical Support Older People (85+),Adult Services,Third Party Payments,Other establishments,21/07/2020,6375640,1209.3,VENDOR,APEX PROPERTY VENTURES LTD,108437
Portsmouth City Council,PCC,Adult Social Care,Physical Support Older People (85+),Adult Services,Third Party Payments,Other establishments,21/07/2020,6375640,104.4,VENDOR,APEX PROPERTY VENTURES LTD,108437
Portsmouth City Council,PCC,Adult Social Care,Physical Support Older People (85+),Adult Services,Third Party Payments,Other establishments,21/07/2020,6375640,365.4,VENDOR,APEX PROPERTY VENTURES LTD,108437
Portsmouth City Council,PCC,Adult Social Care,Physical Support Older People (85+),Adult Services,Third Party Payments,Other establishments,21/07/2020,6375640,478.5,VENDOR,APEX PROPERTY VENTURES LTD,108437
Portsmouth City Council,PCC,Adult Social Care,Physical Support Older People (85+),Adult Services,Third Party Payments,Other establishments,21/07/2020,6375640,1218,VENDOR,APEX PROPERTY VENTURES LTD,108437
Portsmouth City Council,PCC,Adult Social Care,Physical Support Older People (85+),Adult Services,Third Party Payments,Other establishments,21/07/2020,6375640,365.4,VENDOR,APEX PROPERTY VENTURES LTD,108437
Portsmouth City Council,PCC,Adult Social Care,Physical Support Older People (85+),Adult Services,Third Party Payments,Other establishments,21/07/2020,6375640,104.4,VENDOR,APEX PROPERTY VENTURES LTD,108437
Portsmouth City Council,PCC,Adult Social Care,Physical Support Older People (85+),Adult Services,Third Party Payments,Other establishments,21/07/2020,6375640,104.4,VENDOR,APEX PROPERTY VENTURES LTD,108437
Portsmouth City Council,PCC,Adult Social Care,Physical Support Older People (85+),Adult Services,Third Party Payments,Other establishments,21/07/2020,6375640,852.6,VENDOR,APEX PROPERTY VENTURES LTD,108437
Portsmouth City Council,PCC,Adult Social Care,Physical Support Older People (85+),Adult Services,Third Party Payments,Other establishments,21/07/2020,6375640,487.2,VENDOR,APEX PROPERTY VENTURES LTD,108437
Portsmouth City Council,PCC,Adult Social Care,Physical Support Older People (85+),Adult Services,Third Party Payments,Other establishments,21/07/2020,6375640,226.2,VENDOR,APEX PROPERTY VENTURES LTD,108437
Portsmouth City Council,PCC,Adult Social Care,Physical Support Older People (85+),Adult Services,Third Party Payments,Other establishments,21/07/2020,6375640,365.4,VENDOR,APEX PROPERTY VENTURES LTD,108437
Portsmouth City Council,PCC,Adult Social Care,Physical Support Older People (85+),Adult Services,Third Party Payments,Other establishments,21/07/2020,6375640,139.2,VENDOR,APEX PROPERTY VENTURES LTD,108437
Portsmouth City Council,PCC,Adult Social Care,Physical Support Older People (85+),Adult Services,Third Party Payments,Other establishments,21/07/2020,6375640,904.8,VENDOR,APEX PROPERTY VENTURES LTD,108437
Portsmouth City Council,PCC,Adult Social Care,Physical Support Older People (85+),Adult Services,Third Party Payments,Other establishments,21/07/2020,6375640,69.6,VENDOR,APEX PROPERTY VENTURES LTD,108437
Portsmouth City Council,PCC,Adult Social Care,Physical Support Older People (85+),Adult Services,Third Party Payments,Other establishments,21/07/2020,6375640,452.4,VENDOR,APEX PROPERTY VENTURES LTD,108437
Portsmouth City Council,PCC,Adult Social Care,Physical Support Older People (85+),Adult Services,Third Party Payments,Other establishments,21/07/2020,6375640,1096.2,VENDOR,APEX PROPERTY VENTURES LTD,108437
Portsmouth City Council,PCC,Adult Social Care,Physical Support Older People (85+),Adult Services,Third Party Payments,Other establishments,21/07/2020,6375640,1096.2,VENDOR,APEX PROPERTY VENTURES LTD,108437
Portsmouth City Council,PCC,Adult Social Care,Physical Support Older People (85+),Adult Services,Third Party Payments,Other establishments,21/07/2020,6375640,487.2,VENDOR,APEX PROPERTY VENTURES LTD,108437
Portsmouth City Council,PCC,Adult Social Care,Physical Support Older People (85+),Adult Services,Third Party Payments,Other establishments,21/07/2020,6375640,852.6,VENDOR,APEX PROPERTY VENTURES LTD,108437
Portsmouth City Council,PCC,Adult Social Care,Physical Support Older People (85+),Adult Services,Third Party Payments,Other establishments,21/07/2020,6375640,974.4,VENDOR,APEX PROPERTY VENTURES LTD,108437
Portsmouth City Council,PCC,Adult Social Care,Physical Support Older People (85+),Adult Services,Third Party Payments,Other establishments,21/07/2020,6375640,974.4,VENDOR,APEX PROPERTY VENTURES LTD,108437
Portsmouth City Council,PCC,Adult Social Care,Physical Support Older People (85+),Adult Services,Third Party Payments,Other establishments,21/07/2020,6375640,730.8,VENDOR,APEX PROPERTY VENTURES LTD,108437
Portsmouth City Council,PCC,Adult Social Care,Physical Support Older People (85+),Adult Services,Third Party Payments,Other establishments,21/07/2020,6375640,730.8,VENDOR,APEX PROPERTY VENTURES LTD,108437
Portsmouth City Council,PCC,Adult Social Care,Physical Support Older People (85+),Adult Services,Third Party Payments,Other establishments,21/07/2020,6375640,278.4,VENDOR,APEX PROPERTY VENTURES LTD,108437
Portsmouth City Council,PCC,Adult Social Care,Physical Support Older People (85+),Adult Services,Third Party Payments,Other establishments,21/07/2020,6375640,208.8,VENDOR,APEX PROPERTY VENTURES LTD,108437
Portsmouth City Council,PCC,Adult Social Care,Physical Support Older People (85+),Adult Services,Third Party Payments,Other establishments,21/07/2020,6375640,974.4,VENDOR,APEX PROPERTY VENTURES LTD,108437
Portsmouth City Council,PCC,Adult Social Care,Physical Support Older People (85+),Adult Services,Third Party Payments,Other establishments,21/07/2020,6375640,974.4,VENDOR,APEX PROPERTY VENTURES LTD,108437
Portsmouth City Council,PCC,Adult Social Care,Physical Support Older People (85+),Adult Services,Third Party Payments,Other establishments,21/07/2020,6375640,313.2,VENDOR,APEX PROPERTY VENTURES LTD,108437
Portsmouth City Council,PCC,Adult Social Care,Physical Support Older People (85+),Adult Services,Third Party Payments,Other establishments,21/07/2020,6375640,243.6,VENDOR,APEX PROPERTY VENTURES LTD,108437
Portsmouth City Council,PCC,Adult Social Care,Physical Support Older People (85+),Adult Services,Third Party Payments,Other establishments,21/07/2020,6375640,139.2,VENDOR,APEX PROPERTY VENTURES LTD,108437
Portsmouth City Council,PCC,Adult Social Care,Physical Support Older People (85+),Adult Services,Third Party Payments,Other establishments,21/07/2020,6375640,1157.1,VENDOR,APEX PROPERTY VENTURES LTD,108437
Portsmouth City Council,PCC,Adult Social Care,Physical Support Older People (85+),Adult Services,Third Party Payments,Other establishments,21/07/2020,6375640,1157.1,VENDOR,APEX PROPERTY VENTURES LTD,108437
Portsmouth City Council,PCC,Adult Social Care,Physical Support Older People (85+),Adult Services,Third Party Payments,Other establishments,21/07/2020,6375640,400.2,VENDOR,APEX PROPERTY VENTURES LTD,108437
Portsmouth City Council,PCC,Adult Social Care,Physical Support Older People (85+),Adult Services,Third Party Payments,Other establishments,21/07/2020,6375640,522,VENDOR,APEX PROPERTY VENTURES LTD,108437
Portsmouth City Council,PCC,Adult Social Care,Physical Support Older People (85+),Adult Services,Third Party Payments,Other establishments,21/07/2020,6375640,365.4,VENDOR,APEX PROPERTY VENTURES LTD,108437
Portsmouth City Council,PCC,Adult Social Care,Physical Support Older People (85+),Adult Services,Third Party Payments,Other establishments,21/07/2020,6375640,609,VENDOR,APEX PROPERTY VENTURES LTD,108437
Portsmouth City Council,PCC,Adult Social Care,Physical Support Older People (85+),Adult Services,Third Party Payments,Other establishments,21/07/2020,6375640,1218,VENDOR,APEX PROPERTY VENTURES LTD,108437
Portsmouth City Council,PCC,Adult Social Care,Physical Support Older People (85+),Adult Services,Third Party Payments,Other establishments,21/07/2020,6375640,1218,VENDOR,APEX PROPERTY VENTURES LTD,108437
Portsmouth City Council,PCC,Adult Social Care,Physical Support Older People (85+),Adult Services,Third Party Payments,Other establishments,21/07/2020,6375640,852.6,VENDOR,APEX PROPERTY VENTURES LTD,108437
Portsmouth City Council,PCC,Adult Social Care,Physical Support Older People (85+),Adult Services,Third Party Payments,Other establishments,21/07/2020,6375640,852.6,VENDOR,APEX PROPERTY VENTURES LTD,108437
Portsmouth City Council,PCC,Adult Social Care,Physical Support Older People (85+),Adult Services,Third Party Payments,Other establishments,21/07/2020,6375640,365.4,VENDOR,APEX PROPERTY VENTURES LTD,108437
Portsmouth City Council,PCC,Adult Social Care,Physical Support Older People (85+),Adult Services,Third Party Payments,Other establishments,21/07/2020,6375640,635.1,VENDOR,APEX PROPERTY VENTURES LTD,108437
Portsmouth City Council,PCC,Adult Social Care,Physical Support Older People (85+),Adult Services,Third Party Payments,Other establishments,21/07/2020,6375640,47.85,VENDOR,APEX PROPERTY VENTURES LTD,108437
Portsmouth City Council,PCC,Adult Social Care,Physical Support Older People (85+),Adult Services,Third Party Payments,Other establishments,21/07/2020,6375640,365.4,VENDOR,APEX PROPERTY VENTURES LTD,108437
Portsmouth City Council,PCC,Adult Social Care,Physical Support Older People (85+),Adult Services,Third Party Payments,Other establishments,21/07/2020,6375640,243.6,VENDOR,APEX PROPERTY VENTURES LTD,108437
Portsmouth City Council,PCC,Adult Social Care,Physical Support Older People (85+),Adult Services,Third Party Payments,Other establishments,21/07/2020,6375640,609,VENDOR,APEX PROPERTY VENTURES LTD,108437
Portsmouth City Council,PCC,Adult Social Care,Physical Support Older People (85+),Adult Services,Third Party Payments,Other establishments,21/07/2020,6375640,609,VENDOR,APEX PROPERTY VENTURES LTD,108437
Portsmouth City Council,PCC,Adult Social Care,Physical Support Older People (85+),Adult Services,Third Party Payments,Other establishments,21/07/2020,6375640,69.6,VENDOR,APEX PROPERTY VENTURES LTD,108437
Portsmouth City Council,PCC,Adult Social Care,Physical Support Older People (85+),Adult Services,Third Party Payments,Other establishments,21/07/2020,6375640,208.8,VENDOR,APEX PROPERTY VENTURES LTD,108437
Portsmouth City Council,PCC,Adult Social Care,Physical Support Older People (85+),Adult Services,Third Party Payments,Other establishments,21/07/2020,6375640,17.4,VENDOR,APEX PROPERTY VENTURES LTD,108437
Portsmouth City Council,PCC,Adult Social Care,Physical Support Older People (85+),Adult Services,Third Party Payments,Other establishments,21/07/2020,6375640,243.6,VENDOR,APEX PROPERTY VENTURES LTD,108437
Portsmouth City Council,PCC,Adult Social Care,Physical Support Older People (85+),Adult Services,Third Party Payments,Other establishments,21/07/2020,6375640,1096.2,VENDOR,APEX PROPERTY VENTURES LTD,108437
Portsmouth City Council,PCC,Adult Social Care,Physical Support Older People (85+),Adult Services,Third Party Payments,Other establishments,21/07/2020,6375640,1096.2,VENDOR,APEX PROPERTY VENTURES LTD,108437
Portsmouth City Council,PCC,Adult Social Care,Physical Support Older People (85+),Adult Services,Third Party Payments,Other establishments,21/07/2020,6375640,69.6,VENDOR,APEX PROPERTY VENTURES LTD,108437
Portsmouth City Council,PCC,Adult Social Care,Physical Support Older People (85+),Adult Services,Third Party Payments,Other establishments,21/07/2020,6375640,1096.2,VENDOR,APEX PROPERTY VENTURES LTD,108437
Portsmouth City Council,PCC,Adult Social Care,Physical Support Older People (85+),Adult Services,Third Party Payments,Other establishments,21/07/2020,6375640,121.8,VENDOR,APEX PROPERTY VENTURES LTD,108437
Portsmouth City Council,PCC,Adult Social Care,Physical Support Older People (85+),Adult Services,Third Party Payments,Other establishments,21/07/2020,6375640,243.6,VENDOR,APEX PROPERTY VENTURES LTD,108437
Portsmouth City Council,PCC,Adult Social Care,Physical Support Older People (85+),Adult Services,Third Party Payments,Other establishments,21/07/2020,6375640,487.2,VENDOR,APEX PROPERTY VENTURES LTD,108437
Portsmouth City Council,PCC,Adult Social Care,Physical Support Older People (85+),Adult Services,Third Party Payments,Other establishments,21/07/2020,6375640,52.2,VENDOR,APEX PROPERTY VENTURES LTD,108437
Portsmouth City Council,PCC,Adult Social Care,Physical Support Older People (85+),Adult Services,Third Party Payments,Other establishments,21/07/2020,6375640,726.45,VENDOR,APEX PROPERTY VENTURES LTD,108437
Portsmouth City Council,PCC,Adult Social Care,Physical Support Older People (85+),Adult Services,Third Party Payments,Other establishments,21/07/2020,6375640,1096.2,VENDOR,APEX PROPERTY VENTURES LTD,108437
Portsmouth City Council,PCC,Adult Social Care,Physical Support Older People (85+),Adult Services,Third Party Payments,Other establishments,21/07/2020,6375640,1096.2,VENDOR,APEX PROPERTY VENTURES LTD,108437
Portsmouth City Council,PCC,Adult Social Care,Learning Disability Support  Adults (18 - 64),Adult Services,Third Party Payments,Other establishments,21/07/2020,6375640,361.05,VENDOR,APEX PROPERTY VENTURES LTD,108437
Portsmouth City Council,PCC,Adult Social Care,Learning Disability Support  Adults (18 - 64),Adult Services,Third Party Payments,Other establishments,21/07/2020,6375640,313.2,VENDOR,APEX PROPERTY VENTURES LTD,108437
Portsmouth City Council,PCC,Adult Social Care,Learning Disability Support  Adults (18 - 64),Adult Services,Third Party Payments,Other establishments,21/07/2020,6375640,417.6,VENDOR,APEX PROPERTY VENTURES LTD,108437
Portsmouth City Council,PCC,Adult Social Care,Learning Disability Support  Adults (18 - 64),Adult Services,Third Party Payments,Other establishments,21/07/2020,6375640,417.6,VENDOR,APEX PROPERTY VENTURES LTD,108437
Portsmouth City Council,PCC,Adult Social Care,Learning Disability Support  Adults (18 - 64),Adult Services,Third Party Payments,Other establishments,21/07/2020,6375640,243.6,VENDOR,APEX PROPERTY VENTURES LTD,108437
Portsmouth City Council,PCC,Adult Social Care,Learning Disability Support  Adults (18 - 64),Adult Services,Third Party Payments,Other establishments,21/07/2020,6375640,913.5,VENDOR,APEX PROPERTY VENTURES LTD,108437
Portsmouth City Council,PCC,Adult Social Care,Learning Disability Support  Adults (18 - 64),Adult Services,Third Party Payments,Other establishments,21/07/2020,6375640,948.3,VENDOR,APEX PROPERTY VENTURES LTD,108437
Portsmouth City Council,PCC,Adult Social Care,Learning Disability Support  Adults (18 - 64),Adult Services,Third Party Payments,Other establishments,21/07/2020,6375640,313.2,VENDOR,APEX PROPERTY VENTURES LTD,108437
Portsmouth City Council,PCC,Adult Social Care,Learning Disability Support  Adults (18 - 64),Adult Services,Third Party Payments,Other establishments,21/07/2020,6375640,174,VENDOR,APEX PROPERTY VENTURES LTD,108437
Portsmouth City Council,PCC,Adult Social Care,Social Support - Support for Carer,Adult Services,Third Party Payments,Other establishments,21/07/2020,6375640,239.36,VENDOR,APEX PROPERTY VENTURES LTD,108437
Portsmouth City Council,PCC,Adult Social Care,Social Support - Support for Carer,Adult Services,Third Party Payments,Other establishments,21/07/2020,6375640,29.92,VENDOR,APEX PROPERTY VENTURES LTD,108437
Portsmouth City Council,PCC,Adult Social Care,Social Support - Support for Carer,Adult Services,Third Party Payments,Other establishments,21/07/2020,6375640,119.68,VENDOR,APEX PROPERTY VENTURES LTD,108437
Portsmouth City Council,PCC,Adult Social Care,Social Support - Support for Carer,Adult Services,Third Party Payments,Other establishments,21/07/2020,6375640,291.72,VENDOR,APEX PROPERTY VENTURES LTD,108437
Portsmouth City Council,PCC,Adult Social Care,Social Support - Support for Carer,Adult Services,Third Party Payments,Other establishments,21/07/2020,6375640,179.52,VENDOR,APEX PROPERTY VENTURES LTD,108437
Portsmouth City Council,PCC,Adult Social Care,Social Support - Support for Carer,Adult Services,Third Party Payments,Other establishments,21/07/2020,6375640,119.68,VENDOR,APEX PROPERTY VENTURES LTD,108437
Portsmouth City Council,PCC,Adult Social Care,Social Support - Support for Carer,Adult Services,Third Party Payments,Other establishments,21/07/2020,6375640,179.52,VENDOR,APEX PROPERTY VENTURES LTD,108437
Portsmouth City Council,PCC,Adult Social Care,Social Support - Support for Carer,Adult Services,Third Party Payments,Other establishments,21/07/2020,6375640,69.6,VENDOR,APEX PROPERTY VENTURES LTD,108437
Portsmouth City Council,PCC,Adult Social Care,Social Support - Support for Carer,Adult Services,Third Party Payments,Other establishments,21/07/2020,6375640,149.6,VENDOR,APEX PROPERTY VENTURES LTD,108437
Portsmouth City Council,PCC,Adult Social Care,Social Support - Support for Carer,Adult Services,Third Party Payments,Other establishments,21/07/2020,6375640,388.32,VENDOR,APEX PROPERTY VENTURES LTD,108437
Portsmouth City Council,PCC,Adult Social Care,Social Support - Support for Carer,Adult Services,Third Party Payments,Other establishments,21/07/2020,6375640,239.36,VENDOR,APEX PROPERTY VENTURES LTD,108437
Portsmouth City Council,PCC,Adult Social Care,Social Support - Support for Carer,Adult Services,Third Party Payments,Other establishments,21/07/2020,6375640,359.04,VENDOR,APEX PROPERTY VENTURES LTD,108437
Portsmouth City Council,PCC,Adult Social Care,Social Support - Support for Carer,Adult Services,Third Party Payments,Other establishments,21/07/2020,6375640,276.76,VENDOR,APEX PROPERTY VENTURES LTD,108437
Portsmouth City Council,PCC,Adult Social Care,Social Support - Support for Carer,Adult Services,Third Party Payments,Other establishments,21/07/2020,6375640,29.92,VENDOR,APEX PROPERTY VENTURES LTD,108437
Portsmouth City Council,PCC,Adult Social Care,Social Support - Support for Carer,Adult Services,Third Party Payments,Other establishments,21/07/2020,6375640,74.8,VENDOR,APEX PROPERTY VENTURES LTD,108437
Portsmouth City Council,PCC,Adult Social Care,Social Care Activities,Adult Services,Third Party Payments,Other establishments,23/07/2020,6376267,559.82,VENDOR,APEX PROPERTY VENTURES LTD,108437
Portsmouth City Council,PCC,Adult Social Care,Physical Support Older People (85+),Adult Services,Third Party Payments,Other establishments,23/07/2020,6376267,1993.92,VENDOR,APEX PROPERTY VENTURES LTD,108437
Portsmouth City Council,PCC,Adult Social Care,Social Care Activities,Adult Services,Third Party Payments,Other establishments,09/07/2020,6373987,753.98,VENDOR,APPLETREE SUPPORT LTD,126285
Portsmouth City Council,PCC,Adult Social Care,Social Care Activities,Adult Services,Third Party Payments,Other establishments,09/07/2020,6373987,4523.88,VENDOR,APPLETREE SUPPORT LTD,126285
Portsmouth City Council,PCC,Adult Social Care,Social Care Activities,Adult Services,Third Party Payments,Other establishments,09/07/2020,6373987,3442.56,VENDOR,APPLETREE SUPPORT LTD,126285
Portsmouth City Council,PCC,Adult Social Care,Learning Disability Support  Adults (18 - 64),Adult Services,Third Party Payments,Other establishments,08/07/2020,6373500,44,VENDOR,AQUA CARS LIMITED,100011
Portsmouth City Council,PCC,Adult Social Care,Learning Disability Support  Adults (18 - 64),Adult Services,Third Party Payments,Other establishments,08/07/2020,6373500,44,VENDOR,AQUA CARS LIMITED,100011
Portsmouth City Council,PCC,Adult Social Care,Learning Disability Support  Adults (18 - 64),Adult Services,Transport-Related Expenditure,Public transport,21/07/2020,6375642,22,VENDOR,AQUA CARS LIMITED,100011
Portsmouth City Council,PCC,Adult Social Care,Social Care Activities,Adult Services,Third Party Payments,Other establishments,08/07/2020,6373500,968,VENDOR,AQUA CARS LIMITED,100011
Portsmouth City Council,PCC,Adult Social Care,Learning Disability Support  Adults (18 - 64),Adult Services,Third Party Payments,Other establishments,10/07/2020,6374250,10232.17,VENDOR,ASPENS CHARITIES,119343
Portsmouth City Council,PCC,Adult Social Care,Learning Disability Support  Adults (18 - 64),Adult Services,Third Party Payments,Other establishments,10/07/2020,6374251,9483.21,VENDOR,ASSURE HEALTH CARE GROUP,140779
Portsmouth City Council,PCC,Adult Social Care,Learning Disability Support  Adults (18 - 64),Adult Services,Third Party Payments,Other establishments,10/07/2020,6374251,7481.23,VENDOR,ASSURE HEALTH CARE GROUP,140779
Portsmouth City Council,PCC,Adult Social Care,Social Care Activities,Adult Services,Third Party Payments,Other establishments,06/07/2020,6373213,11692.8,VENDOR,ASTER CARE LTD,130238
Portsmouth City Council,PCC,Adult Social Care,Social Care Activities,Adult Services,Third Party Payments,Other establishments,06/07/2020,6373213,11692.8,VENDOR,ASTER CARE LTD,130238
Portsmouth City Council,PCC,Adult Social Care,Learning Disability Support  Adults (18 - 64),Adult Services,Third Party Payments,Other establishments,10/07/2020,6374252,5081.21,VENDOR,AUCKLAND CARE LTD,100984
Portsmouth City Council,PCC,Adult Social Care,Mental Health Support Adults (18 - 64),Adult Services,Third Party Payments,Other establishments,24/07/2020,6376403,3771.33,VENDOR,AUCKLAND CARE LTD,100984
Portsmouth City Council,PCC,Adult Social Care,Social Care Activities,Adult Services,Third Party Payments,Other establishments,10/07/2020,6374253,16177.66,VENDOR,AUTISM HAMPSHIRE,139112
Portsmouth City Council,PCC,Adult Social Care,Learning Disability Support  Adults (18 - 64),Adult Services,Third Party Payments,Other establishments,10/07/2020,6374253,6084.06,VENDOR,AUTISM HAMPSHIRE,139112
Portsmouth City Council,PCC,Adult Social Care,Learning Disability Support  Adults (18 - 64),Adult Services,Third Party Payments,Other establishments,10/07/2020,6374253,6332.68,VENDOR,AUTISM HAMPSHIRE,139112
Portsmouth City Council,PCC,Adult Social Care,Learning Disability Support  Adults (18 - 64),Adult Services,Third Party Payments,Other establishments,10/07/2020,6374253,3863.22,VENDOR,AUTISM HAMPSHIRE,139112
Portsmouth City Council,PCC,Adult Social Care,Learning Disability Support  Adults (18 - 64),Adult Services,Third Party Payments,Other establishments,10/07/2020,6374253,9095.4,VENDOR,AUTISM HAMPSHIRE,139112
Portsmouth City Council,PCC,Adult Social Care,Support with Memory and Cognition Older People (85+),Adult Services,Third Party Payments,Other establishments,10/07/2020,6374254,1550,VENDOR,AUTUMN VALE REST HOME,100551
Portsmouth City Council,PCC,Adult Social Care,Support with Memory and Cognition Older People (85+),Adult Services,Third Party Payments,Other establishments,10/07/2020,6374254,2428.23,VENDOR,AUTUMN VALE REST HOME,100551
Portsmouth City Council,PCC,Adult Social Care,Mental Health Support Adults (18 - 64),Adult Services,Third Party Payments,Other establishments,10/07/2020,6374254,2167.83,VENDOR,AUTUMN VALE REST HOME,100551
Portsmouth City Council,PCC,Adult Social Care,Mental Health Support Adults (18 - 64),Adult Services,Third Party Payments,Other establishments,10/07/2020,6374254,1430.03,VENDOR,AUTUMN VALE REST HOME,100551
Portsmouth City Council,PCC,Highways and Transport Services,Parking Services,Regeneration,Supplies and Services,Communications and computing,30/07/2020,6377399,1364.26,VENDOR,EASY NETWORKS LTD,100142
Portsmouth City Council,PCC,Costs below Net Cost of Services,Trading,Regeneration,Premises-Related Expenditure,"Repairs, alterations and maintenance of buildings",15/07/2020,6375045,5077,VENDOR,SAVILLS (UK) LTD,118920
Portsmouth City Council,PCC,Costs below Net Cost of Services,Trading,Regeneration,Premises-Related Expenditure,"Repairs, alterations and maintenance of buildings",15/07/2020,6375045,1015.4,VENDOR,SAVILLS (UK) LTD,118920
Portsmouth City Council,PCC,Costs below Net Cost of Services,Trading,Regeneration,Premises-Related Expenditure,"Repairs, alterations and maintenance of buildings",15/07/2020,6375045,5077,VENDOR,SAVILLS (UK) LTD,118920
Portsmouth City Council,PCC,Costs below Net Cost of Services,Trading,Regeneration,Premises-Related Expenditure,"Repairs, alterations and maintenance of buildings",15/07/2020,6375045,1015.4,VENDOR,SAVILLS (UK) LTD,118920
Portsmouth City Council,PCC,Children's and Education Services,Safeguarding Children and Young Peoples Services,Children's Services and Education,Third Party Payments,Private contractors,28/07/2020,6376797,690,VENDOR,M J H REMOVALS LTD,105441
Portsmouth City Council,PCC,Children's and Education Services,Safeguarding Children and Young Peoples Services,Children's Services and Education,Third Party Payments,Private contractors,28/07/2020,6376797,80,VENDOR,M J H REMOVALS LTD,105441
Portsmouth City Council,PCC,Adult Social Care,Mental Health Support Adults (18 - 64),Adult Services,Third Party Payments,Other establishments,10/07/2020,6374254,3558.18,VENDOR,AUTUMN VALE REST HOME,100551
Portsmouth City Council,PCC,Adult Social Care,Mental Health Support Adults (18 - 64),Adult Services,Third Party Payments,Other establishments,10/07/2020,6374254,2351.35,VENDOR,AUTUMN VALE REST HOME,100551
Portsmouth City Council,PCC,Planning Services,Business support,Regeneration,Premises-Related Expenditure,"Repairs, alterations and maintenance of buildings",14/07/2020,6374618,750,SOLETRADER,M J RITCHIE DECOR AND GUTTERING SERVICES,126505
Portsmouth City Council,PCC,Planning Services,Business support,Regeneration,Premises-Related Expenditure,"Repairs, alterations and maintenance of buildings",14/07/2020,6374618,250,SOLETRADER,M J RITCHIE DECOR AND GUTTERING SERVICES,126505
Portsmouth City Council,PCC,Adult Social Care,Mental Health Support Adults (18 - 64),Adult Services,Third Party Payments,Other establishments,10/07/2020,6374254,3419.61,VENDOR,AUTUMN VALE REST HOME,100551
Portsmouth City Council,PCC,Adult Social Care,Mental Health Support Adults (18 - 64),Adult Services,Third Party Payments,Other establishments,10/07/2020,6374254,2605.55,VENDOR,AUTUMN VALE REST HOME,100551
Portsmouth City Council,PCC,Adult Social Care,Mental Health Support Adults (18 - 64),Adult Services,Third Party Payments,Other establishments,10/07/2020,6374254,3321.96,VENDOR,AUTUMN VALE REST HOME,100551
Portsmouth City Council,PCC,Adult Social Care,Mental Health Support Adults (18 - 64),Adult Services,Third Party Payments,Other establishments,10/07/2020,6374254,2519.06,VENDOR,AUTUMN VALE REST HOME,100551
Portsmouth City Council,PCC,Other,Suspense and Capital Schemes,Capital - Housing General Fund,Capital Charges,Capital Expenditure (WIP),07/07/2020,6373397,52698.76,VENDOR,EDGAR AND WOOD MECHANICAL SERVICES LTD,111368
Portsmouth City Council,PCC,Cultural and Related Services,Allocation of Management & Admin,Corporate Services,Third Party Payments,Private contractors,17/07/2020,6375357,2662.5,VENDOR,PARAFFIN LIMITED,144079
Portsmouth City Council,PCC,Adult Social Care,Support with Memory and Cognition Older People (85+),Adult Services,Third Party Payments,Other establishments,10/07/2020,6374255,2338.64,VENDOR,AVENUE CARE (FAREHAM) LIMITED,125285
Portsmouth City Council,PCC,Adult Social Care,Physical Support Older People (85+),Adult Services,Third Party Payments,Other establishments,27/07/2020,6376594,206,SOLETRADER,RED SQUIRREL,145135
Portsmouth City Council,PCC,Adult Social Care,Physical Support Older People (85+),Adult Services,Third Party Payments,Other establishments,27/07/2020,6376594,828,SOLETRADER,RED SQUIRREL,145135
Portsmouth City Council,PCC,Adult Social Care,Social Care Activities,Adult Services,Third Party Payments,Other establishments,15/07/2020,6374684,104.4,VENDOR,B S CARE LTD,100114
Portsmouth City Council,PCC,Solent LEP,Business support,OTHER,Supplies and Services,Services,23/07/2020,6376268,842.5,VENDOR,BEVAN BRITTAN LLP,108894
Portsmouth City Council,PCC,Support Service / Transparency Costs Unallocated,Information Services,Corporate Services,Employees,Direct employee expenses,17/07/2020,6375328,4218.75,VENDOR,HAYS SPECIALIST RECRUITMENT LIMITED,100045
Portsmouth City Council,PCC,Children's and Education Services,Asylum seekers,Children's Services and Education,Third Party Payments,Other establishments,06/07/2020,6373218,3570,VENDOR,BLUE SKY FOSTERING,119870
Portsmouth City Council,PCC,Children's and Education Services,Safeguarding Children and Young Peoples Services,Children's Services and Education,Third Party Payments,Other establishments,24/07/2020,6376529,-43.42,VENDOR,SAKURA CARE LIMITED,144940
Portsmouth City Council,PCC,Children's and Education Services,Safeguarding Children and Young Peoples Services,Children's Services and Education,Third Party Payments,Other establishments,24/07/2020,6376529,248.15,VENDOR,SAKURA CARE LIMITED,144940
Portsmouth City Council,PCC,Children's and Education Services,Safeguarding Children and Young Peoples Services,Children's Services and Education,Third Party Payments,Other establishments,24/07/2020,6376529,5571.43,VENDOR,SAKURA CARE LIMITED,144940
Portsmouth City Council,PCC,Children's and Education Services,Asylum seekers,Children's Services and Education,Third Party Payments,Other establishments,23/07/2020,6376353,4383.9,VENDOR,SAKURA CARE LIMITED,144940
Portsmouth City Council,PCC,Children's and Education Services,Safeguarding Children and Young Peoples Services,Children's Services and Education,Third Party Payments,Other establishments,09/07/2020,6374106,50,VENDOR,SAKURA CARE LIMITED,144940
Portsmouth City Council,PCC,Children's and Education Services,Safeguarding Children and Young Peoples Services,Children's Services and Education,Third Party Payments,Other establishments,09/07/2020,6374106,-256.41,VENDOR,SAKURA CARE LIMITED,144940
Portsmouth City Council,PCC,Children's and Education Services,Safeguarding Children and Young Peoples Services,Children's Services and Education,Third Party Payments,Other establishments,09/07/2020,6374106,5919.4,VENDOR,SAKURA CARE LIMITED,144940
Portsmouth City Council,PCC,Children's and Education Services,Asylum seekers,Children's Services and Education,Third Party Payments,Other establishments,24/07/2020,6376529,256.37,VENDOR,SAKURA CARE LIMITED,144940
Portsmouth City Council,PCC,Children's and Education Services,Asylum seekers,Children's Services and Education,Third Party Payments,Other establishments,24/07/2020,6376529,4273.66,VENDOR,SAKURA CARE LIMITED,144940
Portsmouth City Council,PCC,Cultural and Related Services,Culture and Heritage,"Culture, Leisure & Regulatory Services",Premises-Related Expenditure,"Repairs, alterations and maintenance of buildings",01/07/2020,6372384,664.95,VENDOR,1ST CHOICE HIGH LEVEL CLEANING & MAINTENANCE LIMITED,101385
Portsmouth City Council,PCC,Children's and Education Services,Safeguarding Children and Young Peoples Services,Children's Services and Education,Third Party Payments,Other establishments,09/07/2020,6374106,4530.03,VENDOR,SAKURA CARE LIMITED,144940
Portsmouth City Council,PCC,Children's and Education Services,Asylum seekers,Children's Services and Education,Third Party Payments,Other establishments,24/07/2020,6376529,256.37,VENDOR,SAKURA CARE LIMITED,144940
Portsmouth City Council,PCC,Children's and Education Services,Asylum seekers,Children's Services and Education,Third Party Payments,Other establishments,24/07/2020,6376529,4273.66,VENDOR,SAKURA CARE LIMITED,144940
Portsmouth City Council,PCC,Children's and Education Services,Safeguarding Children and Young Peoples Services,Children's Services and Education,Third Party Payments,Other establishments,08/07/2020,6373868,4383.9,VENDOR,SAKURA CARE LIMITED,144940
Portsmouth City Council,PCC,Children's and Education Services,Asylum seekers,Children's Services and Education,Third Party Payments,Other establishments,23/07/2020,6376353,248.14,VENDOR,SAKURA CARE LIMITED,144940
Portsmouth City Council,PCC,Children's and Education Services,Asylum seekers,Children's Services and Education,Third Party Payments,Other establishments,23/07/2020,6376353,471.43,VENDOR,SAKURA CARE LIMITED,144940
Portsmouth City Council,PCC,Children's and Education Services,Asylum seekers,Children's Services and Education,Third Party Payments,Other establishments,23/07/2020,6376353,-42.81,VENDOR,SAKURA CARE LIMITED,144940
Portsmouth City Council,PCC,Children's and Education Services,Asylum seekers,Children's Services and Education,Third Party Payments,Other establishments,23/07/2020,6376353,3707.14,VENDOR,SAKURA CARE LIMITED,144940
Portsmouth City Council,PCC,Children's and Education Services,Safeguarding Children and Young Peoples Services,Children's Services and Education,Third Party Payments,Other establishments,23/07/2020,6376353,487.15,VENDOR,SAKURA CARE LIMITED,144940
Portsmouth City Council,PCC,Children's and Education Services,Safeguarding Children and Young Peoples Services,Children's Services and Education,Third Party Payments,Other establishments,23/07/2020,6376353,-44.21,VENDOR,SAKURA CARE LIMITED,144940
Portsmouth City Council,PCC,Children's and Education Services,Safeguarding Children and Young Peoples Services,Children's Services and Education,Third Party Payments,Other establishments,23/07/2020,6376353,3830.72,VENDOR,SAKURA CARE LIMITED,144940
Portsmouth City Council,PCC,Children's and Education Services,Asylum seekers,Children's Services and Education,Third Party Payments,Other establishments,23/07/2020,6376353,256.42,VENDOR,SAKURA CARE LIMITED,144940
Portsmouth City Council,PCC,Children's and Education Services,Asylum seekers,Children's Services and Education,Third Party Payments,Other establishments,23/07/2020,6376353,487.15,VENDOR,SAKURA CARE LIMITED,144940
Portsmouth City Council,PCC,Children's and Education Services,Asylum seekers,Children's Services and Education,Third Party Payments,Other establishments,23/07/2020,6376353,-44.26,VENDOR,SAKURA CARE LIMITED,144940
Portsmouth City Council,PCC,Children's and Education Services,Asylum seekers,Children's Services and Education,Third Party Payments,Other establishments,23/07/2020,6376353,3830.72,VENDOR,SAKURA CARE LIMITED,144940
Portsmouth City Council,PCC,Children's and Education Services,Safeguarding Children and Young Peoples Services,Children's Services and Education,Third Party Payments,Other establishments,23/07/2020,6376353,487.15,VENDOR,SAKURA CARE LIMITED,144940
Portsmouth City Council,PCC,Children's and Education Services,Safeguarding Children and Young Peoples Services,Children's Services and Education,Third Party Payments,Other establishments,23/07/2020,6376353,-44.21,VENDOR,SAKURA CARE LIMITED,144940
Portsmouth City Council,PCC,Children's and Education Services,Safeguarding Children and Young Peoples Services,Children's Services and Education,Third Party Payments,Other establishments,23/07/2020,6376353,3830.72,VENDOR,SAKURA CARE LIMITED,144940
Portsmouth City Council,PCC,Children's and Education Services,Asylum seekers,Children's Services and Education,Third Party Payments,Other establishments,23/07/2020,6376353,256.42,VENDOR,SAKURA CARE LIMITED,144940
Portsmouth City Council,PCC,Children's and Education Services,Asylum seekers,Children's Services and Education,Third Party Payments,Other establishments,23/07/2020,6376353,487.15,VENDOR,SAKURA CARE LIMITED,144940
Portsmouth City Council,PCC,Children's and Education Services,Asylum seekers,Children's Services and Education,Third Party Payments,Other establishments,23/07/2020,6376353,-44.26,VENDOR,SAKURA CARE LIMITED,144940
Portsmouth City Council,PCC,Children's and Education Services,Asylum seekers,Children's Services and Education,Third Party Payments,Other establishments,23/07/2020,6376353,3830.72,VENDOR,SAKURA CARE LIMITED,144940
Portsmouth City Council,PCC,Children's and Education Services,Safeguarding Children and Young Peoples Services,Children's Services and Education,Third Party Payments,Other establishments,23/07/2020,6376353,-44.16,VENDOR,SAKURA CARE LIMITED,144940
Portsmouth City Council,PCC,Children's and Education Services,Safeguarding Children and Young Peoples Services,Children's Services and Education,Third Party Payments,Other establishments,23/07/2020,6376353,5757.15,VENDOR,SAKURA CARE LIMITED,144940
Portsmouth City Council,PCC,Children's and Education Services,Safeguarding Children and Young Peoples Services,Children's Services and Education,Third Party Payments,Other establishments,23/07/2020,6376353,256.42,VENDOR,SAKURA CARE LIMITED,144940
Portsmouth City Council,PCC,Children's and Education Services,Safeguarding Children and Young Peoples Services,Children's Services and Education,Third Party Payments,Other establishments,23/07/2020,6376353,487.15,VENDOR,SAKURA CARE LIMITED,144940
Portsmouth City Council,PCC,Children's and Education Services,Safeguarding Children and Young Peoples Services,Children's Services and Education,Third Party Payments,Other establishments,23/07/2020,6376353,-44.26,VENDOR,SAKURA CARE LIMITED,144940
Portsmouth City Council,PCC,Children's and Education Services,Safeguarding Children and Young Peoples Services,Children's Services and Education,Third Party Payments,Other establishments,23/07/2020,6376353,3830.72,VENDOR,SAKURA CARE LIMITED,144940
Portsmouth City Council,PCC,Children's and Education Services,Asylum seekers,Children's Services and Education,Third Party Payments,Other establishments,23/07/2020,6376353,256.42,VENDOR,SAKURA CARE LIMITED,144940
Portsmouth City Council,PCC,Children's and Education Services,Asylum seekers,Children's Services and Education,Third Party Payments,Other establishments,23/07/2020,6376353,487.15,VENDOR,SAKURA CARE LIMITED,144940
Portsmouth City Council,PCC,Children's and Education Services,Asylum seekers,Children's Services and Education,Third Party Payments,Other establishments,23/07/2020,6376353,-44.26,VENDOR,SAKURA CARE LIMITED,144940
Portsmouth City Council,PCC,Children's and Education Services,Asylum seekers,Children's Services and Education,Third Party Payments,Other establishments,23/07/2020,6376353,3830.72,VENDOR,SAKURA CARE LIMITED,144940
Portsmouth City Council,PCC,Children's and Education Services,Safeguarding Children and Young Peoples Services,Children's Services and Education,Third Party Payments,Other establishments,23/07/2020,6376353,50,VENDOR,SAKURA CARE LIMITED,144940
Portsmouth City Council,PCC,Children's and Education Services,Asylum seekers,Children's Services and Education,Third Party Payments,Other establishments,23/07/2020,6376353,50,VENDOR,SAKURA CARE LIMITED,144940
Portsmouth City Council,PCC,Children's and Education Services,Safeguarding Children and Young Peoples Services,Children's Services and Education,Third Party Payments,Other establishments,24/07/2020,6376529,248.14,VENDOR,SAKURA CARE LIMITED,144940
Portsmouth City Council,PCC,Children's and Education Services,Safeguarding Children and Young Peoples Services,Children's Services and Education,Third Party Payments,Other establishments,24/07/2020,6376529,5528.57,VENDOR,SAKURA CARE LIMITED,144940
Portsmouth City Council,PCC,Solent LEP,Business support,OTHER,Supplies and Services,Services,22/07/2020,6375902,1400,VENDOR,DEEP SOUTH MEDIA LTD,143218
Portsmouth City Council,PCC,Housing Services,Homelessness,"Housing, Neighbourhood and Building Services",Third Party Payments,Private contractors,20/07/2020,326589,-600,VENDOR,Classified as 'personal data' (under the Data Protection Act 2018),100559
Portsmouth City Council,PCC,Housing Services,Homelessness,"Housing, Neighbourhood and Building Services",Supplies and Services,Grants and subscriptions,30/07/2020,6377439,800,VENDOR, YSN LETTINGS LIMITED,147136
Portsmouth City Council,PCC,Cultural and Related Services,Tourism,"Culture, Leisure & Regulatory Services",Third Party Payments,Private contractors,24/07/2020,6376500,1023,VENDOR,LIFESTYLE MEDIA GROUP LIMITED,131557
Portsmouth City Council,PCC,Housing Services,Homelessness,"Housing, Neighbourhood and Building Services",Third Party Payments,Private contractors,20/07/2020,326589,-779,VENDOR,Classified as 'personal data' (under the Data Protection Act 2018),100559
Portsmouth City Council,PCC,Support Service / Transparency Costs Unallocated,Personnel,Corporate Services,Employees,Direct employee expenses,03/07/2020,6373050,113662.24,VENDOR,COMENSURA LTD,140265
Portsmouth City Council,PCC,Support Service / Transparency Costs Unallocated,Personnel,Corporate Services,Employees,Direct employee expenses,10/07/2020,6374278,134886.46,VENDOR,COMENSURA LTD,140265
Portsmouth City Council,PCC,Support Service / Transparency Costs Unallocated,Personnel,Corporate Services,Employees,Direct employee expenses,17/07/2020,6375286,111208.16,VENDOR,COMENSURA LTD,140265
Portsmouth City Council,PCC,Support Service / Transparency Costs Unallocated,Personnel,Corporate Services,Employees,Direct employee expenses,24/07/2020,6376424,105318.99,VENDOR,COMENSURA LTD,140265
Portsmouth City Council,PCC,Support Service / Transparency Costs Unallocated,Personnel,Corporate Services,Employees,Direct employee expenses,31/07/2020,6377506,106326.29,VENDOR,COMENSURA LTD,140265
Portsmouth City Council,PCC,Planning Services,Business support,Regeneration,Third Party Payments,Private contractors,10/07/2020,6374282,2500,COMPANY,COMPLETE ENVIRONMENT SERVICES LTD,146582
Portsmouth City Council,PCC,Planning Services,Business support,Regeneration,Third Party Payments,Private contractors,10/07/2020,6374282,2000,COMPANY,COMPLETE ENVIRONMENT SERVICES LTD,146582
Portsmouth City Council,PCC,Planning Services,Business support,Regeneration,Premises-Related Expenditure,"Repairs, alterations and maintenance of buildings",31/07/2020,6377507,2350,COMPANY,COMPLETE ENVIRONMENT SERVICES LTD,146582
Portsmouth City Council,PCC,Support Service / Transparency Costs Unallocated,AMS,Regeneration,Supplies and Services,Communications and computing,21/07/2020,6375656,432.86,VENDOR,CIVICA UK LTD,104001
Portsmouth City Council,PCC,Highways and Transport Services,Traffic Management and Road Safety,Regeneration,Supplies and Services,Communications and computing,21/07/2020,6375656,432.86,VENDOR,CIVICA UK LTD,104001
Portsmouth City Council,PCC,Environmental and Regulatory Services,Community Safety (Crime Reduction),Chief Exec,Supplies and Services,Communications and computing,21/07/2020,6375656,114.2,VENDOR,CIVICA UK LTD,104001
Portsmouth City Council,PCC,Central Services,Local Tax Collection,Finance & Resources,Supplies and Services,Communications and computing,21/07/2020,6375656,205.56,VENDOR,CIVICA UK LTD,104001
Portsmouth City Council,PCC,Support Service / Transparency Costs Unallocated,Information Services,Corporate Services,Supplies and Services,Communications and computing,23/07/2020,6376279,40057.44,VENDOR,CIVICA UK LTD,104001
Portsmouth City Council,PCC,Support Service / Transparency Costs Unallocated,Information Services,Corporate Services,Supplies and Services,Communications and computing,23/07/2020,6376279,28726.17,VENDOR,CIVICA UK LTD,104001
Portsmouth City Council,PCC,Support Service / Transparency Costs Unallocated,Information Services,Corporate Services,Supplies and Services,Communications and computing,23/07/2020,6376279,12000,VENDOR,CIVICA UK LTD,104001
Portsmouth City Council,PCC,Support Service / Transparency Costs Unallocated,Information Services,Corporate Services,Supplies and Services,Communications and computing,21/07/2020,6375656,432.86,VENDOR,CIVICA UK LTD,104001
Portsmouth City Council,PCC,Highways and Transport Services,"Transport Planning, Policy and Strategy",Regeneration,Supplies and Services,Communications and computing,21/07/2020,6375656,432.86,VENDOR,CIVICA UK LTD,104001
Portsmouth City Council,PCC,Children's and Education Services,Other Education and Community Budget,Children's Services and Education,Supplies and Services,Communications and computing,21/07/2020,6375656,79.94,VENDOR,CIVICA UK LTD,104001
Portsmouth City Council,PCC,Highways and Transport Services,"Transport Planning, Policy and Strategy",Regeneration,Supplies and Services,Communications and computing,31/07/2020,6377504,865.72,VENDOR,CIVICA UK LTD,104001
Portsmouth City Council,PCC,Other,Suspense and Capital Schemes,Capital - Housing General Fund,Capital Charges,REFCUS,02/07/2020,6372960,784,COMPANY,DOLPHIN MOBILITY LTD,135682
Portsmouth City Council,PCC,Housing Services,Private Sector Housing Renewal,"Housing, Neighbourhood and Building Services",Income,Other grants reimbursements and contributions,02/07/2020,6372960,-70,COMPANY,DOLPHIN MOBILITY LTD,135682
Portsmouth City Council,PCC,Other,Suspense and Capital Schemes,Capital - Environment & Climate Change,Capital Charges,Capital Expenditure (WIP),16/07/2020,6375224,9778.32,VENDOR,HASKONINGDHV UK LIMITED,109400
Portsmouth City Council,PCC,Other,Suspense and Capital Schemes,Capital - Environment & Climate Change,Capital Charges,Capital Expenditure (WIP),31/07/2020,6377546,20171.59,VENDOR,HASKONINGDHV UK LIMITED,109400
Portsmouth City Council,PCC,Other,Suspense and Capital Schemes,Capital - Environment & Climate Change,Capital Charges,Capital Expenditure (WIP),24/07/2020,6376474,108337.88,VENDOR,HASKONINGDHV UK LIMITED,109400
Portsmouth City Council,PCC,Costs below Net Cost of Services,Trading,Regeneration,Supplies and Services,Services,07/07/2020,6373468,2171.75,VENDOR,THE OYSTER PARTNERSHIP,120530
Portsmouth City Council,PCC,Costs below Net Cost of Services,Trading,Regeneration,Supplies and Services,Services,14/07/2020,6374642,2263,VENDOR,THE OYSTER PARTNERSHIP,120530
Portsmouth City Council,PCC,Costs below Net Cost of Services,Trading,Regeneration,Supplies and Services,Services,21/07/2020,6375760,2177.59,VENDOR,THE OYSTER PARTNERSHIP,120530
Portsmouth City Council,PCC,Costs below Net Cost of Services,Trading,Regeneration,Supplies and Services,Services,21/07/2020,6375760,-1327.46,VENDOR,THE OYSTER PARTNERSHIP,120530
Portsmouth City Council,PCC,Costs below Net Cost of Services,Trading,Regeneration,Supplies and Services,Services,21/07/2020,6375760,1327.46,VENDOR,THE OYSTER PARTNERSHIP,120530
Portsmouth City Council,PCC,Costs below Net Cost of Services,Trading,Regeneration,Supplies and Services,Services,28/07/2020,6376831,2250.59,VENDOR,THE OYSTER PARTNERSHIP,120530
Portsmouth City Council,PCC,Costs below Net Cost of Services,Trading,Regeneration,Supplies and Services,Services,22/07/2020,6375861,1138.75,VENDOR,CLYDE AND CO,134667
Portsmouth City Council,PCC,Costs below Net Cost of Services,Trading,Regeneration,Supplies and Services,Services,22/07/2020,6375861,20,VENDOR,CLYDE AND CO,134667
Portsmouth City Council,PCC,Costs below Net Cost of Services,Trading,Regeneration,Supplies and Services,Services,22/07/2020,6375861,875,VENDOR,CLYDE AND CO,134667
Portsmouth City Council,PCC,Children's and Education Services,Other Children and Family Services,Children's Services and Education,Supplies and Services,Expenses,06/07/2020,6373274,792,VENDOR,INTAFORENSICS LTD,142988
Portsmouth City Council,PCC,Adult Social Care,Social Care Activities,Adult Services,Third Party Payments,Other establishments,15/07/2020,6374684,487.2,VENDOR,B S CARE LTD,100114
Portsmouth City Council,PCC,Adult Social Care,Social Care Activities,Adult Services,Third Party Payments,Other establishments,15/07/2020,6374684,439.35,VENDOR,B S CARE LTD,100114
Portsmouth City Council,PCC,Adult Social Care,Social Care Activities,Adult Services,Third Party Payments,Other establishments,15/07/2020,6374684,617.7,VENDOR,B S CARE LTD,100114
Portsmouth City Council,PCC,Adult Social Care,Social Care Activities,Adult Services,Third Party Payments,Other establishments,15/07/2020,6374684,730.8,VENDOR,B S CARE LTD,100114
Portsmouth City Council,PCC,Adult Social Care,Social Care Activities,Adult Services,Third Party Payments,Other establishments,15/07/2020,6374684,974.4,VENDOR,B S CARE LTD,100114
Portsmouth City Council,PCC,Adult Social Care,Social Care Activities,Adult Services,Third Party Payments,Other establishments,15/07/2020,6374684,104.4,VENDOR,B S CARE LTD,100114
Portsmouth City Council,PCC,Adult Social Care,Social Care Activities,Adult Services,Third Party Payments,Other establishments,15/07/2020,6374684,1065.75,VENDOR,B S CARE LTD,100114
Portsmouth City Council,PCC,Adult Social Care,Social Care Activities,Adult Services,Third Party Payments,Other establishments,15/07/2020,6374684,1065.75,VENDOR,B S CARE LTD,100114
Portsmouth City Council,PCC,Housing Revenue Account,Special Services,"Housing, Neighbourhood and Building Services",Employees,Direct employee expenses,07/07/2020,6373442,3777.2,VENDOR,SEVACARE (UK) LTD,136163
Portsmouth City Council,PCC,Support Service / Transparency Costs Unallocated,Personnel,Corporate Services,Employees,Indirect employee expenses,03/07/2020,6373126,840,VENDOR,MG CARE EXECUTIVE LTD,145566
Portsmouth City Council,PCC,Support Service / Transparency Costs Unallocated,Personnel,Corporate Services,Employees,Indirect employee expenses,03/07/2020,6373126,84,VENDOR,MG CARE EXECUTIVE LTD,145566
Portsmouth City Council,PCC,Housing Services,Homelessness,"Housing, Neighbourhood and Building Services",Supplies and Services,Grants and subscriptions,03/07/2020,6373155,780,VENDOR,SOUTH HANTS PROPERTY SERVICES LTD,145002
Portsmouth City Council,PCC,Support Service / Transparency Costs Unallocated,Personnel,Corporate Services,Employees,Indirect employee expenses,10/07/2020,6374185,1560,VENDOR,MG CARE EXECUTIVE LTD,145566
Portsmouth City Council,PCC,Support Service / Transparency Costs Unallocated,Personnel,Corporate Services,Employees,Indirect employee expenses,10/07/2020,6374185,161,VENDOR,MG CARE EXECUTIVE LTD,145566
Portsmouth City Council,PCC,Children's and Education Services,Asylum seekers,Children's Services and Education,Third Party Payments,Other establishments,02/07/2020,6372999,153.99,VENDOR,SILVER BIRCH CARE LIMITED,146315
Portsmouth City Council,PCC,Children's and Education Services,Asylum seekers,Children's Services and Education,Third Party Payments,Other establishments,02/07/2020,6372999,45.27,VENDOR,SILVER BIRCH CARE LIMITED,146315
Portsmouth City Council,PCC,Children's and Education Services,Asylum seekers,Children's Services and Education,Third Party Payments,Other establishments,02/07/2020,6372999,376.41,VENDOR,SILVER BIRCH CARE LIMITED,146315
Portsmouth City Council,PCC,Children's and Education Services,Asylum seekers,Children's Services and Education,Third Party Payments,Other establishments,02/07/2020,6372999,410.14,VENDOR,SILVER BIRCH CARE LIMITED,146315
Portsmouth City Council,PCC,Children's and Education Services,Children Looked After,Children's Services and Education,Third Party Payments,Other establishments,02/07/2020,6372999,326.41,VENDOR,SILVER BIRCH CARE LIMITED,146315
Portsmouth City Council,PCC,Children's and Education Services,Asylum seekers,Children's Services and Education,Third Party Payments,Other establishments,02/07/2020,6372999,306.01,VENDOR,SILVER BIRCH CARE LIMITED,146315
Portsmouth City Council,PCC,Children's and Education Services,Asylum seekers,Children's Services and Education,Third Party Payments,Other establishments,03/07/2020,6373153,8.27,VENDOR,SILVER BIRCH CARE LIMITED,146315
Portsmouth City Council,PCC,Children's and Education Services,Asylum seekers,Children's Services and Education,Third Party Payments,Other establishments,03/07/2020,6373153,917.86,VENDOR,SILVER BIRCH CARE LIMITED,146315
Portsmouth City Council,PCC,Children's and Education Services,Asylum seekers,Children's Services and Education,Third Party Payments,Other establishments,03/07/2020,6373153,28748.38,VENDOR,SILVER BIRCH CARE LIMITED,146315
Portsmouth City Council,PCC,Children's and Education Services,Asylum seekers,Children's Services and Education,Third Party Payments,Other establishments,03/07/2020,6373153,125,VENDOR,SILVER BIRCH CARE LIMITED,146315
Portsmouth City Council,PCC,Children's and Education Services,Children Looked After,Children's Services and Education,Third Party Payments,Other establishments,03/07/2020,6373153,-300.71,VENDOR,SILVER BIRCH CARE LIMITED,146315
Portsmouth City Council,PCC,Children's and Education Services,Children Looked After,Children's Services and Education,Third Party Payments,Other establishments,03/07/2020,6373153,3909.99,VENDOR,SILVER BIRCH CARE LIMITED,146315
Portsmouth City Council,PCC,Children's and Education Services,Safeguarding Children and Young Peoples Services,Children's Services and Education,Third Party Payments,Other establishments,03/07/2020,6373153,248.14,VENDOR,SILVER BIRCH CARE LIMITED,146315
Portsmouth City Council,PCC,Children's and Education Services,Safeguarding Children and Young Peoples Services,Children's Services and Education,Third Party Payments,Other establishments,03/07/2020,6373153,23983.71,VENDOR,SILVER BIRCH CARE LIMITED,146315
Portsmouth City Council,PCC,Children's and Education Services,Safeguarding Children and Young Peoples Services,Children's Services and Education,Third Party Payments,Other establishments,03/07/2020,6373153,-289.71,VENDOR,SILVER BIRCH CARE LIMITED,146315
Portsmouth City Council,PCC,Children's and Education Services,Safeguarding Children and Young Peoples Services,Children's Services and Education,Third Party Payments,Other establishments,03/07/2020,6373153,3750,VENDOR,SILVER BIRCH CARE LIMITED,146315
Portsmouth City Council,PCC,Children's and Education Services,Children Looked After,Children's Services and Education,Third Party Payments,Other establishments,15/07/2020,6375055,-291.01,VENDOR,SILVER BIRCH CARE LIMITED,146315
Portsmouth City Council,PCC,Children's and Education Services,Children Looked After,Children's Services and Education,Third Party Payments,Other establishments,15/07/2020,6375055,3783.86,VENDOR,SILVER BIRCH CARE LIMITED,146315
Portsmouth City Council,PCC,Children's and Education Services,Children Looked After,Children's Services and Education,Third Party Payments,Other establishments,15/07/2020,6375055,256.41,VENDOR,SILVER BIRCH CARE LIMITED,146315
Portsmouth City Council,PCC,Children's and Education Services,Children Looked After,Children's Services and Education,Third Party Payments,Other establishments,15/07/2020,6375055,248.14,VENDOR,SILVER BIRCH CARE LIMITED,146315
Portsmouth City Council,PCC,Support Service / Transparency Costs Unallocated,Personnel,Corporate Services,Employees,Indirect employee expenses,17/07/2020,6375348,2360,VENDOR,MG CARE EXECUTIVE LTD,145566
Portsmouth City Council,PCC,Support Service / Transparency Costs Unallocated,Personnel,Corporate Services,Employees,Indirect employee expenses,17/07/2020,6375348,236,VENDOR,MG CARE EXECUTIVE LTD,145566
Portsmouth City Council,PCC,Children's and Education Services,Safeguarding Children and Young Peoples Services,Children's Services and Education,Third Party Payments,Other establishments,02/07/2020,6373000,27692.14,VENDOR,SILVER BIRCH CARE LIMITED,146315
Portsmouth City Council,PCC,Children's and Education Services,Safeguarding Children and Young Peoples Services,Children's Services and Education,Third Party Payments,Other establishments,02/07/2020,6373000,28758.01,VENDOR,SILVER BIRCH CARE LIMITED,146315
Portsmouth City Council,PCC,Children's and Education Services,Asylum seekers,Children's Services and Education,Third Party Payments,Other establishments,02/07/2020,6373000,1041.5,VENDOR,SILVER BIRCH CARE LIMITED,146315
Portsmouth City Council,PCC,Children's and Education Services,Children Looked After,Children's Services and Education,Third Party Payments,Other establishments,03/07/2020,6373153,3609.28,VENDOR,SILVER BIRCH CARE LIMITED,146315
Portsmouth City Council,PCC,Children's and Education Services,Children Looked After,Children's Services and Education,Third Party Payments,Other establishments,03/07/2020,6373153,3492.85,VENDOR,SILVER BIRCH CARE LIMITED,146315
Portsmouth City Council,PCC,Support Service / Transparency Costs Unallocated,Personnel,Corporate Services,Employees,Indirect employee expenses,24/07/2020,6376508,640,VENDOR,MG CARE EXECUTIVE LTD,145566
Portsmouth City Council,PCC,Support Service / Transparency Costs Unallocated,Personnel,Corporate Services,Employees,Indirect employee expenses,24/07/2020,6376508,64,VENDOR,MG CARE EXECUTIVE LTD,145566
Portsmouth City Council,PCC,Children's and Education Services,Asylum seekers,Children's Services and Education,Third Party Payments,Other establishments,03/07/2020,6373153,1041.5,VENDOR,SILVER BIRCH CARE LIMITED,146315
Portsmouth City Council,PCC,Children's and Education Services,Safeguarding Children and Young Peoples Services,Children's Services and Education,Third Party Payments,Other establishments,03/07/2020,6373153,248.14,VENDOR,SILVER BIRCH CARE LIMITED,146315
Portsmouth City Council,PCC,Children's and Education Services,Safeguarding Children and Young Peoples Services,Children's Services and Education,Third Party Payments,Other establishments,03/07/2020,6373153,25967.17,VENDOR,SILVER BIRCH CARE LIMITED,146315
Portsmouth City Council,PCC,Children's and Education Services,Safeguarding Children and Young Peoples Services,Children's Services and Education,Third Party Payments,Other establishments,03/07/2020,6373153,-1207.3,VENDOR,SILVER BIRCH CARE LIMITED,146315
Portsmouth City Council,PCC,Children's and Education Services,Safeguarding Children and Young Peoples Services,Children's Services and Education,Third Party Payments,Other establishments,03/07/2020,6373153,3750,VENDOR,SILVER BIRCH CARE LIMITED,146315
Portsmouth City Council,PCC,Support Service / Transparency Costs Unallocated,Personnel,Corporate Services,Employees,Indirect employee expenses,31/07/2020,6377560,1000,VENDOR,MG CARE EXECUTIVE LTD,145566
Portsmouth City Council,PCC,Support Service / Transparency Costs Unallocated,Personnel,Corporate Services,Employees,Indirect employee expenses,31/07/2020,6377560,100,VENDOR,MG CARE EXECUTIVE LTD,145566
Portsmouth City Council,PCC,Children's and Education Services,Children Looked After,Children's Services and Education,Third Party Payments,Other establishments,03/07/2020,6373153,268.14,VENDOR,SILVER BIRCH CARE LIMITED,146315
Portsmouth City Council,PCC,Housing Services,Homelessness,"Housing, Neighbourhood and Building Services",Supplies and Services,Grants and subscriptions,09/07/2020,6374097,550,SOLETRADER,Classified as 'personal data' (under the Data Protection Act 2018),147072
Portsmouth City Council,PCC,Other,Suspense and Capital Schemes,"Housing, Neighbourhood and Building Services",Third Party Payments,Private contractors,29/07/2020,6377034,450000,OTHER LOCAL AUTHORITY,HAMPSHIRE COUNTY COUNCIL,100030
Portsmouth City Council,PCC,Children's and Education Services,Special Schools,Children's Services and Education,Third Party Payments,Other establishments,28/07/2020,6376774,4938.79,VENDOR,HILLCREST CHILDRENS SERVICES LIMITED,117913
Portsmouth City Council,PCC,Housing Services,Homelessness,"Housing, Neighbourhood and Building Services",Supplies and Services,Grants and subscriptions,20/07/2020,6375449,692.3,VENDOR,DAVID SEYMOUR INDEPENDENT LETTING & ESTATE AGENTS,136603
Portsmouth City Council,PCC,Adult Social Care,Social Care Activities,Adult Services,Third Party Payments,Other establishments,15/07/2020,6374684,8.7,VENDOR,B S CARE LTD,100114
Portsmouth City Council,PCC,Planning Services,Business support,Regeneration,Premises-Related Expenditure,"Repairs, alterations and maintenance of buildings",08/07/2020,6373888,20.16,VENDOR,SIX DEGREES TECHNOLOGY GROUP LTD,137034
Portsmouth City Council,PCC,Planning Services,Business support,Regeneration,Premises-Related Expenditure,"Repairs, alterations and maintenance of buildings",08/07/2020,6373888,37.32,VENDOR,SIX DEGREES TECHNOLOGY GROUP LTD,137034
Portsmouth City Council,PCC,Cultural and Related Services,Recreation and Sport,"Culture, Leisure & Regulatory Services",Premises-Related Expenditure,"Repairs, alterations and maintenance of buildings",08/07/2020,6373888,37.32,VENDOR,SIX DEGREES TECHNOLOGY GROUP LTD,137034
Portsmouth City Council,PCC,Support Service / Transparency Costs Unallocated,LLM,"Housing, Neighbourhood and Building Services",Premises-Related Expenditure,"Repairs, alterations and maintenance of buildings",08/07/2020,6373888,57.48,VENDOR,SIX DEGREES TECHNOLOGY GROUP LTD,137034
Portsmouth City Council,PCC,Support Service / Transparency Costs Unallocated,LLM,"Housing, Neighbourhood and Building Services",Premises-Related Expenditure,"Repairs, alterations and maintenance of buildings",08/07/2020,6373888,18.66,VENDOR,SIX DEGREES TECHNOLOGY GROUP LTD,137034
Portsmouth City Council,PCC,Support Service / Transparency Costs Unallocated,LLM,"Housing, Neighbourhood and Building Services",Premises-Related Expenditure,"Repairs, alterations and maintenance of buildings",08/07/2020,6373888,18.66,VENDOR,SIX DEGREES TECHNOLOGY GROUP LTD,137034
Portsmouth City Council,PCC,Support Service / Transparency Costs Unallocated,LLM,"Housing, Neighbourhood and Building Services",Premises-Related Expenditure,"Repairs, alterations and maintenance of buildings",08/07/2020,6373888,18.66,VENDOR,SIX DEGREES TECHNOLOGY GROUP LTD,137034
Portsmouth City Council,PCC,Support Service / Transparency Costs Unallocated,LLM,"Housing, Neighbourhood and Building Services",Premises-Related Expenditure,"Repairs, alterations and maintenance of buildings",08/07/2020,6373888,40.32,VENDOR,SIX DEGREES TECHNOLOGY GROUP LTD,137034
Portsmouth City Council,PCC,Support Service / Transparency Costs Unallocated,LLM,"Housing, Neighbourhood and Building Services",Premises-Related Expenditure,"Repairs, alterations and maintenance of buildings",08/07/2020,6373888,40.32,VENDOR,SIX DEGREES TECHNOLOGY GROUP LTD,137034
Portsmouth City Council,PCC,Support Service / Transparency Costs Unallocated,LLM,"Housing, Neighbourhood and Building Services",Premises-Related Expenditure,"Repairs, alterations and maintenance of buildings",08/07/2020,6373888,20.16,VENDOR,SIX DEGREES TECHNOLOGY GROUP LTD,137034
Portsmouth City Council,PCC,Support Service / Transparency Costs Unallocated,LLM,"Housing, Neighbourhood and Building Services",Premises-Related Expenditure,"Repairs, alterations and maintenance of buildings",08/07/2020,6373888,20.16,VENDOR,SIX DEGREES TECHNOLOGY GROUP LTD,137034
Portsmouth City Council,PCC,Support Service / Transparency Costs Unallocated,LLM,"Housing, Neighbourhood and Building Services",Premises-Related Expenditure,"Repairs, alterations and maintenance of buildings",08/07/2020,6373888,20.16,VENDOR,SIX DEGREES TECHNOLOGY GROUP LTD,137034
Portsmouth City Council,PCC,Support Service / Transparency Costs Unallocated,LLM,"Housing, Neighbourhood and Building Services",Premises-Related Expenditure,"Repairs, alterations and maintenance of buildings",08/07/2020,6373888,18.66,VENDOR,SIX DEGREES TECHNOLOGY GROUP LTD,137034
Portsmouth City Council,PCC,Support Service / Transparency Costs Unallocated,LLM,"Housing, Neighbourhood and Building Services",Premises-Related Expenditure,"Repairs, alterations and maintenance of buildings",08/07/2020,6373888,18.66,VENDOR,SIX DEGREES TECHNOLOGY GROUP LTD,137034
Portsmouth City Council,PCC,Housing Revenue Account,Repairs and Maintenance,"Housing, Neighbourhood and Building Services",Premises-Related Expenditure,"Repairs, alterations and maintenance of buildings",08/07/2020,6373888,1488.88,VENDOR,SIX DEGREES TECHNOLOGY GROUP LTD,137034
Portsmouth City Council,PCC,Support Service / Transparency Costs Unallocated,Procurement,Finance & Resources,Supplies and Services,Communications and computing,15/07/2020,6374870,3433.49,VENDOR,IN-TEND LTD,121323
Portsmouth City Council,PCC,Support Service / Transparency Costs Unallocated,Information Services,Corporate Services,Supplies and Services,Communications and computing,03/07/2020,6373142,5647.95,COMPANY,POWERWORKS MAINTENANCE SERVICES LTD,141178
Portsmouth City Council,PCC,Housing Services,Private Sector Housing Renewal,"Housing, Neighbourhood and Building Services",Supplies and Services,Grants and subscriptions,10/07/2020,6374181,-1820,VENDOR,KEMP BUILDERS,135362
Portsmouth City Council,PCC,Housing Services,Private Sector Housing Renewal,"Housing, Neighbourhood and Building Services",Supplies and Services,Grants and subscriptions,10/07/2020,6374181,7537.85,VENDOR,KEMP BUILDERS,135362
Portsmouth City Council,PCC,Other,Suspense and Capital Schemes,"Housing, Neighbourhood and Building Services",Supplies and Services,Services,10/07/2020,6374181,6441.75,VENDOR,KEMP BUILDERS,135362
Portsmouth City Council,PCC,Other,Suspense and Capital Schemes,"Housing, Neighbourhood and Building Services",Supplies and Services,Services,10/07/2020,6374181,6820.33,VENDOR,KEMP BUILDERS,135362
Portsmouth City Council,PCC,Housing Services,Housing Strategy,"Housing, Neighbourhood and Building Services",Income,Customer and client receipts,10/07/2020,6374181,-4242.82,VENDOR,KEMP BUILDERS,135362
Portsmouth City Council,PCC,Housing Services,Housing Strategy,"Housing, Neighbourhood and Building Services",Income,Customer and client receipts,10/07/2020,6374181,-2900.65,VENDOR,KEMP BUILDERS,135362
Portsmouth City Council,PCC,Other,Suspense and Capital Schemes,"Housing, Neighbourhood and Building Services",Supplies and Services,Services,16/07/2020,6375233,6000,VENDOR,KEMP BUILDERS,135362
Portsmouth City Council,PCC,Other,Suspense and Capital Schemes,"Housing, Neighbourhood and Building Services",Supplies and Services,Services,31/07/2020,6377554,10000,VENDOR,KEMP BUILDERS,135362
Portsmouth City Council,PCC,Planning Services,Business support,Regeneration,Premises-Related Expenditure,"Repairs, alterations and maintenance of buildings",20/07/2020,6375456,297,COMPANY,HAMPSHIRE COMMERCIAL REFURBISHMENT LTD,139067
Portsmouth City Council,PCC,Planning Services,Business support,Regeneration,Premises-Related Expenditure,"Repairs, alterations and maintenance of buildings",20/07/2020,6375456,198,COMPANY,HAMPSHIRE COMMERCIAL REFURBISHMENT LTD,139067
Portsmouth City Council,PCC,Planning Services,Business support,Regeneration,Premises-Related Expenditure,"Repairs, alterations and maintenance of buildings",20/07/2020,6375456,80,COMPANY,HAMPSHIRE COMMERCIAL REFURBISHMENT LTD,139067
Portsmouth City Council,PCC,Support Service / Transparency Costs Unallocated,Personnel,Corporate Services,Employees,Indirect employee expenses,27/07/2020,6376676,120,VENDOR,RMC EMEA LIMITED,122070
Portsmouth City Council,PCC,Support Service / Transparency Costs Unallocated,Personnel,Corporate Services,Employees,Indirect employee expenses,27/07/2020,6376676,96,VENDOR,RMC EMEA LIMITED,122070
Portsmouth City Council,PCC,Support Service / Transparency Costs Unallocated,Personnel,Corporate Services,Employees,Indirect employee expenses,27/07/2020,6376676,48,VENDOR,RMC EMEA LIMITED,122070
Portsmouth City Council,PCC,Support Service / Transparency Costs Unallocated,Personnel,Corporate Services,Employees,Indirect employee expenses,27/07/2020,6376676,48,VENDOR,RMC EMEA LIMITED,122070
Portsmouth City Council,PCC,Support Service / Transparency Costs Unallocated,Personnel,Corporate Services,Employees,Indirect employee expenses,27/07/2020,6376676,96,VENDOR,RMC EMEA LIMITED,122070
Portsmouth City Council,PCC,Support Service / Transparency Costs Unallocated,Personnel,Corporate Services,Employees,Indirect employee expenses,27/07/2020,6376676,48,VENDOR,RMC EMEA LIMITED,122070
Portsmouth City Council,PCC,Support Service / Transparency Costs Unallocated,Personnel,Corporate Services,Employees,Indirect employee expenses,27/07/2020,6376676,60,VENDOR,RMC EMEA LIMITED,122070
Portsmouth City Council,PCC,Support Service / Transparency Costs Unallocated,Personnel,Corporate Services,Employees,Indirect employee expenses,27/07/2020,6376676,60,VENDOR,RMC EMEA LIMITED,122070
Portsmouth City Council,PCC,Support Service / Transparency Costs Unallocated,Personnel,Corporate Services,Employees,Indirect employee expenses,27/07/2020,6376676,60,VENDOR,RMC EMEA LIMITED,122070
Portsmouth City Council,PCC,Support Service / Transparency Costs Unallocated,Personnel,Corporate Services,Employees,Indirect employee expenses,27/07/2020,6376676,347.52,VENDOR,RMC EMEA LIMITED,122070
Portsmouth City Council,PCC,Support Service / Transparency Costs Unallocated,Personnel,Corporate Services,Employees,Indirect employee expenses,27/07/2020,6376676,133.74,VENDOR,RMC EMEA LIMITED,122070
Portsmouth City Council,PCC,Support Service / Transparency Costs Unallocated,Personnel,Corporate Services,Employees,Indirect employee expenses,27/07/2020,6376676,103.77,VENDOR,RMC EMEA LIMITED,122070
Portsmouth City Council,PCC,Adult Social Care,Social Care Activities,Adult Services,Third Party Payments,Other establishments,15/07/2020,6374684,504.6,VENDOR,B S CARE LTD,100114
Portsmouth City Council,PCC,Adult Social Care,Social Care Activities,Adult Services,Third Party Payments,Other establishments,15/07/2020,6374684,104.4,VENDOR,B S CARE LTD,100114
Portsmouth City Council,PCC,Adult Social Care,Social Care Activities,Adult Services,Third Party Payments,Other establishments,15/07/2020,6374684,243.6,VENDOR,B S CARE LTD,100114
Portsmouth City Council,PCC,Adult Social Care,Social Care Activities,Adult Services,Third Party Payments,Other establishments,15/07/2020,6374684,17.4,VENDOR,B S CARE LTD,100114
Portsmouth City Council,PCC,Highways and Transport Services,"Airports, Harbours and Toll Facilities",Portsmouth International Port,Supplies and Services,"Equipment, furniture and materials",09/07/2020,6374101,3790,VENDOR,RAPISCAN SYSTEMS LIMITED,108247
Portsmouth City Council,PCC,Highways and Transport Services,"Airports, Harbours and Toll Facilities",Portsmouth International Port,Premises-Related Expenditure,Cleaning and domestic supplies,30/07/2020,6377444,17138.33,VENDOR,NVIRO LTD,124507
Portsmouth City Council,PCC,Highways and Transport Services,"Airports, Harbours and Toll Facilities",Portsmouth International Port,Premises-Related Expenditure,Cleaning and domestic supplies,30/07/2020,6377444,2167,VENDOR,NVIRO LTD,124507
Portsmouth City Council,PCC,Adult Social Care,Social Care Activities,Adult Services,Third Party Payments,Other establishments,15/07/2020,6374684,974.4,VENDOR,B S CARE LTD,100114
Portsmouth City Council,PCC,Adult Social Care,Social Care Activities,Adult Services,Third Party Payments,Other establishments,15/07/2020,6374684,974.4,VENDOR,B S CARE LTD,100114
Portsmouth City Council,PCC,Adult Social Care,Social Care Activities,Adult Services,Third Party Payments,Other establishments,15/07/2020,6374684,308.85,VENDOR,B S CARE LTD,100114
Portsmouth City Council,PCC,Adult Social Care,Social Care Activities,Adult Services,Third Party Payments,Other establishments,15/07/2020,6374684,339.3,VENDOR,B S CARE LTD,100114
Portsmouth City Council,PCC,Adult Social Care,Social Care Activities,Adult Services,Third Party Payments,Other establishments,15/07/2020,6374684,69.6,VENDOR,B S CARE LTD,100114
Portsmouth City Council,PCC,Adult Social Care,Social Care Activities,Adult Services,Third Party Payments,Other establishments,15/07/2020,6374684,609,VENDOR,B S CARE LTD,100114
Portsmouth City Council,PCC,Housing Services,Homelessness,"Housing, Neighbourhood and Building Services",Third Party Payments,Private contractors,09/07/2020,6374078,3150,VENDOR,HAMILTON HOUSE ROOMS LIMITED,146877
Portsmouth City Council,PCC,Other,Suspense and Capital Schemes,Capital - Environment & Climate Change,Capital Charges,Capital Expenditure (WIP),09/07/2020,6374124,656.68,PARTNERSHIP,VSBW JOINT VENTURE,146068
Portsmouth City Council,PCC,Children's and Education Services,Other Children and Family Services,Children's Services and Education,Supplies and Services,Services,02/07/2020,6372968,550,SOLETRADER,Classified as 'personal data' (under the Data Protection Act 2018),107906
Portsmouth City Council,PCC,Children's and Education Services,Other Children and Family Services,Children's Services and Education,Supplies and Services,Services,02/07/2020,6372985,665,SOLETRADER,Classified as 'personal data' (under the Data Protection Act 2018),144178
Portsmouth City Council,PCC,Children's and Education Services,Other Children and Family Services,Children's Services and Education,Supplies and Services,Services,02/07/2020,6372968,1550,SOLETRADER,Classified as 'personal data' (under the Data Protection Act 2018),107906
Portsmouth City Council,PCC,Children's and Education Services,Other Children and Family Services,Children's Services and Education,Supplies and Services,Services,02/07/2020,6372968,775,SOLETRADER,Classified as 'personal data' (under the Data Protection Act 2018),107906
Portsmouth City Council,PCC,Children's and Education Services,Other Children and Family Services,Children's Services and Education,Supplies and Services,Services,13/07/2020,6374495,350,SOLETRADER,Classified as 'personal data' (under the Data Protection Act 2018),144178
Portsmouth City Council,PCC,Children's and Education Services,Other Children and Family Services,Children's Services and Education,Supplies and Services,Services,03/07/2020,6373136,650,SOLETRADER,Classified as 'personal data' (under the Data Protection Act 2018),145209
Portsmouth City Council,PCC,Children's and Education Services,Other Children and Family Services,Children's Services and Education,Supplies and Services,Services,20/07/2020,6375472,425,SOLETRADER,Classified as 'personal data' (under the Data Protection Act 2018),144178
Portsmouth City Council,PCC,Children's and Education Services,Other Children and Family Services,Children's Services and Education,Supplies and Services,Services,13/07/2020,6374495,350,SOLETRADER,Classified as 'personal data' (under the Data Protection Act 2018),144178
Portsmouth City Council,PCC,Children's and Education Services,Other Children and Family Services,Children's Services and Education,Supplies and Services,Services,31/07/2020,6377562,550,SOLETRADER,Classified as 'personal data' (under the Data Protection Act 2018),118150
Portsmouth City Council,PCC,Children's and Education Services,Other Children and Family Services,Children's Services and Education,Supplies and Services,Services,29/07/2020,326714,550,SOLETRADER,Classified as 'personal data' (under the Data Protection Act 2018),107906
Portsmouth City Council,PCC,Highways and Transport Services,"Airports, Harbours and Toll Facilities",Portsmouth International Port,Transport-Related Expenditure,Direct transport costs,23/07/2020,6376356,5518.13,VENDOR,SOUTHERN MARITIME SERVICES LIMITED,120765
Portsmouth City Council,PCC,Adult Social Care,Social Care Activities,Adult Services,Third Party Payments,Other establishments,15/07/2020,6374684,52.2,VENDOR,B S CARE LTD,100114
Portsmouth City Council,PCC,Adult Social Care,Social Care Activities,Adult Services,Third Party Payments,Other establishments,15/07/2020,6374684,243.6,VENDOR,B S CARE LTD,100114
Portsmouth City Council,PCC,Children's and Education Services,Other Children and Family Services,Children's Services and Education,Supplies and Services,Services,03/07/2020,6373111,1200,SOLETRADER,Classified as 'personal data' (under the Data Protection Act 2018),134824
Portsmouth City Council,PCC,Cultural and Related Services,Recreation and Sport,"Culture, Leisure & Regulatory Services",Supplies and Services,"Equipment, furniture and materials",27/07/2020,6376606,14.95,VENDOR,CMW EQUIPMENT HOLDINGS LTD,134444
Portsmouth City Council,PCC,Cultural and Related Services,Recreation and Sport,"Culture, Leisure & Regulatory Services",Supplies and Services,"Equipment, furniture and materials",27/07/2020,6376606,750,VENDOR,CMW EQUIPMENT HOLDINGS LTD,134444
Portsmouth City Council,PCC,Cultural and Related Services,Recreation and Sport,"Culture, Leisure & Regulatory Services",Supplies and Services,"Equipment, furniture and materials",27/07/2020,6376606,104,VENDOR,CMW EQUIPMENT HOLDINGS LTD,134444
Portsmouth City Council,PCC,Housing Services,Homelessness,"Housing, Neighbourhood and Building Services",Third Party Payments,Private contractors,17/07/2020,6375324,3150,VENDOR,HAMILTON HOUSE ROOMS LIMITED,146877
Portsmouth City Council,PCC,Adult Social Care,Social Care Activities,Adult Services,Third Party Payments,Other establishments,15/07/2020,6374684,247.95,VENDOR,B S CARE LTD,100114
Portsmouth City Council,PCC,Adult Social Care,Social Care Activities,Adult Services,Third Party Payments,Other establishments,15/07/2020,6374684,352.35,VENDOR,B S CARE LTD,100114
Portsmouth City Council,PCC,Adult Social Care,Social Care Activities,Adult Services,Third Party Payments,Other establishments,15/07/2020,6374684,217.5,VENDOR,B S CARE LTD,100114
Portsmouth City Council,PCC,Adult Social Care,Social Care Activities,Adult Services,Third Party Payments,Other establishments,15/07/2020,6374684,87,VENDOR,B S CARE LTD,100114
Portsmouth City Council,PCC,Adult Social Care,Social Care Activities,Adult Services,Third Party Payments,Other establishments,15/07/2020,6374684,200.1,VENDOR,B S CARE LTD,100114
Portsmouth City Council,PCC,Adult Social Care,Social Care Activities,Adult Services,Third Party Payments,Other establishments,15/07/2020,6374684,365.4,VENDOR,B S CARE LTD,100114
Portsmouth City Council,PCC,Adult Social Care,Social Care Activities,Adult Services,Third Party Payments,Other establishments,15/07/2020,6374684,365.4,VENDOR,B S CARE LTD,100114
Portsmouth City Council,PCC,Adult Social Care,Social Care Activities,Adult Services,Third Party Payments,Other establishments,15/07/2020,6374684,78.3,VENDOR,B S CARE LTD,100114
Portsmouth City Council,PCC,Adult Social Care,Social Care Activities,Adult Services,Third Party Payments,Other establishments,15/07/2020,6374684,1026.6,VENDOR,B S CARE LTD,100114
Portsmouth City Council,PCC,Adult Social Care,Social Care Activities,Adult Services,Third Party Payments,Other establishments,15/07/2020,6374684,787.35,VENDOR,B S CARE LTD,100114
Portsmouth City Council,PCC,Adult Social Care,Social Care Activities,Adult Services,Third Party Payments,Other establishments,15/07/2020,6374684,304.5,VENDOR,B S CARE LTD,100114
Portsmouth City Council,PCC,Adult Social Care,Social Care Activities,Adult Services,Third Party Payments,Other establishments,15/07/2020,6374684,200.1,VENDOR,B S CARE LTD,100114
Portsmouth City Council,PCC,Adult Social Care,Social Care Activities,Adult Services,Third Party Payments,Other establishments,15/07/2020,6374684,60.9,VENDOR,B S CARE LTD,100114
Portsmouth City Council,PCC,Adult Social Care,Mental Health Support Older People (65 - 74),Adult Services,Third Party Payments,Other establishments,15/07/2020,6374684,622.05,VENDOR,B S CARE LTD,100114
Portsmouth City Council,PCC,Adult Social Care,Mental Health Support Older People (65 - 74),Adult Services,Third Party Payments,Other establishments,15/07/2020,6374684,213.15,VENDOR,B S CARE LTD,100114
Portsmouth City Council,PCC,Adult Social Care,Social Care Activities,Adult Services,Third Party Payments,Other establishments,15/07/2020,6374684,1078.8,VENDOR,B S CARE LTD,100114
Portsmouth City Council,PCC,Adult Social Care,Social Care Activities,Adult Services,Third Party Payments,Other establishments,15/07/2020,6374684,119.68,VENDOR,B S CARE LTD,100114
Portsmouth City Council,PCC,Adult Social Care,Social Care Activities,Adult Services,Third Party Payments,Other establishments,15/07/2020,6374684,730.8,VENDOR,B S CARE LTD,100114
Portsmouth City Council,PCC,Adult Social Care,Social Care Activities,Adult Services,Third Party Payments,Other establishments,15/07/2020,6374684,359.04,VENDOR,B S CARE LTD,100114
Portsmouth City Council,PCC,Adult Social Care,Social Care Activities,Adult Services,Third Party Payments,Other establishments,15/07/2020,6374684,1096.2,VENDOR,B S CARE LTD,100114
Portsmouth City Council,PCC,Adult Social Care,Social Care Activities,Adult Services,Third Party Payments,Other establishments,15/07/2020,6374684,1096.2,VENDOR,B S CARE LTD,100114
Portsmouth City Council,PCC,Adult Social Care,Physical Support Adults (18 - 64),Adult Services,Third Party Payments,Other establishments,15/07/2020,6374684,204.45,VENDOR,B S CARE LTD,100114
Portsmouth City Council,PCC,Adult Social Care,Physical Support Adults (18 - 64),Adult Services,Third Party Payments,Other establishments,15/07/2020,6374684,230.55,VENDOR,B S CARE LTD,100114
Portsmouth City Council,PCC,Adult Social Care,Physical Support Adults (18 - 64),Adult Services,Third Party Payments,Other establishments,15/07/2020,6374684,78.3,VENDOR,B S CARE LTD,100114
Portsmouth City Council,PCC,Adult Social Care,Physical Support Adults (18 - 64),Adult Services,Third Party Payments,Other establishments,15/07/2020,6374684,52.2,VENDOR,B S CARE LTD,100114
Portsmouth City Council,PCC,Adult Social Care,Physical Support Adults (18 - 64),Adult Services,Third Party Payments,Other establishments,15/07/2020,6374684,52.2,VENDOR,B S CARE LTD,100114
Portsmouth City Council,PCC,Adult Social Care,Physical Support Adults (18 - 64),Adult Services,Third Party Payments,Other establishments,15/07/2020,6374684,208.8,VENDOR,B S CARE LTD,100114
Portsmouth City Council,PCC,Adult Social Care,Physical Support Adults (18 - 64),Adult Services,Third Party Payments,Other establishments,15/07/2020,6374684,870,VENDOR,B S CARE LTD,100114
Portsmouth City Council,PCC,Adult Social Care,Physical Support Adults (18 - 64),Adult Services,Third Party Payments,Other establishments,15/07/2020,6374684,870,VENDOR,B S CARE LTD,100114
Portsmouth City Council,PCC,Adult Social Care,Physical Support Adults (18 - 64),Adult Services,Third Party Payments,Other establishments,15/07/2020,6374684,278.4,VENDOR,B S CARE LTD,100114
Portsmouth City Council,PCC,Adult Social Care,Physical Support Adults (18 - 64),Adult Services,Third Party Payments,Other establishments,15/07/2020,6374684,365.4,VENDOR,B S CARE LTD,100114
Portsmouth City Council,PCC,Adult Social Care,Physical Support Adults (18 - 64),Adult Services,Third Party Payments,Other establishments,15/07/2020,6374684,756.9,VENDOR,B S CARE LTD,100114
Portsmouth City Council,PCC,Adult Social Care,Physical Support Adults (18 - 64),Adult Services,Third Party Payments,Other establishments,15/07/2020,6374684,756.9,VENDOR,B S CARE LTD,100114
Portsmouth City Council,PCC,Adult Social Care,Physical Support Adults (18 - 64),Adult Services,Third Party Payments,Other establishments,15/07/2020,6374684,609,VENDOR,B S CARE LTD,100114
Portsmouth City Council,PCC,Adult Social Care,Physical Support Adults (18 - 64),Adult Services,Third Party Payments,Other establishments,15/07/2020,6374684,243.6,VENDOR,B S CARE LTD,100114
Portsmouth City Council,PCC,Adult Social Care,Physical Support Older People (85+),Adult Services,Third Party Payments,Other establishments,15/07/2020,6374684,1096.2,VENDOR,B S CARE LTD,100114
Portsmouth City Council,PCC,Adult Social Care,Physical Support Older People (85+),Adult Services,Third Party Payments,Other establishments,15/07/2020,6374684,1096.2,VENDOR,B S CARE LTD,100114
Portsmouth City Council,PCC,Adult Social Care,Physical Support Older People (85+),Adult Services,Third Party Payments,Other establishments,15/07/2020,6374684,243.6,VENDOR,B S CARE LTD,100114
Portsmouth City Council,PCC,Adult Social Care,Physical Support Older People (85+),Adult Services,Third Party Payments,Other establishments,15/07/2020,6374684,609,VENDOR,B S CARE LTD,100114
Portsmouth City Council,PCC,Adult Social Care,Physical Support Older People (85+),Adult Services,Third Party Payments,Other establishments,15/07/2020,6374684,243.6,VENDOR,B S CARE LTD,100114
Portsmouth City Council,PCC,Adult Social Care,Physical Support Older People (85+),Adult Services,Third Party Payments,Other establishments,15/07/2020,6374684,430.65,VENDOR,B S CARE LTD,100114
Portsmouth City Council,PCC,Adult Social Care,Physical Support Older People (85+),Adult Services,Third Party Payments,Other establishments,15/07/2020,6374684,796.05,VENDOR,B S CARE LTD,100114
Portsmouth City Council,PCC,Adult Social Care,Physical Support Older People (85+),Adult Services,Third Party Payments,Other establishments,15/07/2020,6374684,852.6,VENDOR,B S CARE LTD,100114
Portsmouth City Council,PCC,Adult Social Care,Physical Support Older People (85+),Adult Services,Third Party Payments,Other establishments,15/07/2020,6374684,243.6,VENDOR,B S CARE LTD,100114
Portsmouth City Council,PCC,Adult Social Care,Physical Support Older People (85+),Adult Services,Third Party Payments,Other establishments,15/07/2020,6374684,1096.2,VENDOR,B S CARE LTD,100114
Portsmouth City Council,PCC,Adult Social Care,Physical Support Older People (85+),Adult Services,Third Party Payments,Other establishments,15/07/2020,6374684,1096.2,VENDOR,B S CARE LTD,100114
Portsmouth City Council,PCC,Adult Social Care,Physical Support Older People (85+),Adult Services,Third Party Payments,Other establishments,15/07/2020,6374684,1218,VENDOR,B S CARE LTD,100114
Portsmouth City Council,PCC,Adult Social Care,Physical Support Older People (85+),Adult Services,Third Party Payments,Other establishments,15/07/2020,6374684,1218,VENDOR,B S CARE LTD,100114
Portsmouth City Council,PCC,Adult Social Care,Physical Support Older People (85+),Adult Services,Third Party Payments,Other establishments,15/07/2020,6374684,278.4,VENDOR,B S CARE LTD,100114
Portsmouth City Council,PCC,Adult Social Care,Physical Support Older People (85+),Adult Services,Third Party Payments,Other establishments,15/07/2020,6374684,147.9,VENDOR,B S CARE LTD,100114
Portsmouth City Council,PCC,Adult Social Care,Physical Support Older People (85+),Adult Services,Third Party Payments,Other establishments,15/07/2020,6374684,539.4,VENDOR,B S CARE LTD,100114
Portsmouth City Council,PCC,Adult Social Care,Physical Support Older People (85+),Adult Services,Third Party Payments,Other establishments,15/07/2020,6374684,121.8,VENDOR,B S CARE LTD,100114
Portsmouth City Council,PCC,Adult Social Care,Physical Support Older People (85+),Adult Services,Third Party Payments,Other establishments,15/07/2020,6374684,243.6,VENDOR,B S CARE LTD,100114
Portsmouth City Council,PCC,Adult Social Care,Physical Support Older People (85+),Adult Services,Third Party Payments,Other establishments,15/07/2020,6374684,748.2,VENDOR,B S CARE LTD,100114
Portsmouth City Council,PCC,Adult Social Care,Physical Support Older People (85+),Adult Services,Third Party Payments,Other establishments,15/07/2020,6374684,208.8,VENDOR,B S CARE LTD,100114
Portsmouth City Council,PCC,Adult Social Care,Physical Support Older People (85+),Adult Services,Third Party Payments,Other establishments,15/07/2020,6374684,160.95,VENDOR,B S CARE LTD,100114
Portsmouth City Council,PCC,Adult Social Care,Physical Support Older People (85+),Adult Services,Third Party Payments,Other establishments,15/07/2020,6374684,221.85,VENDOR,B S CARE LTD,100114
Portsmouth City Council,PCC,Adult Social Care,Physical Support Older People (85+),Adult Services,Third Party Payments,Other establishments,15/07/2020,6374684,274.05,VENDOR,B S CARE LTD,100114
Portsmouth City Council,PCC,Adult Social Care,Physical Support Older People (85+),Adult Services,Third Party Payments,Other establishments,15/07/2020,6374684,243.6,VENDOR,B S CARE LTD,100114
Portsmouth City Council,PCC,Adult Social Care,Physical Support Older People (85+),Adult Services,Third Party Payments,Other establishments,15/07/2020,6374684,365.4,VENDOR,B S CARE LTD,100114
Portsmouth City Council,PCC,Adult Social Care,Physical Support Older People (85+),Adult Services,Third Party Payments,Other establishments,15/07/2020,6374684,478.5,VENDOR,B S CARE LTD,100114
Portsmouth City Council,PCC,Adult Social Care,Physical Support Older People (85+),Adult Services,Third Party Payments,Other establishments,15/07/2020,6374684,974.4,VENDOR,B S CARE LTD,100114
Portsmouth City Council,PCC,Adult Social Care,Physical Support Older People (85+),Adult Services,Third Party Payments,Other establishments,15/07/2020,6374684,974.4,VENDOR,B S CARE LTD,100114
Portsmouth City Council,PCC,Adult Social Care,Physical Support Older People (85+),Adult Services,Third Party Payments,Other establishments,15/07/2020,6374684,156.6,VENDOR,B S CARE LTD,100114
Portsmouth City Council,PCC,Adult Social Care,Physical Support Older People (85+),Adult Services,Third Party Payments,Other establishments,15/07/2020,6374684,800.4,VENDOR,B S CARE LTD,100114
Portsmouth City Council,PCC,Adult Social Care,Physical Support Older People (85+),Adult Services,Third Party Payments,Other establishments,15/07/2020,6374684,208.8,VENDOR,B S CARE LTD,100114
Portsmouth City Council,PCC,Adult Social Care,Physical Support Older People (85+),Adult Services,Third Party Payments,Other establishments,15/07/2020,6374684,243.6,VENDOR,B S CARE LTD,100114
Portsmouth City Council,PCC,Adult Social Care,Physical Support Older People (85+),Adult Services,Third Party Payments,Other establishments,15/07/2020,6374684,1091.85,VENDOR,B S CARE LTD,100114
Portsmouth City Council,PCC,Adult Social Care,Physical Support Older People (85+),Adult Services,Third Party Payments,Other establishments,15/07/2020,6374684,487.2,VENDOR,B S CARE LTD,100114
Portsmouth City Council,PCC,Adult Social Care,Physical Support Older People (85+),Adult Services,Third Party Payments,Other establishments,15/07/2020,6374684,487.2,VENDOR,B S CARE LTD,100114
Portsmouth City Council,PCC,Adult Social Care,Physical Support Older People (85+),Adult Services,Third Party Payments,Other establishments,15/07/2020,6374684,69.6,VENDOR,B S CARE LTD,100114
Portsmouth City Council,PCC,Adult Social Care,Physical Support Older People (85+),Adult Services,Third Party Payments,Other establishments,15/07/2020,6374684,1096.2,VENDOR,B S CARE LTD,100114
Portsmouth City Council,PCC,Adult Social Care,Physical Support Older People (85+),Adult Services,Third Party Payments,Other establishments,15/07/2020,6374684,1235.4,VENDOR,B S CARE LTD,100114
Portsmouth City Council,PCC,Adult Social Care,Physical Support Older People (85+),Adult Services,Third Party Payments,Other establishments,15/07/2020,6374684,487.2,VENDOR,B S CARE LTD,100114
Portsmouth City Council,PCC,Adult Social Care,Physical Support Older People (85+),Adult Services,Third Party Payments,Other establishments,15/07/2020,6374684,730.8,VENDOR,B S CARE LTD,100114
Portsmouth City Council,PCC,Adult Social Care,Physical Support Older People (85+),Adult Services,Third Party Payments,Other establishments,15/07/2020,6374684,487.2,VENDOR,B S CARE LTD,100114
Portsmouth City Council,PCC,Adult Social Care,Physical Support Older People (85+),Adult Services,Third Party Payments,Other establishments,15/07/2020,6374684,487.2,VENDOR,B S CARE LTD,100114
Portsmouth City Council,PCC,Adult Social Care,Physical Support Older People (85+),Adult Services,Third Party Payments,Other establishments,15/07/2020,6374684,104.4,VENDOR,B S CARE LTD,100114
Portsmouth City Council,PCC,Adult Social Care,Physical Support Older People (85+),Adult Services,Third Party Payments,Other establishments,15/07/2020,6374684,365.4,VENDOR,B S CARE LTD,100114
Portsmouth City Council,PCC,Adult Social Care,Physical Support Older People (85+),Adult Services,Third Party Payments,Other establishments,15/07/2020,6374684,243.6,VENDOR,B S CARE LTD,100114
Portsmouth City Council,PCC,Adult Social Care,Physical Support Older People (85+),Adult Services,Third Party Payments,Other establishments,15/07/2020,6374684,548.1,VENDOR,B S CARE LTD,100114
Portsmouth City Council,PCC,Adult Social Care,Physical Support Older People (85+),Adult Services,Third Party Payments,Other establishments,15/07/2020,6374684,243.6,VENDOR,B S CARE LTD,100114
Portsmouth City Council,PCC,Adult Social Care,Physical Support Older People (85+),Adult Services,Third Party Payments,Other establishments,15/07/2020,6374684,365.4,VENDOR,B S CARE LTD,100114
Portsmouth City Council,PCC,Adult Social Care,Physical Support Older People (85+),Adult Services,Third Party Payments,Other establishments,15/07/2020,6374684,487.2,VENDOR,B S CARE LTD,100114
Portsmouth City Council,PCC,Adult Social Care,Physical Support Older People (85+),Adult Services,Third Party Payments,Other establishments,15/07/2020,6374684,34.8,VENDOR,B S CARE LTD,100114
Portsmouth City Council,PCC,Adult Social Care,Physical Support Older People (85+),Adult Services,Third Party Payments,Other establishments,15/07/2020,6374684,535.05,VENDOR,B S CARE LTD,100114
Portsmouth City Council,PCC,Adult Social Care,Physical Support Older People (85+),Adult Services,Third Party Payments,Other establishments,15/07/2020,6374684,730.8,VENDOR,B S CARE LTD,100114
Portsmouth City Council,PCC,Adult Social Care,Physical Support Older People (85+),Adult Services,Third Party Payments,Other establishments,15/07/2020,6374684,478.5,VENDOR,B S CARE LTD,100114
Portsmouth City Council,PCC,Adult Social Care,Physical Support Older People (85+),Adult Services,Third Party Payments,Other establishments,15/07/2020,6374684,452.4,VENDOR,B S CARE LTD,100114
Portsmouth City Council,PCC,Adult Social Care,Physical Support Older People (85+),Adult Services,Third Party Payments,Other establishments,15/07/2020,6374684,243.6,VENDOR,B S CARE LTD,100114
Portsmouth City Council,PCC,Adult Social Care,Physical Support Older People (85+),Adult Services,Third Party Payments,Other establishments,15/07/2020,6374684,852.6,VENDOR,B S CARE LTD,100114
Portsmouth City Council,PCC,Adult Social Care,Physical Support Older People (85+),Adult Services,Third Party Payments,Other establishments,15/07/2020,6374684,852.6,VENDOR,B S CARE LTD,100114
Portsmouth City Council,PCC,Adult Social Care,Physical Support Older People (85+),Adult Services,Third Party Payments,Other establishments,15/07/2020,6374684,487.2,VENDOR,B S CARE LTD,100114
Portsmouth City Council,PCC,Adult Social Care,Physical Support Older People (85+),Adult Services,Third Party Payments,Other establishments,15/07/2020,6374684,487.2,VENDOR,B S CARE LTD,100114
Portsmouth City Council,PCC,Adult Social Care,Physical Support Older People (85+),Adult Services,Third Party Payments,Other establishments,15/07/2020,6374684,60.9,VENDOR,B S CARE LTD,100114
Portsmouth City Council,PCC,Adult Social Care,Physical Support Older People (85+),Adult Services,Third Party Payments,Other establishments,15/07/2020,6374684,1339.8,VENDOR,B S CARE LTD,100114
Portsmouth City Council,PCC,Adult Social Care,Physical Support Older People (85+),Adult Services,Third Party Payments,Other establishments,15/07/2020,6374684,1339.8,VENDOR,B S CARE LTD,100114
Portsmouth City Council,PCC,Adult Social Care,Physical Support Older People (85+),Adult Services,Third Party Payments,Other establishments,15/07/2020,6374684,678.6,VENDOR,B S CARE LTD,100114
Portsmouth City Council,PCC,Adult Social Care,Learning Disability Support  Adults (18 - 64),Adult Services,Third Party Payments,Other establishments,15/07/2020,6374684,69.6,VENDOR,B S CARE LTD,100114
Portsmouth City Council,PCC,Adult Social Care,Social Support - Support for Carer,Adult Services,Third Party Payments,Other establishments,15/07/2020,6374684,568.48,VENDOR,B S CARE LTD,100114
Portsmouth City Council,PCC,Adult Social Care,Social Support - Support for Carer,Adult Services,Third Party Payments,Other establishments,15/07/2020,6374684,329.12,VENDOR,B S CARE LTD,100114
Portsmouth City Council,PCC,Adult Social Care,Social Support - Support for Carer,Adult Services,Third Party Payments,Other establishments,15/07/2020,6374684,359.04,VENDOR,B S CARE LTD,100114
Portsmouth City Council,PCC,Adult Social Care,Social Support - Support for Carer,Adult Services,Third Party Payments,Other establishments,15/07/2020,6374684,359.04,VENDOR,B S CARE LTD,100114
Portsmouth City Council,PCC,Adult Social Care,Social Care Activities,Adult Services,Third Party Payments,Other establishments,10/07/2020,6374257,3393.88,VENDOR,BEACONSFIELD RESIDENTIAL CARE HOME,100568
Portsmouth City Council,PCC,Other,Suspense and Capital Schemes,Capital - Environment & Climate Change,Capital Charges,Capital Expenditure (WIP),24/07/2020,6376584,81289.4,PARTNERSHIP,VSBW JOINT VENTURE,146068
Portsmouth City Council,PCC,Adult Social Care,Learning Disability Support  Adults (18 - 64),Adult Services,Third Party Payments,Other establishments,10/07/2020,6374257,3489.36,VENDOR,BEACONSFIELD RESIDENTIAL CARE HOME,100568
Portsmouth City Council,PCC,Cultural and Related Services,Allocation of Management & Admin,Corporate Services,Supplies and Services,"Printing, stationery and general office expenses",10/07/2020,6374311,2014,VENDOR,HOLBROOKS PRINTERS LTD,100893
Portsmouth City Council,PCC,Cultural and Related Services,Library Service,"Culture, Leisure & Regulatory Services",Supplies and Services,"Equipment, furniture and materials",13/07/2020,6374407,431.5,VENDOR,BIBLIOGRAPIC DATA SERVICES LTD,112369
Portsmouth City Council,PCC,Cultural and Related Services,Library Service,"Culture, Leisure & Regulatory Services",Supplies and Services,"Equipment, furniture and materials",13/07/2020,6374407,7034,VENDOR,BIBLIOGRAPIC DATA SERVICES LTD,112369
Portsmouth City Council,PCC,Cultural and Related Services,Recreation and Sport,"Culture, Leisure & Regulatory Services",Supplies and Services,Catering,21/07/2020,6375645,299.17,VENDOR,BFS GROUP LTD T/A BIDFOOD,100106
Portsmouth City Council,PCC,Adult Social Care,Learning Disability Support  Adults (18 - 64),Adult Services,Third Party Payments,Other establishments,10/07/2020,6374257,2559.36,VENDOR,BEACONSFIELD RESIDENTIAL CARE HOME,100568
Portsmouth City Council,PCC,Adult Social Care,Mental Health Support Adults (18 - 64),Adult Services,Third Party Payments,Other establishments,10/07/2020,6374257,1861.55,VENDOR,BEACONSFIELD RESIDENTIAL CARE HOME,100568
Portsmouth City Council,PCC,Cultural and Related Services,Recreation and Sport,"Culture, Leisure & Regulatory Services",Supplies and Services,Catering,23/07/2020,6376269,10.4,VENDOR,BFS GROUP LTD T/A BIDFOOD,100106
Portsmouth City Council,PCC,Adult Social Care,Mental Health Support Adults (18 - 64),Adult Services,Third Party Payments,Other establishments,10/07/2020,6374257,1934.4,VENDOR,BEACONSFIELD RESIDENTIAL CARE HOME,100568
Portsmouth City Council,PCC,Adult Social Care,Mental Health Support Adults (18 - 64),Adult Services,Third Party Payments,Other establishments,10/07/2020,6374257,1806.37,VENDOR,BEACONSFIELD RESIDENTIAL CARE HOME,100568
Portsmouth City Council,PCC,Adult Social Care,Mental Health Support Adults (18 - 64),Adult Services,Third Party Payments,Other establishments,10/07/2020,6374257,2484.65,VENDOR,BEACONSFIELD RESIDENTIAL CARE HOME,100568
Portsmouth City Council,PCC,Adult Social Care,Mental Health Support Adults (18 - 64),Adult Services,Third Party Payments,Other establishments,10/07/2020,6374257,1898.13,VENDOR,BEACONSFIELD RESIDENTIAL CARE HOME,100568
Portsmouth City Council,PCC,Children's and Education Services,Other Education and Community Budget,Regeneration,Third Party Payments,Private contractors,10/07/2020,6374328,15000,VENDOR,MONTERPOINT TECHNOLOGIES LTD,110204
Portsmouth City Council,PCC,Children's and Education Services,Other Education and Community Budget,Regeneration,Third Party Payments,Private contractors,10/07/2020,6374328,2850,VENDOR,MONTERPOINT TECHNOLOGIES LTD,110204
Portsmouth City Council,PCC,Housing Revenue Account,Special Services,"Housing, Neighbourhood and Building Services",Employees,Direct employee expenses,27/07/2020,6376691,3868.4,VENDOR,THE PORTSMOUTH SITTING SERVICE AND COMMUNITY CARE SERVICES LTD T/A ASSURED CARE,100201
Portsmouth City Council,PCC,Adult Social Care,Mental Health Support Adults (18 - 64),Adult Services,Third Party Payments,Other establishments,10/07/2020,6374257,2430.4,VENDOR,BEACONSFIELD RESIDENTIAL CARE HOME,100568
Portsmouth City Council,PCC,Adult Social Care,Mental Health Support Adults (18 - 64),Adult Services,Third Party Payments,Other establishments,10/07/2020,6374257,1898.13,VENDOR,BEACONSFIELD RESIDENTIAL CARE HOME,100568
Portsmouth City Council,PCC,Adult Social Care,Mental Health Support Adults (18 - 64),Adult Services,Third Party Payments,Other establishments,10/07/2020,6374257,1898.13,VENDOR,BEACONSFIELD RESIDENTIAL CARE HOME,100568
Portsmouth City Council,PCC,Adult Social Care,Mental Health Support Adults (18 - 64),Adult Services,Third Party Payments,Other establishments,10/07/2020,6374257,1824.97,VENDOR,BEACONSFIELD RESIDENTIAL CARE HOME,100568
Portsmouth City Council,PCC,Adult Social Care,Mental Health Support Adults (18 - 64),Adult Services,Third Party Payments,Other establishments,10/07/2020,6374257,2657.63,VENDOR,BEACONSFIELD RESIDENTIAL CARE HOME,100568
Portsmouth City Council,PCC,Adult Social Care,Mental Health Support Adults (18 - 64),Adult Services,Third Party Payments,Other establishments,10/07/2020,6374257,1861.55,VENDOR,BEACONSFIELD RESIDENTIAL CARE HOME,100568
Portsmouth City Council,PCC,Adult Social Care,Mental Health Support Adults (18 - 64),Adult Services,Third Party Payments,Other establishments,10/07/2020,6374257,1898.13,VENDOR,BEACONSFIELD RESIDENTIAL CARE HOME,100568
Portsmouth City Council,PCC,Adult Social Care,Mental Health Support Adults (18 - 64),Adult Services,Third Party Payments,Other establishments,10/07/2020,6374257,1861.55,VENDOR,BEACONSFIELD RESIDENTIAL CARE HOME,100568
Portsmouth City Council,PCC,Adult Social Care,Mental Health Support Adults (18 - 64),Adult Services,Third Party Payments,Other establishments,10/07/2020,6374257,2007.25,VENDOR,BEACONSFIELD RESIDENTIAL CARE HOME,100568
Portsmouth City Council,PCC,Adult Social Care,Mental Health Support Adults (18 - 64),Adult Services,Third Party Payments,Other establishments,10/07/2020,6374257,2063.98,VENDOR,BEACONSFIELD RESIDENTIAL CARE HOME,100568
Portsmouth City Council,PCC,Adult Social Care,Mental Health Support Adults (18 - 64),Adult Services,Third Party Payments,Other establishments,10/07/2020,6374257,1898.13,VENDOR,BEACONSFIELD RESIDENTIAL CARE HOME,100568
Portsmouth City Council,PCC,Adult Social Care,Mental Health Support Adults (18 - 64),Adult Services,Third Party Payments,Other establishments,10/07/2020,6374257,1970.98,VENDOR,BEACONSFIELD RESIDENTIAL CARE HOME,100568
Portsmouth City Council,PCC,Adult Social Care,Physical Support Older People (85+),Adult Services,Third Party Payments,Other establishments,10/07/2020,6374258,3275.15,VENDOR,BEAUMONT LODGE LIMITED,146467
Portsmouth City Council,PCC,Adult Social Care,Physical Support Adults (18 - 64),Adult Services,Third Party Payments,Other establishments,10/07/2020,6374259,5757.32,VENDOR,BEDHAMPTON NURSING HOME,100569
Portsmouth City Council,PCC,Adult Social Care,Physical Support Adults (18 - 64),Adult Services,Third Party Payments,Other establishments,10/07/2020,6374259,6518.68,VENDOR,BEDHAMPTON NURSING HOME,100569
Portsmouth City Council,PCC,Adult Social Care,Physical Support Adults (18 - 64),Adult Services,Third Party Payments,Other establishments,10/07/2020,6374259,6200,VENDOR,BEDHAMPTON NURSING HOME,100569
Portsmouth City Council,PCC,Adult Social Care,Physical Support Adults (18 - 64),Adult Services,Third Party Payments,Other establishments,10/07/2020,6374259,-1600,VENDOR,BEDHAMPTON NURSING HOME,100569
Portsmouth City Council,PCC,Adult Social Care,Physical Support Adults (18 - 64),Adult Services,Third Party Payments,Other establishments,10/07/2020,6374259,5757.32,VENDOR,BEDHAMPTON NURSING HOME,100569
Portsmouth City Council,PCC,Adult Social Care,Physical Support Adults (18 - 64),Adult Services,Third Party Payments,Other establishments,10/07/2020,6374259,5571.6,VENDOR,BEDHAMPTON NURSING HOME,100569
Portsmouth City Council,PCC,Adult Social Care,Physical Support Adults (18 - 64),Adult Services,Third Party Payments,Other establishments,10/07/2020,6374259,1671.48,VENDOR,BEDHAMPTON NURSING HOME,100569
Portsmouth City Council,PCC,Adult Social Care,Social Care Activities,Adult Services,Third Party Payments,Other establishments,10/07/2020,6374259,11684.52,VENDOR,BEDHAMPTON NURSING HOME,100569
Portsmouth City Council,PCC,Adult Social Care,Social Care Activities,Adult Services,Third Party Payments,Other establishments,10/07/2020,6374259,4674.49,VENDOR,BEDHAMPTON NURSING HOME,100569
Portsmouth City Council,PCC,Adult Social Care,Social Care Activities,Adult Services,Third Party Payments,Other establishments,10/07/2020,6374259,5872.33,VENDOR,BEDHAMPTON NURSING HOME,100569
Portsmouth City Council,PCC,Adult Social Care,Social Care Activities,Adult Services,Third Party Payments,Other establishments,10/07/2020,6374259,814.5,VENDOR,BEDHAMPTON NURSING HOME,100569
Portsmouth City Council,PCC,Adult Social Care,Physical Support Older People (85+),Adult Services,Third Party Payments,Other establishments,10/07/2020,6374259,5881.32,VENDOR,BEDHAMPTON NURSING HOME,100569
Portsmouth City Council,PCC,Adult Social Care,Physical Support Older People (85+),Adult Services,Third Party Payments,Other establishments,10/07/2020,6374259,2887.65,VENDOR,BEDHAMPTON NURSING HOME,100569
Portsmouth City Council,PCC,Adult Social Care,Assistive Equipment & Technology,Adult Services,Supplies and Services,"Equipment, furniture and materials",29/07/2020,6376894,3775.82,VENDOR,BELLMAN & SYMFON UK LTD,147038
Portsmouth City Council,PCC,Adult Social Care,Physical Support Adults (18 - 64),Adult Services,Third Party Payments,Other establishments,10/07/2020,6374260,3321.65,VENDOR,BETHESDA HEALTHCARE,143824
Portsmouth City Council,PCC,Adult Social Care,Physical Support Adults (18 - 64),Adult Services,Third Party Payments,Other establishments,10/07/2020,6374260,321.45,VENDOR,BETHESDA HEALTHCARE,143824
Portsmouth City Council,PCC,Adult Social Care,Physical Support Adults (18 - 64),Adult Services,Third Party Payments,Other establishments,10/07/2020,6374260,535.75,VENDOR,BETHESDA HEALTHCARE,143824
Portsmouth City Council,PCC,Adult Social Care,Physical Support Adults (18 - 64),Adult Services,Third Party Payments,Other establishments,10/07/2020,6374260,4406.65,VENDOR,BETHESDA HEALTHCARE,143824
Portsmouth City Council,PCC,Adult Social Care,Physical Support Adults (18 - 64),Adult Services,Third Party Payments,Other establishments,10/07/2020,6374260,428.6,VENDOR,BETHESDA HEALTHCARE,143824
Portsmouth City Council,PCC,Adult Social Care,Physical Support Adults (18 - 64),Adult Services,Third Party Payments,Other establishments,10/07/2020,6374260,3323.2,VENDOR,BETHESDA HEALTHCARE,143824
Portsmouth City Council,PCC,Adult Social Care,Support with Memory and Cognition Older People (85+),Adult Services,Third Party Payments,Other establishments,10/07/2020,6374260,3117.67,VENDOR,BETHESDA HEALTHCARE,143824
Portsmouth City Council,PCC,Adult Social Care,Support with Memory and Cognition Older People (85+),Adult Services,Third Party Payments,Other establishments,10/07/2020,6374260,2710.33,VENDOR,BETHESDA HEALTHCARE,143824
Portsmouth City Council,PCC,Children's and Education Services,Family Support Services,Children's Services and Education,Premises-Related Expenditure,"Repairs, alterations and maintenance of buildings",30/07/2020,6377449,155,VENDOR,PREMIER FIRE AND SAFETY SYSTEMS LTD,134775
Portsmouth City Council,PCC,Children's and Education Services,Family Support Services,Children's Services and Education,Premises-Related Expenditure,"Repairs, alterations and maintenance of buildings",30/07/2020,6377449,770,VENDOR,PREMIER FIRE AND SAFETY SYSTEMS LTD,134775
Portsmouth City Council,PCC,Adult Social Care,Support with Memory and Cognition Older People (85+),Adult Services,Third Party Payments,Other establishments,10/07/2020,6374260,1328.04,VENDOR,BETHESDA HEALTHCARE,143824
Portsmouth City Council,PCC,Cultural and Related Services,Open Spaces,"Culture, Leisure & Regulatory Services",Premises-Related Expenditure,Grounds maintenance costs,10/07/2020,6374256,1876.91,COMPANY,BARHILL PLANT LTD,100355
Portsmouth City Council,PCC,Cultural and Related Services,Open Spaces,"Culture, Leisure & Regulatory Services",Premises-Related Expenditure,Grounds maintenance costs,27/07/2020,6376596,2241.95,COMPANY,BARHILL PLANT LTD,100355
Portsmouth City Council,PCC,Cultural and Related Services,Open Spaces,"Culture, Leisure & Regulatory Services",Premises-Related Expenditure,Grounds maintenance costs,27/07/2020,6376596,4454,COMPANY,BARHILL PLANT LTD,100355
Portsmouth City Council,PCC,Cultural and Related Services,Open Spaces,"Culture, Leisure & Regulatory Services",Premises-Related Expenditure,Grounds maintenance costs,27/07/2020,6376596,2608,COMPANY,BARHILL PLANT LTD,100355
Portsmouth City Council,PCC,Cultural and Related Services,Open Spaces,"Culture, Leisure & Regulatory Services",Premises-Related Expenditure,Grounds maintenance costs,27/07/2020,6376596,595.96,COMPANY,BARHILL PLANT LTD,100355
Portsmouth City Council,PCC,Cultural and Related Services,Open Spaces,"Culture, Leisure & Regulatory Services",Premises-Related Expenditure,"Repairs, alterations and maintenance of buildings",27/07/2020,6376596,80,COMPANY,BARHILL PLANT LTD,100355
Portsmouth City Council,PCC,Cultural and Related Services,Open Spaces,"Culture, Leisure & Regulatory Services",Premises-Related Expenditure,"Repairs, alterations and maintenance of buildings",27/07/2020,6376596,40,COMPANY,BARHILL PLANT LTD,100355
Portsmouth City Council,PCC,Cultural and Related Services,Open Spaces,"Culture, Leisure & Regulatory Services",Third Party Payments,Private contractors,27/07/2020,6376596,30,COMPANY,BARHILL PLANT LTD,100355
Portsmouth City Council,PCC,Cultural and Related Services,Open Spaces,"Culture, Leisure & Regulatory Services",Third Party Payments,Private contractors,27/07/2020,6376596,144.5,COMPANY,BARHILL PLANT LTD,100355
Portsmouth City Council,PCC,Cultural and Related Services,Recreation and Sport,"Culture, Leisure & Regulatory Services",Third Party Payments,Private contractors,27/07/2020,6376596,730.56,COMPANY,BARHILL PLANT LTD,100355
Portsmouth City Council,PCC,Cultural and Related Services,Recreation and Sport,"Culture, Leisure & Regulatory Services",Third Party Payments,Private contractors,27/07/2020,6376596,910.57,COMPANY,BARHILL PLANT LTD,100355
Portsmouth City Council,PCC,Children's and Education Services,Children Looked After,Children's Services and Education,Third Party Payments,Other establishments,15/07/2020,6374660,28000,VENDOR,ADVANCED ADOLESCENT CARE SOLUTIONS LTD,145305
Portsmouth City Council,PCC,Other,Suspense and Capital Schemes,Capital - Environment & Climate Change,Capital Charges,Capital Expenditure (WIP),24/07/2020,6376584,2919.08,PARTNERSHIP,VSBW JOINT VENTURE,146068
Portsmouth City Council,PCC,Other,Suspense and Capital Schemes,Capital - Environment & Climate Change,Capital Charges,Capital Expenditure (WIP),24/07/2020,6376584,-2919.08,PARTNERSHIP,VSBW JOINT VENTURE,146068
Portsmouth City Council,PCC,Other,Suspense and Capital Schemes,Capital - Environment & Climate Change,Capital Charges,Capital Expenditure (WIP),24/07/2020,6376584,2919.08,PARTNERSHIP,VSBW JOINT VENTURE,146068
Portsmouth City Council,PCC,Other,Suspense and Capital Schemes,Capital - Housing RA,Capital Charges,Capital Expenditure (WIP),07/07/2020,6373427,2250,VENDOR,MCANDREW MARTIN LIMITED,100997
Portsmouth City Council,PCC,Adult Social Care,Support with Memory and Cognition Older People (85+),Adult Services,Third Party Payments,Other establishments,10/07/2020,6374260,3613.98,VENDOR,BETHESDA HEALTHCARE,143824
Portsmouth City Council,PCC,Adult Social Care,Support with Memory and Cognition Older People (85+),Adult Services,Third Party Payments,Other establishments,10/07/2020,6374260,-1011.15,VENDOR,BETHESDA HEALTHCARE,143824
Portsmouth City Council,PCC,Adult Social Care,Support with Memory and Cognition Older People (85+),Adult Services,Third Party Payments,Other establishments,10/07/2020,6374260,3985.67,VENDOR,BETHESDA HEALTHCARE,143824
Portsmouth City Council,PCC,Adult Social Care,Support with Memory and Cognition Older People (85+),Adult Services,Third Party Payments,Other establishments,10/07/2020,6374260,-214.2,VENDOR,BETHESDA HEALTHCARE,143824
Portsmouth City Council,PCC,Adult Social Care,Support with Memory and Cognition Older People (85+),Adult Services,Third Party Payments,Other establishments,10/07/2020,6374260,-221.34,VENDOR,BETHESDA HEALTHCARE,143824
Portsmouth City Council,PCC,Adult Social Care,Support with Memory and Cognition Older People (85+),Adult Services,Third Party Payments,Other establishments,10/07/2020,6374260,-535.75,VENDOR,BETHESDA HEALTHCARE,143824
Portsmouth City Council,PCC,Adult Social Care,Support with Memory and Cognition Older People (65 - 74),Adult Services,Supplies and Services,Catering,02/07/2020,6372902,622.52,VENDOR,BFS GROUP LTD T/A BIDFOOD,100106
Portsmouth City Council,PCC,Adult Social Care,Support with Memory and Cognition Older People (65 - 74),Adult Services,Supplies and Services,Catering,09/07/2020,6373992,777.87,VENDOR,BFS GROUP LTD T/A BIDFOOD,100106
Portsmouth City Council,PCC,Adult Social Care,Support with Memory and Cognition Older People (65 - 74),Adult Services,Supplies and Services,Catering,16/07/2020,6375166,614.56,VENDOR,BFS GROUP LTD T/A BIDFOOD,100106
Portsmouth City Council,PCC,Adult Social Care,Support with Memory and Cognition Older People (65 - 74),Adult Services,Supplies and Services,Catering,21/07/2020,6375645,202.67,VENDOR,BFS GROUP LTD T/A BIDFOOD,100106
Portsmouth City Council,PCC,Adult Social Care,Physical Support Older People (65-74),Adult Services,Supplies and Services,Catering,02/07/2020,6372902,109.32,VENDOR,BFS GROUP LTD T/A BIDFOOD,100106
Portsmouth City Council,PCC,Adult Social Care,Support with Memory and Cognition Older People (65 - 74),Adult Services,Supplies and Services,Catering,23/07/2020,6376269,463.69,VENDOR,BFS GROUP LTD T/A BIDFOOD,100106
Portsmouth City Council,PCC,Adult Social Care,Support with Memory and Cognition Older People (65 - 74),Adult Services,Supplies and Services,Catering,28/07/2020,6376717,456.21,VENDOR,BFS GROUP LTD T/A BIDFOOD,100106
Portsmouth City Council,PCC,Adult Social Care,Physical Support Older People (65-74),Adult Services,Supplies and Services,Catering,09/07/2020,6373992,161.65,VENDOR,BFS GROUP LTD T/A BIDFOOD,100106
Portsmouth City Council,PCC,Adult Social Care,Support with Memory and Cognition Older People (65 - 74),Adult Services,Supplies and Services,Catering,30/07/2020,6377361,527.52,VENDOR,BFS GROUP LTD T/A BIDFOOD,100106
Portsmouth City Council,PCC,Adult Social Care,Physical Support Older People (65-74),Adult Services,Supplies and Services,Catering,23/07/2020,6376269,73.13,VENDOR,BFS GROUP LTD T/A BIDFOOD,100106
Portsmouth City Council,PCC,Adult Social Care,Physical Support Older People (65-74),Adult Services,Supplies and Services,Catering,23/07/2020,6376269,141.17,VENDOR,BFS GROUP LTD T/A BIDFOOD,100106
Portsmouth City Council,PCC,Adult Social Care,Social Care Activities,Adult Services,Third Party Payments,Other establishments,10/07/2020,6374261,-6125.5,VENDOR,BLUEBELL NURSING HOME,100112
Portsmouth City Council,PCC,Adult Social Care,Social Care Activities,Adult Services,Third Party Payments,Other establishments,10/07/2020,6374261,24868.27,VENDOR,BLUEBELL NURSING HOME,100112
Portsmouth City Council,PCC,Adult Social Care,Physical Support Adults (18 - 64),Adult Services,Third Party Payments,Other establishments,10/07/2020,6374261,4185,VENDOR,BLUEBELL NURSING HOME,100112
Portsmouth City Council,PCC,Adult Social Care,Physical Support Adults (18 - 64),Adult Services,Third Party Payments,Other establishments,10/07/2020,6374261,3510,VENDOR,BLUEBELL NURSING HOME,100112
Portsmouth City Council,PCC,Adult Social Care,Physical Support Adults (18 - 64),Adult Services,Third Party Payments,Other establishments,10/07/2020,6374261,4278,VENDOR,BLUEBELL NURSING HOME,100112
Portsmouth City Council,PCC,Adult Social Care,Physical Support Adults (18 - 64),Adult Services,Third Party Payments,Other establishments,10/07/2020,6374261,5092.37,VENDOR,BLUEBELL NURSING HOME,100112
Portsmouth City Council,PCC,Adult Social Care,Physical Support Adults (18 - 64),Adult Services,Third Party Payments,Other establishments,10/07/2020,6374261,4805,VENDOR,BLUEBELL NURSING HOME,100112
Portsmouth City Council,PCC,Adult Social Care,Physical Support Adults (18 - 64),Adult Services,Third Party Payments,Other establishments,10/07/2020,6374261,4867,VENDOR,BLUEBELL NURSING HOME,100112
Portsmouth City Council,PCC,Adult Social Care,Social Care Activities,Adult Services,Third Party Payments,Other establishments,10/07/2020,6374261,5084,VENDOR,BLUEBELL NURSING HOME,100112
Portsmouth City Council,PCC,Adult Social Care,Social Care Activities,Adult Services,Third Party Payments,Other establishments,10/07/2020,6374261,4920,VENDOR,BLUEBELL NURSING HOME,100112
Portsmouth City Council,PCC,Adult Social Care,Social Care Activities,Adult Services,Third Party Payments,Other establishments,10/07/2020,6374261,984,VENDOR,BLUEBELL NURSING HOME,100112
Portsmouth City Council,PCC,Adult Social Care,Social Care Activities,Adult Services,Third Party Payments,Other establishments,10/07/2020,6374261,-3155.04,VENDOR,BLUEBELL NURSING HOME,100112
Portsmouth City Council,PCC,Adult Social Care,Social Care Activities,Adult Services,Third Party Payments,Other establishments,10/07/2020,6374261,5263.18,VENDOR,BLUEBELL NURSING HOME,100112
Portsmouth City Council,PCC,Adult Social Care,Social Care Activities,Adult Services,Third Party Payments,Other establishments,10/07/2020,6374261,4722.54,VENDOR,BLUEBELL NURSING HOME,100112
Portsmouth City Council,PCC,Adult Social Care,Social Care Activities,Adult Services,Third Party Payments,Other establishments,10/07/2020,6374261,4078.98,VENDOR,BLUEBELL NURSING HOME,100112
Portsmouth City Council,PCC,Adult Social Care,Social Care Activities,Adult Services,Third Party Payments,Other establishments,10/07/2020,6374261,4458.42,VENDOR,BLUEBELL NURSING HOME,100112
Portsmouth City Council,PCC,Adult Social Care,Social Care Activities,Adult Services,Third Party Payments,Other establishments,10/07/2020,6374261,4078.98,VENDOR,BLUEBELL NURSING HOME,100112
Portsmouth City Council,PCC,Adult Social Care,Social Care Activities,Adult Services,Third Party Payments,Other establishments,10/07/2020,6374261,4410.99,VENDOR,BLUEBELL NURSING HOME,100112
Portsmouth City Council,PCC,Adult Social Care,Social Care Activities,Adult Services,Third Party Payments,Other establishments,10/07/2020,6374261,5699.66,VENDOR,BLUEBELL NURSING HOME,100112
Portsmouth City Council,PCC,Adult Social Care,Social Care Activities,Adult Services,Third Party Payments,Other establishments,10/07/2020,6374261,5149.1,VENDOR,BLUEBELL NURSING HOME,100112
Portsmouth City Council,PCC,Adult Social Care,Social Care Activities,Adult Services,Third Party Payments,Other establishments,10/07/2020,6374261,5536.6,VENDOR,BLUEBELL NURSING HOME,100112
Portsmouth City Council,PCC,Adult Social Care,Social Care Activities,Adult Services,Third Party Payments,Other establishments,10/07/2020,6374261,5375.4,VENDOR,BLUEBELL NURSING HOME,100112
Portsmouth City Council,PCC,Adult Social Care,Social Care Activities,Adult Services,Third Party Payments,Other establishments,10/07/2020,6374261,-913.5,VENDOR,BLUEBELL NURSING HOME,100112
Portsmouth City Council,PCC,Adult Social Care,Social Care Activities,Adult Services,Third Party Payments,Other establishments,10/07/2020,6374261,814.5,VENDOR,BLUEBELL NURSING HOME,100112
Portsmouth City Council,PCC,Adult Social Care,Social Care Activities,Adult Services,Third Party Payments,Other establishments,10/07/2020,6374261,814.5,VENDOR,BLUEBELL NURSING HOME,100112
Portsmouth City Council,PCC,Adult Social Care,Social Care Activities,Adult Services,Third Party Payments,Other establishments,10/07/2020,6374261,814.5,VENDOR,BLUEBELL NURSING HOME,100112
Portsmouth City Council,PCC,Environmental and Regulatory Services,Agricultural and Fisheries Services,Portsmouth International Port,Third Party Payments,Private contractors,30/07/2020,6377419,2949.8,VENDOR,KEN BROWN BOATS LTD,100926
Portsmouth City Council,PCC,Environmental and Regulatory Services,Agricultural and Fisheries Services,Portsmouth International Port,Third Party Payments,Private contractors,30/07/2020,6377419,114.15,VENDOR,KEN BROWN BOATS LTD,100926
Portsmouth City Council,PCC,Adult Social Care,Social Care Activities,Adult Services,Third Party Payments,Other establishments,10/07/2020,6374261,-515.17,VENDOR,BLUEBELL NURSING HOME,100112
Portsmouth City Council,PCC,Support Service / Transparency Costs Unallocated,Financial Services,Finance & Resources,Third Party Payments,Private contractors,07/07/2020,6373405,894.48,VENDOR,GEMINI CONSULTANTS LIMTED,100036
Portsmouth City Council,PCC,Support Service / Transparency Costs Unallocated,Procurement,Finance & Resources,Supplies and Services,"Clothes, uniform and laundry",06/07/2020,6373286,19500,VENDOR,SJJS SOLUTIONS LTD,146992
Portsmouth City Council,PCC,Adult Social Care,Social Care Activities,Adult Services,Third Party Payments,Other establishments,10/07/2020,6374261,814.5,VENDOR,BLUEBELL NURSING HOME,100112
Portsmouth City Council,PCC,Adult Social Care,Social Care Activities,Adult Services,Third Party Payments,Other establishments,10/07/2020,6374261,814.5,VENDOR,BLUEBELL NURSING HOME,100112
Portsmouth City Council,PCC,Support Service / Transparency Costs Unallocated,AMS,Regeneration,Supplies and Services,Services,16/07/2020,6375215,425,VENDOR,ECOSUPPORT LTD,139549
Portsmouth City Council,PCC,Highways and Transport Services,Traffic Management and Road Safety,Regeneration,Supplies and Services,Services,21/07/2020,6375748,12762,VENDOR,STANTEC UK LTD,146701
Portsmouth City Council,PCC,Highways and Transport Services,Traffic Management and Road Safety,Regeneration,Supplies and Services,Services,21/07/2020,6375748,13545.17,VENDOR,STANTEC UK LTD,146701
Portsmouth City Council,PCC,Highways and Transport Services,Traffic Management and Road Safety,Regeneration,Supplies and Services,Services,21/07/2020,6375748,5238,VENDOR,STANTEC UK LTD,146701
Portsmouth City Council,PCC,Highways and Transport Services,Traffic Management and Road Safety,Regeneration,Supplies and Services,Services,21/07/2020,6375748,6714.42,VENDOR,STANTEC UK LTD,146701
Portsmouth City Council,PCC,Highways and Transport Services,Traffic Management and Road Safety,Regeneration,Supplies and Services,Services,21/07/2020,6375748,809.58,VENDOR,STANTEC UK LTD,146701
Portsmouth City Council,PCC,Highways and Transport Services,Traffic Management and Road Safety,Regeneration,Supplies and Services,Services,21/07/2020,6375748,9454.83,VENDOR,STANTEC UK LTD,146701
Portsmouth City Council,PCC,Highways and Transport Services,Traffic Management and Road Safety,Regeneration,Supplies and Services,Services,21/07/2020,6375748,2686.69,VENDOR,STANTEC UK LTD,146701
Portsmouth City Council,PCC,Highways and Transport Services,Traffic Management and Road Safety,Regeneration,Supplies and Services,Services,21/07/2020,6375748,1403.65,VENDOR,STANTEC UK LTD,146701
Portsmouth City Council,PCC,Support Service / Transparency Costs Unallocated,Financial Services,Finance & Resources,Supplies and Services,Communications and computing,13/07/2020,6374497,36438.02,VENDOR,ORACLE CORPORATION UK LTD,100470
Portsmouth City Council,PCC,Support Service / Transparency Costs Unallocated,Financial Services,Finance & Resources,Supplies and Services,Communications and computing,13/07/2020,6374497,1062.87,VENDOR,ORACLE CORPORATION UK LTD,100470
Portsmouth City Council,PCC,Support Service / Transparency Costs Unallocated,Financial Services,Finance & Resources,Supplies and Services,Communications and computing,13/07/2020,6374497,-1062.91,VENDOR,ORACLE CORPORATION UK LTD,100470
Portsmouth City Council,PCC,Support Service / Transparency Costs Unallocated,Financial Services,Finance & Resources,Supplies and Services,Communications and computing,17/07/2020,6375356,32417.46,VENDOR,ORACLE CORPORATION UK LTD,100470
Portsmouth City Council,PCC,Support Service / Transparency Costs Unallocated,Financial Services,Finance & Resources,Supplies and Services,Communications and computing,17/07/2020,6375356,4020.43,VENDOR,ORACLE CORPORATION UK LTD,100470
Portsmouth City Council,PCC,Support Service / Transparency Costs Unallocated,Financial Services,Finance & Resources,Supplies and Services,Communications and computing,13/07/2020,6374497,12142.49,VENDOR,ORACLE CORPORATION UK LTD,100470
Portsmouth City Council,PCC,Support Service / Transparency Costs Unallocated,Financial Services,Finance & Resources,Supplies and Services,Communications and computing,13/07/2020,6374497,1029.24,VENDOR,ORACLE CORPORATION UK LTD,100470
Portsmouth City Council,PCC,Support Service / Transparency Costs Unallocated,Financial Services,Finance & Resources,Supplies and Services,Communications and computing,13/07/2020,6374497,13147.37,VENDOR,ORACLE CORPORATION UK LTD,100470
Portsmouth City Council,PCC,Support Service / Transparency Costs Unallocated,Financial Services,Finance & Resources,Supplies and Services,Communications and computing,13/07/2020,6374497,242961.15,VENDOR,ORACLE CORPORATION UK LTD,100470
Portsmouth City Council,PCC,Support Service / Transparency Costs Unallocated,Financial Services,Finance & Resources,Supplies and Services,Communications and computing,13/07/2020,6374497,65342.63,VENDOR,ORACLE CORPORATION UK LTD,100470
Portsmouth City Council,PCC,Support Service / Transparency Costs Unallocated,Financial Services,Finance & Resources,Supplies and Services,Communications and computing,13/07/2020,6374497,13700.49,VENDOR,ORACLE CORPORATION UK LTD,100470
Portsmouth City Council,PCC,Support Service / Transparency Costs Unallocated,Financial Services,Finance & Resources,Supplies and Services,Communications and computing,13/07/2020,6374497,4949.17,VENDOR,ORACLE CORPORATION UK LTD,100470
Portsmouth City Council,PCC,Support Service / Transparency Costs Unallocated,Financial Services,Finance & Resources,Supplies and Services,Communications and computing,13/07/2020,6374497,13975.54,VENDOR,ORACLE CORPORATION UK LTD,100470
Portsmouth City Council,PCC,Support Service / Transparency Costs Unallocated,Financial Services,Finance & Resources,Supplies and Services,Communications and computing,13/07/2020,6374497,352.45,VENDOR,ORACLE CORPORATION UK LTD,100470
Portsmouth City Council,PCC,Support Service / Transparency Costs Unallocated,Financial Services,Finance & Resources,Supplies and Services,Communications and computing,13/07/2020,6374497,42339.11,VENDOR,ORACLE CORPORATION UK LTD,100470
Portsmouth City Council,PCC,Adult Social Care,Social Care Activities,Adult Services,Third Party Payments,Other establishments,10/07/2020,6374261,-788.23,VENDOR,BLUEBELL NURSING HOME,100112
Portsmouth City Council,PCC,Other,Suspense and Capital Schemes,Capital - Housing RA,Capital Charges,Capital Expenditure (WIP),29/07/2020,6377228,4525,VENDOR,RIDGE AND PARTNERS LLP,139659
Portsmouth City Council,PCC,Planning Services,Development Control,Regeneration,Supplies and Services,Services,08/07/2020,6373952,1750,SOLETRADER,Classified as 'personal data' (under the Data Protection Act 2018),138144
Portsmouth City Council,PCC,Children's and Education Services,Children Looked After,Children's Services and Education,Transport-Related Expenditure,Direct transport costs,21/07/2020,6375642,724,VENDOR,AQUA CARS LIMITED,100011
Portsmouth City Council,PCC,Adult Social Care,Social Care Activities,Adult Services,Third Party Payments,Other establishments,10/07/2020,6374261,-157.65,VENDOR,BLUEBELL NURSING HOME,100112
Portsmouth City Council,PCC,Adult Social Care,Social Care Activities,Adult Services,Third Party Payments,Other establishments,10/07/2020,6374261,814.5,VENDOR,BLUEBELL NURSING HOME,100112
Portsmouth City Council,PCC,Children's and Education Services,Children Looked After,Children's Services and Education,Transport-Related Expenditure,Direct transport costs,29/07/2020,6376873,3062,VENDOR,AQUA CARS LIMITED,100011
Portsmouth City Council,PCC,Adult Social Care,Social Care Activities,Adult Services,Third Party Payments,Other establishments,10/07/2020,6374261,814.5,VENDOR,BLUEBELL NURSING HOME,100112
Portsmouth City Council,PCC,Children's and Education Services,Family Support Services,Children's Services and Education,Transport-Related Expenditure,Direct transport costs,29/07/2020,6376873,8.1,VENDOR,AQUA CARS LIMITED,100011
Portsmouth City Council,PCC,Adult Social Care,Social Care Activities,Adult Services,Third Party Payments,Other establishments,10/07/2020,6374261,814.5,VENDOR,BLUEBELL NURSING HOME,100112
Portsmouth City Council,PCC,Adult Social Care,Social Care Activities,Adult Services,Third Party Payments,Other establishments,10/07/2020,6374261,814.5,VENDOR,BLUEBELL NURSING HOME,100112
Portsmouth City Council,PCC,Adult Social Care,Social Care Activities,Adult Services,Third Party Payments,Other establishments,10/07/2020,6374261,814.5,VENDOR,BLUEBELL NURSING HOME,100112
Portsmouth City Council,PCC,Adult Social Care,Social Care Activities,Adult Services,Third Party Payments,Other establishments,10/07/2020,6374261,814.5,VENDOR,BLUEBELL NURSING HOME,100112
Portsmouth City Council,PCC,Adult Social Care,Social Care Activities,Adult Services,Third Party Payments,Other establishments,10/07/2020,6374261,814.5,VENDOR,BLUEBELL NURSING HOME,100112
Portsmouth City Council,PCC,Adult Social Care,Social Care Activities,Adult Services,Third Party Payments,Other establishments,10/07/2020,6374261,814.5,VENDOR,BLUEBELL NURSING HOME,100112
Portsmouth City Council,PCC,Adult Social Care,Social Care Activities,Adult Services,Third Party Payments,Other establishments,10/07/2020,6374261,814.5,VENDOR,BLUEBELL NURSING HOME,100112
Portsmouth City Council,PCC,Adult Social Care,Social Care Activities,Adult Services,Third Party Payments,Other establishments,10/07/2020,6374261,814.5,VENDOR,BLUEBELL NURSING HOME,100112
Portsmouth City Council,PCC,Adult Social Care,Social Care Activities,Adult Services,Third Party Payments,Other establishments,10/07/2020,6374261,814.5,VENDOR,BLUEBELL NURSING HOME,100112
Portsmouth City Council,PCC,Adult Social Care,Social Care Activities,Adult Services,Third Party Payments,Other establishments,10/07/2020,6374261,814.5,VENDOR,BLUEBELL NURSING HOME,100112
Portsmouth City Council,PCC,Adult Social Care,Social Care Activities,Adult Services,Third Party Payments,Other establishments,10/07/2020,6374261,814.5,VENDOR,BLUEBELL NURSING HOME,100112
Portsmouth City Council,PCC,Adult Social Care,Social Care Activities,Adult Services,Third Party Payments,Other establishments,10/07/2020,6374261,814.5,VENDOR,BLUEBELL NURSING HOME,100112
Portsmouth City Council,PCC,Adult Social Care,Social Care Activities,Adult Services,Third Party Payments,Other establishments,10/07/2020,6374261,814.5,VENDOR,BLUEBELL NURSING HOME,100112
Portsmouth City Council,PCC,Adult Social Care,Social Care Activities,Adult Services,Third Party Payments,Other establishments,10/07/2020,6374261,814.5,VENDOR,BLUEBELL NURSING HOME,100112
Portsmouth City Council,PCC,Adult Social Care,Social Care Activities,Adult Services,Third Party Payments,Other establishments,10/07/2020,6374261,814.5,VENDOR,BLUEBELL NURSING HOME,100112
Portsmouth City Council,PCC,Adult Social Care,Physical Support Older People (85+),Adult Services,Third Party Payments,Other establishments,10/07/2020,6374261,3383.34,VENDOR,BLUEBELL NURSING HOME,100112
Portsmouth City Council,PCC,Adult Social Care,Physical Support Older People (85+),Adult Services,Third Party Payments,Other establishments,10/07/2020,6374261,2568.66,VENDOR,BLUEBELL NURSING HOME,100112
Portsmouth City Council,PCC,Adult Social Care,Physical Support Older People (85+),Adult Services,Third Party Payments,Other establishments,10/07/2020,6374261,-4380,VENDOR,BLUEBELL NURSING HOME,100112
Portsmouth City Council,PCC,Adult Social Care,Physical Support Older People (85+),Adult Services,Third Party Payments,Other establishments,10/07/2020,6374261,-876,VENDOR,BLUEBELL NURSING HOME,100112
Portsmouth City Council,PCC,Adult Social Care,Physical Support Older People (85+),Adult Services,Third Party Payments,Other establishments,10/07/2020,6374261,2887.65,VENDOR,BLUEBELL NURSING HOME,100112
Portsmouth City Council,PCC,Adult Social Care,Physical Support Older People (85+),Adult Services,Third Party Payments,Other establishments,10/07/2020,6374261,4309,VENDOR,BLUEBELL NURSING HOME,100112
Portsmouth City Council,PCC,Adult Social Care,Physical Support Older People (85+),Adult Services,Third Party Payments,Other establishments,10/07/2020,6374261,4324.5,VENDOR,BLUEBELL NURSING HOME,100112
Portsmouth City Council,PCC,Adult Social Care,Physical Support Older People (85+),Adult Services,Third Party Payments,Other establishments,10/07/2020,6374261,2887.65,VENDOR,BLUEBELL NURSING HOME,100112
Portsmouth City Council,PCC,Adult Social Care,Physical Support Older People (85+),Adult Services,Third Party Payments,Other establishments,10/07/2020,6374261,2887.65,VENDOR,BLUEBELL NURSING HOME,100112
Portsmouth City Council,PCC,Adult Social Care,Physical Support Older People (85+),Adult Services,Third Party Payments,Other establishments,10/07/2020,6374261,2568.66,VENDOR,BLUEBELL NURSING HOME,100112
Portsmouth City Council,PCC,Adult Social Care,Physical Support Older People (85+),Adult Services,Third Party Payments,Other establishments,10/07/2020,6374261,2887.65,VENDOR,BLUEBELL NURSING HOME,100112
Portsmouth City Council,PCC,Adult Social Care,Physical Support Older People (85+),Adult Services,Third Party Payments,Other establishments,10/07/2020,6374261,2887.65,VENDOR,BLUEBELL NURSING HOME,100112
